Workbook

Sheet Calculator
B1: LANDOWNER: | F1: TRACT # | H1: Design by: | J1: Checked by: | Y1: FSG GROUPS | Z1: NRCS standard | AA1: hide/unhide status
A2: 1 | B2: County: | E2: seeds / ft2 PLS | F2: FIELD # | H2: Date: | J2: Check Date: | Y2: 0 | Z2: 0 | AA2: visible
B3: NRCS STANDARD | F3: ACRES | N3: Hot Links to Standards/Tech Notes/Job Sheets
A4: 0 | B4: CONSERVATION MIXES | E4: Rate Specification/Acre
A5: 0
A6: 0
C7: Pollinator? | I7: Enter Unit Cost for:
A8: 0 | B8: PASTURE MIXES | M8: =COUNT(R15:R54)*2 -> 0
C9: PREVALENT FSG | E9: Common Name Lookup | M9: =COUNT(X63:X141)*2 -> 0
A10: 0 | D10: 2 | E10: Select Scientific Name
E11: Common Name = | G11: =IF(G10="","",VLOOKUP(G10,Counties!AA2:AB153,2)) -> 
B12: CHOOSE YOUR GRASSES
B13: Common Name | C13: Scientific Name | E13: Lbs / acre PLS | F13: Seeds/ft2/ac PLS | G13: Blooming Period | H13: Cost ($/lb) | I13: Growth Form | J13: Moisture Regime | K13: % of Mix | L13: Cost ($/ac) | M13: # Seeds / ft2 @ 1 lb/ac | N13: Forage Productivity | O13: Pure Stand Rate | P13: Fertility Req'mnts | Q13: Retardance Capacity | S13: sod forming | T13: LBS/ACRE | V13: SEEDS/SF | X13: count in mix | AA13: INTRO? | AC13: NATIVE? | AE13: species % of mix
C14: Functional Group | D14: Equivalent rate below | T14: I | U14: N | V14: I | W14: N | X14: Intro | Y14: N | AF14: >20% of mix
C15: =IF($B15<>"",VLOOKUP($B15,Grass_Table,3),"") ->  | G15: =IF($B15<>"",VLOOKUP($B15,Grass_Table,8),"") ->  | H15: =IF(H16="",IF($B15<>"",VLOOKUP($B15,Grass_Table,4),""),H16) ->  | I15: =IF($B15<>"",VLOOKUP($B15,Grass_Table,9),"") ->  | J15: =IF($B15<>"",VLOOKUP($B15,Grass_Table,15),"") ->  | K15: =IF(D16>0,D16,0) ->  | L15: =IF(B15="","",SUM(E15:E16)*H15) ->  | M15: =IF($B15<>"",VLOOKUP($B15,Grass_Table,6),"") ->  | N15: =IF($B15<>"",VLOOKUP($B15,Grass_Table,13),"") ->  | O15: =IF($B15<>"",VLOOKUP($B15,Grass_Table,42),"") ->  | P15: =IF($B15<>"",VLOOKUP($B15,Grass_Table,14),"") ->  | Q15: =IF($B15<>"",VLOOKUP($B15,Grass_Table,12),"") ->  | R15: =IF(B15="","",1) ->  | S15: =IF(I15="sod-forming",SUM(F15:F16),"") ->  | T15: =IF($B15="","",IF(AB15=1,SUM($E15:$E16),"")) ->  | U15: =IF($B15="","",IF(AD15=1,SUM($E15:$E16),"")) ->  | V15: =IF($B15="","",IF(AB15=1,SUM($F15:$F16),"")) ->  | W15: =IF($B15="","",IF(AD15=1,SUM($F15:$F16),"")) ->  | X15: =IF($B15="","",IF(AB15=1,1,"")) ->  | Y15: =IF($B15="","",IF(AD15=1,1,"")) ->  | Z15: 1 | AA15: =IF($B15<>"",VLOOKUP($B15,Grass_Table,23),"") ->  | AB15: =IF(AA15="X",1,"") ->  | AC15: =IF($B15<>"",VLOOKUP($B15,Grass_Table,24),"") ->  | AD15: =IF(AC15="X",1,"") ->  | AE15: =IF(B15="",0,SUM(F15:F16)/$F$155) -> 0 | AF15: =IF(AE15>0.2,1,"") -> 
C16: =IF($B15<>"",VLOOKUP($B15,Grass_Table,2),"") ->  | D16: =IF(E15="",IF(F15="","",F15/$F$155),F16/$F$155) ->  | E16: =IF(D15="",IF(F15="","",(F15/M15))) ->  | F16: =IF(D15="",IF(E15="","",E15*M15),E16*M15) ->  | R16: =IF(B16="","",1) ->  | S16: =IF(I16="sod-forming",SUM(F16:F17),"") ->  | T16: =IF($B16="","",IF(AB16=1,SUM($E16:$E17),"")) ->  | U16: =IF($B16="","",IF(AD16=1,SUM($E16:$E17),"")) ->  | V16: =IF($B16="","",IF(AB16=1,SUM($F16:$F17),"")) ->  | W16: =IF($B16="","",IF(AD16=1,SUM($F16:$F17),"")) ->  | X16: =IF($B16="","",IF(AB16=1,1,"")) ->  | Y16: =IF($B16="","",IF(AD16=1,1,"")) ->  | AA16: =IF($B16<>"",VLOOKUP($B16,Grass_Table,23),"") ->  | AB16: =IF(AA16="X",1,"") ->  | AD16: =IF(AC16="X",1,"") -> 
C17: =IF($B17<>"",VLOOKUP($B17,Grass_Table,3),"") ->  | G17: =IF($B17<>"",VLOOKUP($B17,Grass_Table,8),"") ->  | H17: =IF(H18="",IF($B17<>"",VLOOKUP($B17,Grass_Table,4),""),H18) ->  | I17: =IF($B17<>"",VLOOKUP($B17,Grass_Table,9),"") ->  | J17: =IF($B17<>"",VLOOKUP($B17,Grass_Table,15),"") ->  | K17: =IF(D18>0,D18,0) ->  | L17: =IF(B17="","",SUM(E17:E18)*H17) ->  | M17: =IF($B17<>"",VLOOKUP($B17,Grass_Table,6),"") ->  | N17: =IF($B17<>"",VLOOKUP($B17,Grass_Table,13),"") ->  | O17: =IF($B17<>"",VLOOKUP($B17,Grass_Table,42),"") ->  | P17: =IF($B17<>"",VLOOKUP($B17,Grass_Table,14),"") ->  | Q17: =IF($B17<>"",VLOOKUP($B17,Grass_Table,12),"") ->  | Z17: 1 | AE17: =IF(B17="",0,SUM(F17:F18)/$F$155) -> 0 | AF17: =IF(AE17>0.2,1,"") -> 
C18: =IF($B17<>"",VLOOKUP($B17,Grass_Table,2),"") ->  | D18: =IF(E17="",IF(F17="","",F17/$F$155),F18/$F$155) ->  | E18: =IF(D17="",IF(F17="","",(F17/M17))) ->  | F18: =IF(D17="",IF(E17="","",E17*M17),E18*M17) -> 
C19: =IF($B19<>"",VLOOKUP($B19,Grass_Table,3),"") ->  | G19: =IF($B19<>"",VLOOKUP($B19,Grass_Table,8),"") ->  | H19: =IF(H20="",IF($B19<>"",VLOOKUP($B19,Grass_Table,4),""),H20) ->  | I19: =IF($B19<>"",VLOOKUP($B19,Grass_Table,9),"") ->  | J19: =IF($B19<>"",VLOOKUP($B19,Grass_Table,15),"") ->  | K19: =IF(D20>0,D20,0) ->  | L19: =IF(B19="","",SUM(E19:E20)*H19) ->  | M19: =IF($B19<>"",VLOOKUP($B19,Grass_Table,6),"") ->  | N19: =IF($B19<>"",VLOOKUP($B19,Grass_Table,13),"") ->  | O19: =IF($B19<>"",VLOOKUP($B19,Grass_Table,42),"") ->  | P19: =IF($B19<>"",VLOOKUP($B19,Grass_Table,14),"") ->  | Q19: =IF($B19<>"",VLOOKUP($B19,Grass_Table,12),"") ->  | Z19: 1 | AE19: =IF(B19="",0,SUM(F19:F20)/$F$155) -> 0 | AF19: =IF(AE19>0.2,1,"") -> 
C20: =IF($B19<>"",VLOOKUP($B19,Grass_Table,2),"") ->  | D20: =IF(E19="",IF(F19="","",F19/$F$155),F20/$F$155) ->  | E20: =IF(D19="",IF(F19="","",(F19/M19))) ->  | F20: =IF(D19="",IF(E19="","",E19*M19),E20*M19) -> 
C21: =IF($B21<>"",VLOOKUP($B21,Grass_Table,3),"") ->  | G21: =IF($B21<>"",VLOOKUP($B21,Grass_Table,8),"") ->  | H21: =IF(H22="",IF($B21<>"",VLOOKUP($B21,Grass_Table,4),""),H22) ->  | I21: =IF($B21<>"",VLOOKUP($B21,Grass_Table,9),"") ->  | J21: =IF($B21<>"",VLOOKUP($B21,Grass_Table,15),"") ->  | K21: =IF(D22>0,D22,0) ->  | L21: =IF(B21="","",SUM(E21:E22)*H21) ->  | M21: =IF($B21<>"",VLOOKUP($B21,Grass_Table,6),"") ->  | N21: =IF($B21<>"",VLOOKUP($B21,Grass_Table,13),"") ->  | O21: =IF($B21<>"",VLOOKUP($B21,Grass_Table,42),"") ->  | P21: =IF($B21<>"",VLOOKUP($B21,Grass_Table,14),"") ->  | Q21: =IF($B21<>"",VLOOKUP($B21,Grass_Table,12),"") ->  | Z21: 1 | AE21: =IF(B21="",0,SUM(F21:F22)/$F$155) -> 0 | AF21: =IF(AE21>0.2,1,"") -> 
C22: =IF($B21<>"",VLOOKUP($B21,Grass_Table,2),"") ->  | D22: =IF(E21="",IF(F21="","",F21/$F$155),F22/$F$155) ->  | E22: =IF(D21="",IF(F21="","",(F21/M21))) ->  | F22: =IF(D21="",IF(E21="","",E21*M21),E22*M21) -> 
C23: =IF($B23<>"",VLOOKUP($B23,Grass_Table,3),"") ->  | G23: =IF($B23<>"",VLOOKUP($B23,Grass_Table,8),"") ->  | H23: =IF(H24="",IF($B23<>"",VLOOKUP($B23,Grass_Table,4),""),H24) ->  | I23: =IF($B23<>"",VLOOKUP($B23,Grass_Table,9),"") ->  | J23: =IF($B23<>"",VLOOKUP($B23,Grass_Table,15),"") ->  | K23: =IF(D24>0,D24,0) ->  | L23: =IF(B23="","",SUM(E23:E24)*H23) ->  | M23: =IF($B23<>"",VLOOKUP($B23,Grass_Table,6),"") ->  | N23: =IF($B23<>"",VLOOKUP($B23,Grass_Table,13),"") ->  | O23: =IF($B23<>"",VLOOKUP($B23,Grass_Table,42),"") ->  | P23: =IF($B23<>"",VLOOKUP($B23,Grass_Table,14),"") ->  | Q23: =IF($B23<>"",VLOOKUP($B23,Grass_Table,12),"") ->  | Z23: 1 | AE23: =IF(B23="",0,SUM(F23:F24)/$F$155) -> 0 | AF23: =IF(AE23>0.2,1,"") -> 
C24: =IF($B23<>"",VLOOKUP($B23,Grass_Table,2),"") ->  | D24: =IF(E23="",IF(F23="","",F23/$F$155),F24/$F$155) ->  | E24: =IF(D23="",IF(F23="","",(F23/M23))) ->  | F24: =IF(D23="",IF(E23="","",E23*M23),E24*M23) -> 
C25: =IF($B25<>"",VLOOKUP($B25,Grass_Table,3),"") ->  | G25: =IF($B25<>"",VLOOKUP($B25,Grass_Table,8),"") ->  | H25: =IF(H26="",IF($B25<>"",VLOOKUP($B25,Grass_Table,4),""),H26) ->  | I25: =IF($B25<>"",VLOOKUP($B25,Grass_Table,9),"") ->  | J25: =IF($B25<>"",VLOOKUP($B25,Grass_Table,15),"") ->  | K25: =IF(D26>0,D26,0) ->  | L25: =IF(B25="","",SUM(E25:E26)*H25) ->  | M25: =IF($B25<>"",VLOOKUP($B25,Grass_Table,6),"") ->  | N25: =IF($B25<>"",VLOOKUP($B25,Grass_Table,13),"") ->  | O25: =IF($B25<>"",VLOOKUP($B25,Grass_Table,42),"") ->  | P25: =IF($B25<>"",VLOOKUP($B25,Grass_Table,14),"") ->  | Q25: =IF($B25<>"",VLOOKUP($B25,Grass_Table,12),"") ->  | Z25: 1 | AE25: =IF(B25="",0,SUM(F25:F26)/$F$155) -> 0 | AF25: =IF(AE25>0.2,1,"") -> 
C26: =IF($B25<>"",VLOOKUP($B25,Grass_Table,2),"") ->  | D26: =IF(E25="",IF(F25="","",F25/$F$155),F26/$F$155) ->  | E26: =IF(D25="",IF(F25="","",(F25/M25))) ->  | F26: =IF(D25="",IF(E25="","",E25*M25),E26*M25) -> 
C27: =IF($B27<>"",VLOOKUP($B27,Grass_Table,3),"") ->  | G27: =IF($B27<>"",VLOOKUP($B27,Grass_Table,8),"") ->  | H27: =IF(H28="",IF($B27<>"",VLOOKUP($B27,Grass_Table,4),""),H28) ->  | I27: =IF($B27<>"",VLOOKUP($B27,Grass_Table,9),"") ->  | J27: =IF($B27<>"",VLOOKUP($B27,Grass_Table,15),"") ->  | K27: =IF(D28>0,D28,0) ->  | L27: =IF(B27="","",SUM(E27:E28)*H27) ->  | M27: =IF($B27<>"",VLOOKUP($B27,Grass_Table,6),"") ->  | N27: =IF($B27<>"",VLOOKUP($B27,Grass_Table,13),"") ->  | O27: =IF($B27<>"",VLOOKUP($B27,Grass_Table,42),"") ->  | P27: =IF($B27<>"",VLOOKUP($B27,Grass_Table,14),"") ->  | Q27: =IF($B27<>"",VLOOKUP($B27,Grass_Table,12),"") ->  | Z27: 1 | AE27: =IF(B27="",0,SUM(F27:F28)/$F$155) -> 0 | AF27: =IF(AE27>0.2,1,"") -> 
C28: =IF($B27<>"",VLOOKUP($B27,Grass_Table,2),"") ->  | D28: =IF(E27="",IF(F27="","",F27/$F$155),F28/$F$155) ->  | E28: =IF(D27="",IF(F27="","",(F27/M27))) ->  | F28: =IF(D27="",IF(E27="","",E27*M27),E28*M27) -> 
C29: =IF($B29<>"",VLOOKUP($B29,Grass_Table,3),"") ->  | G29: =IF($B29<>"",VLOOKUP($B29,Grass_Table,8),"") ->  | H29: =IF(H30="",IF($B29<>"",VLOOKUP($B29,Grass_Table,4),""),H30) ->  | I29: =IF($B29<>"",VLOOKUP($B29,Grass_Table,9),"") ->  | J29: =IF($B29<>"",VLOOKUP($B29,Grass_Table,15),"") ->  | K29: =IF(D30>0,D30,0) ->  | L29: =IF(B29="","",SUM(E29:E30)*H29) ->  | M29: =IF($B29<>"",VLOOKUP($B29,Grass_Table,6),"") ->  | N29: =IF($B29<>"",VLOOKUP($B29,Grass_Table,13),"") ->  | O29: =IF($B29<>"",VLOOKUP($B29,Grass_Table,42),"") ->  | P29: =IF($B29<>"",VLOOKUP($B29,Grass_Table,14),"") ->  | Q29: =IF($B29<>"",VLOOKUP($B29,Grass_Table,12),"") ->  | Z29: 1 | AE29: =IF(B29="",0,SUM(F29:F30)/$F$155) -> 0 | AF29: =IF(AE29>0.2,1,"") -> 
C30: =IF($B29<>"",VLOOKUP($B29,Grass_Table,2),"") ->  | D30: =IF(E29="",IF(F29="","",F29/$F$155),F30/$F$155) ->  | E30: =IF(D29="",IF(F29="","",(F29/M29))) ->  | F30: =IF(D29="",IF(E29="","",E29*M29),E30*M29) -> 
C31: =IF($B31<>"",VLOOKUP($B31,Grass_Table,3),"") ->  | G31: =IF($B31<>"",VLOOKUP($B31,Grass_Table,8),"") ->  | H31: =IF(H32="",IF($B31<>"",VLOOKUP($B31,Grass_Table,4),""),H32) ->  | I31: =IF($B31<>"",VLOOKUP($B31,Grass_Table,9),"") ->  | J31: =IF($B31<>"",VLOOKUP($B31,Grass_Table,15),"") ->  | K31: =IF(D32>0,D32,0) ->  | L31: =IF(B31="","",SUM(E31:E32)*H31) ->  | M31: =IF($B31<>"",VLOOKUP($B31,Grass_Table,6),"") ->  | N31: =IF($B31<>"",VLOOKUP($B31,Grass_Table,13),"") ->  | O31: =IF($B31<>"",VLOOKUP($B31,Grass_Table,42),"") ->  | P31: =IF($B31<>"",VLOOKUP($B31,Grass_Table,14),"") ->  | Q31: =IF($B31<>"",VLOOKUP($B31,Grass_Table,12),"") ->  | Z31: 1 | AE31: =IF(B31="",0,SUM(F31:F32)/$F$155) -> 0 | AF31: =IF(AE31>0.2,1,"") -> 
C32: =IF($B31<>"",VLOOKUP($B31,Grass_Table,2),"") ->  | D32: =IF(E31="",IF(F31="","",F31/$F$155),F32/$F$155) ->  | E32: =IF(D31="",IF(F31="","",(F31/M31))) ->  | F32: =IF(D31="",IF(E31="","",E31*M31),E32*M31) -> 
C33: =IF($B33<>"",VLOOKUP($B33,Grass_Table,3),"") ->  | G33: =IF($B33<>"",VLOOKUP($B33,Grass_Table,8),"") ->  | H33: =IF(H34="",IF($B33<>"",VLOOKUP($B33,Grass_Table,4),""),H34) ->  | I33: =IF($B33<>"",VLOOKUP($B33,Grass_Table,9),"") ->  | J33: =IF($B33<>"",VLOOKUP($B33,Grass_Table,15),"") ->  | K33: =IF(D34>0,D34,0) ->  | L33: =IF(B33="","",SUM(E33:E34)*H33) ->  | M33: =IF($B33<>"",VLOOKUP($B33,Grass_Table,6),"") ->  | N33: =IF($B33<>"",VLOOKUP($B33,Grass_Table,13),"") ->  | O33: =IF($B33<>"",VLOOKUP($B33,Grass_Table,42),"") ->  | P33: =IF($B33<>"",VLOOKUP($B33,Grass_Table,14),"") ->  | Q33: =IF($B33<>"",VLOOKUP($B33,Grass_Table,12),"") ->  | Z33: 1 | AE33: =IF(B33="",0,SUM(F33:F34)/$F$155) -> 0 | AF33: =IF(AE33>0.2,1,"") -> 
C34: =IF($B33<>"",VLOOKUP($B33,Grass_Table,2),"") ->  | D34: =IF(E33="",IF(F33="","",F33/$F$155),F34/$F$155) ->  | E34: =IF(D33="",IF(F33="","",(F33/M33))) ->  | F34: =IF(D33="",IF(E33="","",E33*M33),E34*M33) -> 
C35: =IF($B35<>"",VLOOKUP($B35,Grass_Table,3),"") ->  | G35: =IF($B35<>"",VLOOKUP($B35,Grass_Table,8),"") ->  | H35: =IF(H36="",IF($B35<>"",VLOOKUP($B35,Grass_Table,4),""),H36) ->  | I35: =IF($B35<>"",VLOOKUP($B35,Grass_Table,9),"") ->  | J35: =IF($B35<>"",VLOOKUP($B35,Grass_Table,15),"") ->  | K35: =IF(D36>0,D36,0) ->  | L35: =IF(B35="","",SUM(E35:E36)*H35) ->  | M35: =IF($B35<>"",VLOOKUP($B35,Grass_Table,6),"") ->  | N35: =IF($B35<>"",VLOOKUP($B35,Grass_Table,13),"") ->  | O35: =IF($B35<>"",VLOOKUP($B35,Grass_Table,42),"") ->  | P35: =IF($B35<>"",VLOOKUP($B35,Grass_Table,14),"") ->  | Q35: =IF($B35<>"",VLOOKUP($B35,Grass_Table,12),"") ->  | Z35: 1 | AE35: =IF(B35="",0,SUM(F35:F36)/$F$155) -> 0 | AF35: =IF(AE35>0.2,1,"") -> 
C36: =IF($B35<>"",VLOOKUP($B35,Grass_Table,2),"") ->  | D36: =IF(E35="",IF(F35="","",F35/$F$155),F36/$F$155) ->  | E36: =IF(D35="",IF(F35="","",(F35/M35))) ->  | F36: =IF(D35="",IF(E35="","",E35*M35),E36*M35) -> 
C37: =IF($B37<>"",VLOOKUP($B37,Grass_Table,3),"") ->  | G37: =IF($B37<>"",VLOOKUP($B37,Grass_Table,8),"") ->  | H37: =IF(H38="",IF($B37<>"",VLOOKUP($B37,Grass_Table,4),""),H38) ->  | I37: =IF($B37<>"",VLOOKUP($B37,Grass_Table,9),"") ->  | J37: =IF($B37<>"",VLOOKUP($B37,Grass_Table,15),"") ->  | K37: =IF(D38>0,D38,0) ->  | L37: =IF(B37="","",SUM(E37:E38)*H37) ->  | M37: =IF($B37<>"",VLOOKUP($B37,Grass_Table,6),"") ->  | N37: =IF($B37<>"",VLOOKUP($B37,Grass_Table,13),"") ->  | O37: =IF($B37<>"",VLOOKUP($B37,Grass_Table,42),"") ->  | P37: =IF($B37<>"",VLOOKUP($B37,Grass_Table,14),"") ->  | Q37: =IF($B37<>"",VLOOKUP($B37,Grass_Table,12),"") ->  | Z37: 1 | AE37: =IF(B37="",0,SUM(F37:F38)/$F$155) -> 0 | AF37: =IF(AE37>0.2,1,"") -> 
C38: =IF($B37<>"",VLOOKUP($B37,Grass_Table,2),"") ->  | D38: =IF(E37="",IF(F37="","",F37/$F$155),F38/$F$155) ->  | E38: =IF(D37="",IF(F37="","",(F37/M37))) ->  | F38: =IF(D37="",IF(E37="","",E37*M37),E38*M37) -> 
C39: =IF($B39<>"",VLOOKUP($B39,Grass_Table,3),"") ->  | G39: =IF($B39<>"",VLOOKUP($B39,Grass_Table,8),"") ->  | H39: =IF(H40="",IF($B39<>"",VLOOKUP($B39,Grass_Table,4),""),H40) ->  | I39: =IF($B39<>"",VLOOKUP($B39,Grass_Table,9),"") ->  | J39: =IF($B39<>"",VLOOKUP($B39,Grass_Table,15),"") ->  | K39: =IF(D40>0,D40,0) ->  | L39: =IF(B39="","",SUM(E39:E40)*H39) ->  | M39: =IF($B39<>"",VLOOKUP($B39,Grass_Table,6),"") ->  | N39: =IF($B39<>"",VLOOKUP($B39,Grass_Table,13),"") ->  | O39: =IF($B39<>"",VLOOKUP($B39,Grass_Table,42),"") ->  | P39: =IF($B39<>"",VLOOKUP($B39,Grass_Table,14),"") ->  | Q39: =IF($B39<>"",VLOOKUP($B39,Grass_Table,12),"") ->  | Z39: 1 | AE39: =IF(B39="",0,SUM(F39:F40)/$F$155) -> 0 | AF39: =IF(AE39>0.2,1,"") -> 
C40: =IF($B39<>"",VLOOKUP($B39,Grass_Table,2),"") ->  | D40: =IF(E39="",IF(F39="","",F39/$F$155),F40/$F$155) ->  | E40: =IF(D39="",IF(F39="","",(F39/M39))) ->  | F40: =IF(D39="",IF(E39="","",E39*M39),E40*M39) -> 
C41: =IF($B41<>"",VLOOKUP($B41,Grass_Table,3),"") ->  | G41: =IF($B41<>"",VLOOKUP($B41,Grass_Table,8),"") ->  | H41: =IF(H42="",IF($B41<>"",VLOOKUP($B41,Grass_Table,4),""),H42) ->  | I41: =IF($B41<>"",VLOOKUP($B41,Grass_Table,9),"") ->  | J41: =IF($B41<>"",VLOOKUP($B41,Grass_Table,15),"") ->  | K41: =IF(D42>0,D42,0) ->  | L41: =IF(B41="","",SUM(E41:E42)*H41) ->  | M41: =IF($B41<>"",VLOOKUP($B41,Grass_Table,6),"") ->  | N41: =IF($B41<>"",VLOOKUP($B41,Grass_Table,13),"") ->  | O41: =IF($B41<>"",VLOOKUP($B41,Grass_Table,42),"") ->  | P41: =IF($B41<>"",VLOOKUP($B41,Grass_Table,14),"") ->  | Q41: =IF($B41<>"",VLOOKUP($B41,Grass_Table,12),"") ->  | Z41: 1 | AE41: =IF(B41="",0,SUM(F41:F42)/$F$155) -> 0 | AF41: =IF(AE41>0.2,1,"") -> 
C42: =IF($B41<>"",VLOOKUP($B41,Grass_Table,2),"") ->  | D42: =IF(E41="",IF(F41="","",F41/$F$155),F42/$F$155) ->  | E42: =IF(D41="",IF(F41="","",(F41/M41))) ->  | F42: =IF(D41="",IF(E41="","",E41*M41),E42*M41) -> 
C43: =IF($B43<>"",VLOOKUP($B43,Grass_Table,3),"") ->  | G43: =IF($B43<>"",VLOOKUP($B43,Grass_Table,8),"") ->  | H43: =IF(H44="",IF($B43<>"",VLOOKUP($B43,Grass_Table,4),""),H44) ->  | I43: =IF($B43<>"",VLOOKUP($B43,Grass_Table,9),"") ->  | J43: =IF($B43<>"",VLOOKUP($B43,Grass_Table,15),"") ->  | K43: =IF(D44>0,D44,0) ->  | L43: =IF(B43="","",SUM(E43:E44)*H43) ->  | M43: =IF($B43<>"",VLOOKUP($B43,Grass_Table,6),"") ->  | N43: =IF($B43<>"",VLOOKUP($B43,Grass_Table,13),"") ->  | O43: =IF($B43<>"",VLOOKUP($B43,Grass_Table,42),"") ->  | P43: =IF($B43<>"",VLOOKUP($B43,Grass_Table,14),"") ->  | Q43: =IF($B43<>"",VLOOKUP($B43,Grass_Table,12),"") ->  | Z43: 1 | AE43: =IF(B43="",0,SUM(F43:F44)/$F$155) -> 0 | AF43: =IF(AE43>0.2,1,"") -> 
C44: =IF($B43<>"",VLOOKUP($B43,Grass_Table,2),"") ->  | D44: =IF(E43="",IF(F43="","",F43/$F$155),F44/$F$155) ->  | E44: =IF(D43="",IF(F43="","",(F43/M43))) ->  | F44: =IF(D43="",IF(E43="","",E43*M43),E44*M43) -> 
C45: =IF($B45<>"",VLOOKUP($B45,Grass_Table,3),"") ->  | G45: =IF($B45<>"",VLOOKUP($B45,Grass_Table,8),"") ->  | H45: =IF(H46="",IF($B45<>"",VLOOKUP($B45,Grass_Table,4),""),H46) ->  | I45: =IF($B45<>"",VLOOKUP($B45,Grass_Table,9),"") ->  | J45: =IF($B45<>"",VLOOKUP($B45,Grass_Table,15),"") ->  | K45: =IF(D46>0,D46,0) ->  | L45: =IF(B45="","",SUM(E45:E46)*H45) ->  | M45: =IF($B45<>"",VLOOKUP($B45,Grass_Table,6),"") ->  | N45: =IF($B45<>"",VLOOKUP($B45,Grass_Table,13),"") ->  | O45: =IF($B45<>"",VLOOKUP($B45,Grass_Table,42),"") ->  | P45: =IF($B45<>"",VLOOKUP($B45,Grass_Table,14),"") ->  | Q45: =IF($B45<>"",VLOOKUP($B45,Grass_Table,12),"") ->  | Z45: 1 | AE45: =IF(B45="",0,SUM(F45:F46)/$F$155) -> 0 | AF45: =IF(AE45>0.2,1,"") -> 
C46: =IF($B45<>"",VLOOKUP($B45,Grass_Table,2),"") ->  | D46: =IF(E45="",IF(F45="","",F45/$F$155),F46/$F$155) ->  | E46: =IF(D45="",IF(F45="","",(F45/M45))) ->  | F46: =IF(D45="",IF(E45="","",E45*M45),E46*M45) -> 
C47: =IF($B47<>"",VLOOKUP($B47,Grass_Table,3),"") ->  | G47: =IF($B47<>"",VLOOKUP($B47,Grass_Table,8),"") ->  | H47: =IF(H48="",IF($B47<>"",VLOOKUP($B47,Grass_Table,4),""),H48) ->  | I47: =IF($B47<>"",VLOOKUP($B47,Grass_Table,9),"") ->  | J47: =IF($B47<>"",VLOOKUP($B47,Grass_Table,15),"") ->  | K47: =IF(D48>0,D48,0) ->  | L47: =IF(B47="","",SUM(E47:E48)*H47) ->  | M47: =IF($B47<>"",VLOOKUP($B47,Grass_Table,6),"") ->  | N47: =IF($B47<>"",VLOOKUP($B47,Grass_Table,13),"") ->  | O47: =IF($B47<>"",VLOOKUP($B47,Grass_Table,42),"") ->  | P47: =IF($B47<>"",VLOOKUP($B47,Grass_Table,14),"") ->  | Q47: =IF($B47<>"",VLOOKUP($B47,Grass_Table,12),"") ->  | Z47: 1 | AE47: =IF(B47="",0,SUM(F47:F48)/$F$155) -> 0 | AF47: =IF(AE47>0.2,1,"") -> 
C48: =IF($B47<>"",VLOOKUP($B47,Grass_Table,2),"") ->  | D48: =IF(E47="",IF(F47="","",F47/$F$155),F48/$F$155) ->  | E48: =IF(D47="",IF(F47="","",(F47/M47))) ->  | F48: =IF(D47="",IF(E47="","",E47*M47),E48*M47) -> 
C49: =IF($B49<>"",VLOOKUP($B49,Grass_Table,3),"") ->  | G49: =IF($B49<>"",VLOOKUP($B49,Grass_Table,8),"") ->  | H49: =IF(H50="",IF($B49<>"",VLOOKUP($B49,Grass_Table,4),""),H50) ->  | I49: =IF($B49<>"",VLOOKUP($B49,Grass_Table,9),"") ->  | J49: =IF($B49<>"",VLOOKUP($B49,Grass_Table,15),"") ->  | K49: =IF(D50>0,D50,0) ->  | L49: =IF(B49="","",SUM(E49:E50)*H49) ->  | M49: =IF($B49<>"",VLOOKUP($B49,Grass_Table,6),"") ->  | N49: =IF($B49<>"",VLOOKUP($B49,Grass_Table,13),"") ->  | O49: =IF($B49<>"",VLOOKUP($B49,Grass_Table,42),"") ->  | P49: =IF($B49<>"",VLOOKUP($B49,Grass_Table,14),"") ->  | Q49: =IF($B49<>"",VLOOKUP($B49,Grass_Table,12),"") ->  | Z49: 1 | AE49: =IF(B49="",0,SUM(F49:F50)/$F$155) -> 0 | AF49: =IF(AE49>0.2,1,"") -> 
C50: =IF($B49<>"",VLOOKUP($B49,Grass_Table,2),"") ->  | D50: =IF(E49="",IF(F49="","",F49/$F$155),F50/$F$155) ->  | E50: =IF(D49="",IF(F49="","",(F49/M49))) ->  | F50: =IF(D49="",IF(E49="","",E49*M49),E50*M49) -> 
C51: =IF($B51<>"",VLOOKUP($B51,Grass_Table,3),"") ->  | G51: =IF($B51<>"",VLOOKUP($B51,Grass_Table,8),"") ->  | H51: =IF(H52="",IF($B51<>"",VLOOKUP($B51,Grass_Table,4),""),H52) ->  | I51: =IF($B51<>"",VLOOKUP($B51,Grass_Table,9),"") ->  | J51: =IF($B51<>"",VLOOKUP($B51,Grass_Table,15),"") ->  | K51: =IF(D52>0,D52,0) ->  | L51: =IF(B51="","",SUM(E51:E52)*H51) ->  | M51: =IF($B51<>"",VLOOKUP($B51,Grass_Table,6),"") ->  | N51: =IF($B51<>"",VLOOKUP($B51,Grass_Table,13),"") ->  | O51: =IF($B51<>"",VLOOKUP($B51,Grass_Table,42),"") ->  | P51: =IF($B51<>"",VLOOKUP($B51,Grass_Table,14),"") ->  | Q51: =IF($B51<>"",VLOOKUP($B51,Grass_Table,12),"") ->  | Z51: 1 | AE51: =IF(B51="",0,SUM(F51:F52)/$F$155) -> 0 | AF51: =IF(AE51>0.2,1,"") -> 
C52: =IF($B51<>"",VLOOKUP($B51,Grass_Table,2),"") ->  | D52: =IF(E51="",IF(F51="","",F51/$F$155),F52/$F$155) ->  | E52: =IF(D51="",IF(F51="","",(F51/M51))) ->  | F52: =IF(D51="",IF(E51="","",E51*M51),E52*M51) -> 
C53: =IF($B53<>"",VLOOKUP($B53,Grass_Table,3),"") ->  | G53: =IF($B53<>"",VLOOKUP($B53,Grass_Table,8),"") ->  | H53: =IF(H54="",IF($B53<>"",VLOOKUP($B53,Grass_Table,4),""),H54) ->  | I53: =IF($B53<>"",VLOOKUP($B53,Grass_Table,9),"") ->  | J53: =IF($B53<>"",VLOOKUP($B53,Grass_Table,15),"") ->  | K53: =IF(D54>0,D54,0) ->  | L53: =IF(B53="","",SUM(E53:E54)*H53) ->  | M53: =IF($B53<>"",VLOOKUP($B53,Grass_Table,6),"") ->  | N53: =IF($B53<>"",VLOOKUP($B53,Grass_Table,13),"") ->  | O53: =IF($B53<>"",VLOOKUP($B53,Grass_Table,42),"") ->  | P53: =IF($B53<>"",VLOOKUP($B53,Grass_Table,14),"") ->  | Q53: =IF($B53<>"",VLOOKUP($B53,Grass_Table,12),"") ->  | Z53: 1 | AE53: =IF(B53="",0,SUM(F53:F54)/$F$155) -> 0 | AF53: =IF(AE53>0.2,1,"") -> 
C54: =IF($B53<>"",VLOOKUP($B53,Grass_Table,2),"") ->  | D54: =IF(E53="",IF(F53="","",F53/$F$155),F54/$F$155) ->  | E54: =IF(D53="",IF(F53="","",(F53/M53))) ->  | F54: =IF(D53="",IF(E53="","",E53*M53),E54*M53) -> 
C55: GRASSES Total/Acre: | D55: =IF(SUM(D15:D54)>1,"> 100%",SUM(D15:D54)) -> 0 | E55: =SUM(E15:E54) -> 0 | F55: =SUM(F15:F54) -> 0 | K55: =SUM(K15:K53) -> 0 | L55: =SUM(L15:L54) -> 0 | R55: =SUM(R15:R54) -> 0 | S55: 0 | T55: 0 | U55: 0 | V55: 0 | W55: 0 | X55: 0 | Y55: 0 | AB55: =SUM(AB15:AB54) -> 0 | AD55: =SUM(AD15:AD54) -> 0 | AE55: =SUM(AE15:AE54) -> 0
Y57: Mesic (medium)
B60: CHOOSE YOUR FORBS/LEGUMES | E60: =IF(D10=2,"can enter PLS in lbs/acre OR Oz./acre","Enter PLS in seeds/SF/ac") -> can enter PLS in lbs/acre OR Oz./acre
B61: Common Name | C61: Scientific Name | E61: Lbs / acre PLS | F61: Seeds/SF/ac PLS | G61: Oz. / acre PLS | H61: Blooming Period | I61: Color Code | J61: Cost ($/lb) | K61: Moisture Regime | L61: Suitable for Pollinators | M61: % of Mix | N61: Cost ($/ac) | O61: Growth Form | P61: # Seeds / ft2 @ 1 lb/ac | Q61: Wildlife Value | R61: Pure Stand Rate | S61: Forage Productivity | T61: Fertility Requirements | U61: Retardance Capacity | V61: Seeds/oz | W61: Seeds/Lb | Y61: count in mix | AD61: INTRO | AF61: NATIVE | AH61: SEEDS/SF | AL61: Lbs/A | AP61: species % of mix | AQ61: >20% of mix | AR61: Monarch friendly
B62: =+C70 ->  | C62: Functional Group | J62: Cost ($/oz) | P62: # Seeds / ft2 @ 1 oz/ac | Y62: Intro | Z62: NF | AA62: NL | AH62: intro | AI62: NF | AJ62: NL | AK62: MBF | AL62: Intro | AM62: NF | AN62: NL | AO62: MBF
C63: =IF($B63<>"",VLOOKUP($B63,Forb_Table,3),"") ->  | H63: =IF($B63<>"",VLOOKUP($B63,Forb_Table,10),"") ->  | I63: =IF($B63<>"",VLOOKUP($B63,Forb_Table,18),"") ->  | J63: =IF($B63<>"",VLOOKUP($B63,Forb_Table,5),"") ->  | K63: =IF($B63<>"",VLOOKUP($B63,Forb_Table,17),"") ->  | L63: =IF($B63<>"",VLOOKUP($B63,Forb_Table,12),"") ->  | M63: =IF(D64>0,D64,0) ->  | N63: =IF(B63="","",SUM(E63:E64)*J63) ->  | O63: =IF($B63<>"",VLOOKUP($B63,Forb_Table,11),"") ->  | P63: =IF($B63<>"",VLOOKUP($B63,Forb_Table,9),"") ->  | Q63: =IF($B63<>"",VLOOKUP($B63,Forb_Table,13),"") ->  | R63: =IF($B63<>"",VLOOKUP($B63,Forb_Table,45),"") ->  | S63: =IF($B63<>"",VLOOKUP($B63,Forb_Table,15),"") ->  | T63: =IF($B63<>"",VLOOKUP($B63,Forb_Table,16),"") ->  | U63: =IF($B63<>"",VLOOKUP($B63,Forb_Table,14),"") ->  | V63: =IF($B63<>"",VLOOKUP($B63,Forb_Table,6),"") ->  | W63: =IF($B63<>"",VLOOKUP($B63,Forb_Table,7),"") ->  | X63: =IF(C63="","",1) ->  | Y63: =IF($B63="","",IF(AE63=1,1,"")) ->  | Z63: =IF($B63="","",IF(AND($C64="Forb",$AG63=1),1,"")) ->  | AA63: =IF($B63="","",IF(AND(Y63="",Z63=""),1,"")) ->  | AB63: 1 | AD63: =IF($B63<>"",VLOOKUP($B63,Forb_Table,26),"") ->  | AE63: =IF(AD63="X",1,"") ->  | AF63: =IF($B63<>"",VLOOKUP($B63,Forb_Table,27),"") ->  | AG63: =IF(AF63="X",1,"") ->  | AH63: =IF($B63="","",IF($AE63=1,SUM(F63:F64),"")) ->  | AI63: =IF($B63="","",IF(AND($AG63=1,$C64="Forb"),SUM($F63:$F64),"")) ->  | AJ63: =IF($B63="","",IF(AND($AG63=1,$C64="Legume"),SUM($F63:$F64),"")) ->  | AK63: =IF($B63="","",IF(AND($AR63=1,$C64="Forb"),SUM($F63:$F64),"")) ->  | AL63: =IF($B63="","",IF($AE63=1,SUM($E63:$E64),"")) ->  | AM63: =IF($B63="","",IF(AND($AG63=1,$C64="Forb"),SUM($E63:$E64),"")) ->  | AN63: =IF($B63="","",IF(AND($AG63=1,$C64="Legume"),SUM($E63:$E64),"")) ->  | AO63: =IF($B63="","",IF(AND($AR63=1,$C64="Forb"),SUM($E63:$E64),"")) ->  | AP63: =IF(B63="",0,SUM(F63:F64)/$F$155) -> 0 | AQ63: =IF(AP63>0.2,1,"") ->  | AR63: =IF(B63="","",VLOOKUP(B63,ForbsLegumes!$A$4:$AT$113,46)) -> 
C64: =IF($B63<>"",VLOOKUP($B63,Forb_Table,2),"") ->  | D64: =IF(AND(E63="",F63="",G63=""),"",IF(E63>0,F64/$F$155,IF(F63>0,F63/$F$155,IF(G63>0,F64/$F$155)))) ->  | E64: =IF(AND($D63="",$F63="",$G63=""),"",IF(AND($G63="",$F63<>""),$F63/$P63,IF(AND($F63="",$E63="",$G63<>""),$G63/16,""))) ->  | F64: =IF(AND(D63="",E63="",F63="",G63=""),"",IF(AND(E63="",G63=""),"",IF(E63<>"",E63*P63,IF(G63<>"",E64*P63,"")))) ->  | G64: =IF(AND(D63="",E63="",F63="",G63=""),"",IF(AND(E63="",F63=""),"",IF(E63<>"",E63*16,IF(F63<>"",E64*16,"")))) ->  | J64: =IF($B63<>"",VLOOKUP($B63,Forb_Table,4),"") ->  | P64: =IF($B63<>"",VLOOKUP($B63,Forb_Table,8),"") ->  | Y64: =IF($B64="","",IF(AE64=1,1,"")) ->  | Z64: =IF($B64="","",IF(AND($C65="Forb",$AG64=1),1,"")) ->  | AA64: =IF($B64="","",IF(AND(Y64="",Z64=""),1,"")) ->  | AB64: 1 | AE64: =IF(AD64="X",1,"") ->  | AG64: =IF(AF64="X",1,"") ->  | AH64: =IF($B64="","",IF($AE64=1,SUM(F64:F65),"")) ->  | AI64: =IF($B64="","",IF(AND($AG64=1,$C65="Forb"),SUM($F64:$F65),"")) ->  | AJ64: =IF($B64="","",IF(AND($AG64=1,$C65="Legume"),SUM($F64:$F65),"")) ->  | AK64: =IF($B64="","",IF(AND($AR64=1,$C65="Forb"),SUM($F64:$F65),"")) ->  | AL64: =IF($B64="","",IF($AE64=1,SUM($E64:$E65),"")) ->  | AM64: =IF($B64="","",IF(AND($AG64=1,$C65="Forb"),SUM($E64:$E65),"")) ->  | AN64: =IF($B64="","",IF(AND($AG64=1,$C65="Legume"),SUM($E64:$E65),"")) ->  | AP64: 0 | AQ64: =IF(AP64>0.2,1,"") ->  | AR64: =IF(B64="","",VLOOKUP(B64,ForbsLegumes!$A$4:$AT$113,46)) -> 
C65: =IF($B65<>"",VLOOKUP($B65,Forb_Table,3),"") ->  | H65: =IF($B65<>"",VLOOKUP($B65,Forb_Table,10),"") ->  | I65: =IF($B65<>"",VLOOKUP($B65,Forb_Table,18),"") ->  | J65: =IF($B65<>"",VLOOKUP($B65,Forb_Table,5),"") ->  | K65: =IF($B65<>"",VLOOKUP($B65,Forb_Table,17),"") ->  | L65: =IF($B65<>"",VLOOKUP($B65,Forb_Table,12),"") ->  | M65: =IF(D66>0,D66,0) ->  | N65: =IF(B65="","",SUM(E65:E66)*J65) ->  | O65: =IF($B65<>"",VLOOKUP($B65,Forb_Table,11),"") ->  | P65: =IF($B65<>"",VLOOKUP($B65,Forb_Table,9),"") ->  | Q65: =IF($B65<>"",VLOOKUP($B65,Forb_Table,13),"") ->  | R65: =IF($B65<>"",VLOOKUP($B65,Forb_Table,45),"") ->  | S65: =IF($B65<>"",VLOOKUP($B65,Forb_Table,15),"") ->  | T65: =IF($B65<>"",VLOOKUP($B65,Forb_Table,16),"") ->  | U65: =IF($B65<>"",VLOOKUP($B65,Forb_Table,14),"") ->  | V65: =IF($B65<>"",VLOOKUP($B65,Forb_Table,6),"") ->  | W65: =IF($B65<>"",VLOOKUP($B65,Forb_Table,7),"") ->  | X65: =IF(C65="","",1) ->  | AB65: 1 | AP65: 0 | AR65: =IF(B65="","",VLOOKUP(B65,ForbsLegumes!$A$4:$AT$113,46)) -> 
C66: =IF($B65<>"",VLOOKUP($B65,Forb_Table,2),"") ->  | D66: =IF(AND(E65="",F65="",G65=""),"",IF(E65>0,F66/$F$155,IF(F65>0,F65/$F$155,IF(G65>0,F66/$F$155)))) ->  | E66: =IF(AND($D65="",$F65="",$G65=""),"",IF(AND($G65="",$F65<>""),$F65/$P65,IF(AND($F65="",$E65="",$G65<>""),$G65/16,""))) ->  | F66: =IF(AND(D65="",E65="",F65="",G65=""),"",IF(AND(E65="",G65=""),"",IF(E65<>"",E65*P65,IF(G65<>"",E66*P65,"")))) ->  | G66: =IF(AND(D65="",E65="",F65="",G65=""),"",IF(AND(E65="",F65=""),"",IF(E65<>"",E65*16,IF(F65<>"",E66*16,"")))) ->  | J66: =IF($B65<>"",VLOOKUP($B65,Forb_Table,4),"") ->  | P66: =IF($B65<>"",VLOOKUP($B65,Forb_Table,8),"") ->  | AB66: 1 | AP66: 0 | AR66: =IF(B66="","",VLOOKUP(B66,ForbsLegumes!$A$4:$AT$113,46)) -> 
C67: =IF($B67<>"",VLOOKUP($B67,Forb_Table,3),"") ->  | H67: =IF($B67<>"",VLOOKUP($B67,Forb_Table,10),"") ->  | I67: =IF($B67<>"",VLOOKUP($B67,Forb_Table,18),"") ->  | J67: =IF($B67<>"",VLOOKUP($B67,Forb_Table,5),"") ->  | K67: =IF($B67<>"",VLOOKUP($B67,Forb_Table,17),"") ->  | L67: =IF($B67<>"",VLOOKUP($B67,Forb_Table,12),"") ->  | M67: =IF(D68>0,D68,0) ->  | N67: =IF(B67="","",SUM(E67:E68)*J67) ->  | O67: =IF($B67<>"",VLOOKUP($B67,Forb_Table,11),"") ->  | P67: =IF($B67<>"",VLOOKUP($B67,Forb_Table,9),"") ->  | Q67: =IF($B67<>"",VLOOKUP($B67,Forb_Table,13),"") ->  | R67: =IF($B67<>"",VLOOKUP($B67,Forb_Table,45),"") ->  | S67: =IF($B67<>"",VLOOKUP($B67,Forb_Table,15),"") ->  | T67: =IF($B67<>"",VLOOKUP($B67,Forb_Table,16),"") ->  | U67: =IF($B67<>"",VLOOKUP($B67,Forb_Table,14),"") ->  | V67: =IF($B67<>"",VLOOKUP($B67,Forb_Table,6),"") ->  | W67: =IF($B67<>"",VLOOKUP($B67,Forb_Table,7),"") ->  | X67: =IF(C67="","",1) ->  | AB67: 1 | AP67: 0 | AR67: =IF(B67="","",VLOOKUP(B67,ForbsLegumes!$A$4:$AT$113,46)) -> 
C68: =IF($B67<>"",VLOOKUP($B67,Forb_Table,2),"") ->  | D68: =IF(AND(E67="",F67="",G67=""),"",F68/$F$155) ->  | E68: =IF(AND($D67="",$F67="",$G67=""),"",IF(AND($G67="",$F67<>""),$F67/$P67,IF(AND($F67="",$E67="",$G67<>""),$G67/16,""))) ->  | F68: =IF(AND(D67="",E67="",F67="",G67=""),"",IF(AND(E67="",G67=""),"",IF(E67<>"",E67*P67,IF(G67<>"",E68*P67,"")))) ->  | G68: =IF(AND(D67="",E67="",F67="",G67=""),"",IF(AND(E67="",F67=""),"",IF(E67<>"",E67*16,IF(F67<>"",E68*16,"")))) ->  | J68: =IF($B67<>"",VLOOKUP($B67,Forb_Table,4),"") ->  | P68: =IF($B67<>"",VLOOKUP($B67,Forb_Table,8),"") ->  | AB68: 1 | AP68: 0 | AR68: =IF(B68="","",VLOOKUP(B68,ForbsLegumes!$A$4:$AT$113,46)) -> 
C69: =IF($B69<>"",VLOOKUP($B69,Forb_Table,3),"") ->  | H69: =IF($B69<>"",VLOOKUP($B69,Forb_Table,10),"") ->  | I69: =IF($B69<>"",VLOOKUP($B69,Forb_Table,18),"") ->  | J69: =IF($B69<>"",VLOOKUP($B69,Forb_Table,5),"") ->  | K69: =IF($B69<>"",VLOOKUP($B69,Forb_Table,17),"") ->  | L69: =IF($B69<>"",VLOOKUP($B69,Forb_Table,12),"") ->  | M69: =IF(D70>0,D70,0) ->  | N69: =IF(B69="","",SUM(E69:E70)*J69) ->  | O69: =IF($B69<>"",VLOOKUP($B69,Forb_Table,11),"") ->  | P69: =IF($B69<>"",VLOOKUP($B69,Forb_Table,9),"") ->  | Q69: =IF($B69<>"",VLOOKUP($B69,Forb_Table,13),"") ->  | R69: =IF($B69<>"",VLOOKUP($B69,Forb_Table,45),"") ->  | S69: =IF($B69<>"",VLOOKUP($B69,Forb_Table,15),"") ->  | T69: =IF($B69<>"",VLOOKUP($B69,Forb_Table,16),"") ->  | U69: =IF($B69<>"",VLOOKUP($B69,Forb_Table,14),"") ->  | V69: =IF($B69<>"",VLOOKUP($B69,Forb_Table,6),"") ->  | W69: =IF($B69<>"",VLOOKUP($B69,Forb_Table,7),"") ->  | X69: =IF(C69="","",1) ->  | AB69: 1 | AP69: 0 | AR69: =IF(B69="","",VLOOKUP(B69,ForbsLegumes!$A$4:$AT$113,46)) -> 
C70: =IF($B69<>"",VLOOKUP($B69,Forb_Table,2),"") ->  | D70: =IF(AND(E69="",F69="",G69=""),"",F70/$F$155) ->  | E70: =IF(AND($D69="",$F69="",$G69=""),"",IF(AND($G69="",$F69<>""),$F69/$P69,IF(AND($F69="",$E69="",$G69<>""),$G69/16,""))) ->  | F70: =IF(AND(D69="",E69="",F69="",G69=""),"",IF(AND(E69="",G69=""),"",IF(E69<>"",E69*P69,IF(G69<>"",E70*P69,"")))) ->  | G70: =IF(AND(D69="",E69="",F69="",G69=""),"",IF(AND(E69="",F69=""),"",IF(E69<>"",E69*16,IF(F69<>"",E70*16,"")))) ->  | J70: =IF($B69<>"",VLOOKUP($B69,Forb_Table,4),"") ->  | P70: =IF($B69<>"",VLOOKUP($B69,Forb_Table,8),"") ->  | AB70: 1 | AP70: 0 | AR70: =IF(B70="","",VLOOKUP(B70,ForbsLegumes!$A$4:$AT$113,46)) -> 
C71: =IF($B71<>"",VLOOKUP($B71,Forb_Table,3),"") ->  | H71: =IF($B71<>"",VLOOKUP($B71,Forb_Table,10),"") ->  | I71: =IF($B71<>"",VLOOKUP($B71,Forb_Table,18),"") ->  | J71: =IF($B71<>"",VLOOKUP($B71,Forb_Table,5),"") ->  | K71: =IF($B71<>"",VLOOKUP($B71,Forb_Table,17),"") ->  | L71: =IF($B71<>"",VLOOKUP($B71,Forb_Table,12),"") ->  | M71: =IF(D72>0,D72,0) ->  | N71: =IF(B71="","",SUM(E71:E72)*J71) ->  | O71: =IF($B71<>"",VLOOKUP($B71,Forb_Table,11),"") ->  | P71: =IF($B71<>"",VLOOKUP($B71,Forb_Table,9),"") ->  | Q71: =IF($B71<>"",VLOOKUP($B71,Forb_Table,13),"") ->  | R71: =IF($B71<>"",VLOOKUP($B71,Forb_Table,45),"") ->  | S71: =IF($B71<>"",VLOOKUP($B71,Forb_Table,15),"") ->  | T71: =IF($B71<>"",VLOOKUP($B71,Forb_Table,16),"") ->  | U71: =IF($B71<>"",VLOOKUP($B71,Forb_Table,14),"") ->  | V71: =IF($B71<>"",VLOOKUP($B71,Forb_Table,6),"") ->  | W71: =IF($B71<>"",VLOOKUP($B71,Forb_Table,7),"") ->  | X71: =IF(C71="","",1) ->  | AB71: 1 | AP71: 0 | AR71: =IF(B71="","",VLOOKUP(B71,ForbsLegumes!$A$4:$AT$113,46)) -> 
C72: =IF($B71<>"",VLOOKUP($B71,Forb_Table,2),"") ->  | D72: =IF(AND(E71="",F71="",G71=""),"",F72/$F$155) ->  | E72: =IF(AND($D71="",$F71="",$G71=""),"",IF(AND($G71="",$F71<>""),$F71/$P71,IF(AND($F71="",$E71="",$G71<>""),$G71/16,""))) ->  | F72: =IF(AND(D71="",E71="",F71="",G71=""),"",IF(AND(E71="",G71=""),"",IF(E71<>"",E71*P71,IF(G71<>"",E72*P71,"")))) ->  | G72: =IF(AND(D71="",E71="",F71="",G71=""),"",IF(AND(E71="",F71=""),"",IF(E71<>"",E71*16,IF(F71<>"",E72*16,"")))) ->  | J72: =IF($B71<>"",VLOOKUP($B71,Forb_Table,4),"") ->  | P72: =IF($B71<>"",VLOOKUP($B71,Forb_Table,8),"") ->  | AB72: 1 | AP72: 0 | AR72: =IF(B72="","",VLOOKUP(B72,ForbsLegumes!$A$4:$AT$113,46)) -> 
C73: =IF($B73<>"",VLOOKUP($B73,Forb_Table,3),"") ->  | H73: =IF($B73<>"",VLOOKUP($B73,Forb_Table,10),"") ->  | I73: =IF($B73<>"",VLOOKUP($B73,Forb_Table,18),"") ->  | J73: =IF($B73<>"",VLOOKUP($B73,Forb_Table,5),"") ->  | K73: =IF($B73<>"",VLOOKUP($B73,Forb_Table,17),"") ->  | L73: =IF($B73<>"",VLOOKUP($B73,Forb_Table,12),"") ->  | M73: =IF(D74>0,D74,0) ->  | N73: =IF(B73="","",SUM(E73:E74)*J73) ->  | O73: =IF($B73<>"",VLOOKUP($B73,Forb_Table,11),"") ->  | P73: =IF($B73<>"",VLOOKUP($B73,Forb_Table,9),"") ->  | Q73: =IF($B73<>"",VLOOKUP($B73,Forb_Table,13),"") ->  | R73: =IF($B73<>"",VLOOKUP($B73,Forb_Table,45),"") ->  | S73: =IF($B73<>"",VLOOKUP($B73,Forb_Table,15),"") ->  | T73: =IF($B73<>"",VLOOKUP($B73,Forb_Table,16),"") ->  | U73: =IF($B73<>"",VLOOKUP($B73,Forb_Table,14),"") ->  | V73: =IF($B73<>"",VLOOKUP($B73,Forb_Table,6),"") ->  | W73: =IF($B73<>"",VLOOKUP($B73,Forb_Table,7),"") ->  | X73: =IF(C73="","",1) ->  | AB73: 1 | AP73: 0 | AR73: =IF(B73="","",VLOOKUP(B73,ForbsLegumes!$A$4:$AT$113,46)) -> 
C74: =IF($B73<>"",VLOOKUP($B73,Forb_Table,2),"") ->  | D74: =IF(AND(E73="",F73="",G73=""),"",F74/$F$155) ->  | E74: =IF(AND($D73="",$F73="",$G73=""),"",IF(AND($G73="",$F73<>""),$F73/$P73,IF(AND($F73="",$E73="",$G73<>""),$G73/16,""))) ->  | F74: =IF(AND(D73="",E73="",F73="",G73=""),"",IF(AND(E73="",G73=""),"",IF(E73<>"",E73*P73,IF(G73<>"",E74*P73,"")))) ->  | G74: =IF(AND(D73="",E73="",F73="",G73=""),"",IF(AND(E73="",F73=""),"",IF(E73<>"",E73*16,IF(F73<>"",E74*16,"")))) ->  | J74: =IF($B73<>"",VLOOKUP($B73,Forb_Table,4),"") ->  | P74: =IF($B73<>"",VLOOKUP($B73,Forb_Table,8),"") ->  | AB74: 1 | AP74: 0 | AR74: =IF(B74="","",VLOOKUP(B74,ForbsLegumes!$A$4:$AT$113,46)) -> 
C75: =IF($B75<>"",VLOOKUP($B75,Forb_Table,3),"") ->  | H75: =IF($B75<>"",VLOOKUP($B75,Forb_Table,10),"") ->  | I75: =IF($B75<>"",VLOOKUP($B75,Forb_Table,18),"") ->  | J75: =IF($B75<>"",VLOOKUP($B75,Forb_Table,5),"") ->  | K75: =IF($B75<>"",VLOOKUP($B75,Forb_Table,17),"") ->  | L75: =IF($B75<>"",VLOOKUP($B75,Forb_Table,12),"") ->  | M75: =IF(D76>0,D76,0) ->  | N75: =IF(B75="","",SUM(E75:E76)*J75) ->  | O75: =IF($B75<>"",VLOOKUP($B75,Forb_Table,11),"") ->  | P75: =IF($B75<>"",VLOOKUP($B75,Forb_Table,9),"") ->  | Q75: =IF($B75<>"",VLOOKUP($B75,Forb_Table,13),"") ->  | R75: =IF($B75<>"",VLOOKUP($B75,Forb_Table,45),"") ->  | S75: =IF($B75<>"",VLOOKUP($B75,Forb_Table,15),"") ->  | T75: =IF($B75<>"",VLOOKUP($B75,Forb_Table,16),"") ->  | U75: =IF($B75<>"",VLOOKUP($B75,Forb_Table,14),"") ->  | V75: =IF($B75<>"",VLOOKUP($B75,Forb_Table,6),"") ->  | W75: =IF($B75<>"",VLOOKUP($B75,Forb_Table,7),"") ->  | X75: =IF(C75="","",1) ->  | AB75: 1 | AP75: 0 | AR75: =IF(B75="","",VLOOKUP(B75,ForbsLegumes!$A$4:$AT$113,46)) -> 
C76: =IF($B75<>"",VLOOKUP($B75,Forb_Table,2),"") ->  | D76: =IF(AND(E75="",F75="",G75=""),"",F76/$F$155) ->  | E76: =IF(AND($D75="",$F75="",$G75=""),"",IF(AND($G75="",$F75<>""),$F75/$P75,IF(AND($F75="",$E75="",$G75<>""),$G75/16,""))) ->  | F76: =IF(AND(D75="",E75="",F75="",G75=""),"",IF(AND(E75="",G75=""),"",IF(E75<>"",E75*P75,IF(G75<>"",E76*P75,"")))) ->  | G76: =IF(AND(D75="",E75="",F75="",G75=""),"",IF(AND(E75="",F75=""),"",IF(E75<>"",E75*16,IF(F75<>"",E76*16,"")))) ->  | J76: =IF($B75<>"",VLOOKUP($B75,Forb_Table,4),"") ->  | P76: =IF($B75<>"",VLOOKUP($B75,Forb_Table,8),"") ->  | AB76: 1 | AP76: 0 | AR76: =IF(B76="","",VLOOKUP(B76,ForbsLegumes!$A$4:$AT$113,46)) -> 
C77: =IF($B77<>"",VLOOKUP($B77,Forb_Table,3),"") ->  | H77: =IF($B77<>"",VLOOKUP($B77,Forb_Table,10),"") ->  | I77: =IF($B77<>"",VLOOKUP($B77,Forb_Table,18),"") ->  | J77: =IF($B77<>"",VLOOKUP($B77,Forb_Table,5),"") ->  | K77: =IF($B77<>"",VLOOKUP($B77,Forb_Table,17),"") ->  | L77: =IF($B77<>"",VLOOKUP($B77,Forb_Table,12),"") ->  | M77: =IF(D78>0,D78,0) ->  | N77: =IF(B77="","",SUM(E77:E78)*J77) ->  | O77: =IF($B77<>"",VLOOKUP($B77,Forb_Table,11),"") ->  | P77: =IF($B77<>"",VLOOKUP($B77,Forb_Table,9),"") ->  | Q77: =IF($B77<>"",VLOOKUP($B77,Forb_Table,13),"") ->  | R77: =IF($B77<>"",VLOOKUP($B77,Forb_Table,45),"") ->  | S77: =IF($B77<>"",VLOOKUP($B77,Forb_Table,15),"") ->  | T77: =IF($B77<>"",VLOOKUP($B77,Forb_Table,16),"") ->  | U77: =IF($B77<>"",VLOOKUP($B77,Forb_Table,14),"") ->  | V77: =IF($B77<>"",VLOOKUP($B77,Forb_Table,6),"") ->  | W77: =IF($B77<>"",VLOOKUP($B77,Forb_Table,7),"") ->  | X77: =IF(C77="","",1) ->  | AB77: 1 | AP77: 0 | AR77: =IF(B77="","",VLOOKUP(B77,ForbsLegumes!$A$4:$AT$113,46)) -> 
C78: =IF($B77<>"",VLOOKUP($B77,Forb_Table,2),"") ->  | D78: =IF(AND(E77="",F77="",G77=""),"",F78/$F$155) ->  | E78: =IF(AND($D77="",$F77="",$G77=""),"",IF(AND($G77="",$F77<>""),$F77/$P77,IF(AND($F77="",$E77="",$G77<>""),$G77/16,""))) ->  | F78: =IF(AND(D77="",E77="",F77="",G77=""),"",IF(AND(E77="",G77=""),"",IF(E77<>"",E77*P77,IF(G77<>"",E78*P77,"")))) ->  | G78: =IF(AND(D77="",E77="",F77="",G77=""),"",IF(AND(E77="",F77=""),"",IF(E77<>"",E77*16,IF(F77<>"",E78*16,"")))) ->  | J78: =IF($B77<>"",VLOOKUP($B77,Forb_Table,4),"") ->  | P78: =IF($B77<>"",VLOOKUP($B77,Forb_Table,8),"") ->  | AB78: 1 | AP78: 0 | AR78: =IF(B78="","",VLOOKUP(B78,ForbsLegumes!$A$4:$AT$113,46)) -> 
C79: =IF($B79<>"",VLOOKUP($B79,Forb_Table,3),"") ->  | H79: =IF($B79<>"",VLOOKUP($B79,Forb_Table,10),"") ->  | I79: =IF($B79<>"",VLOOKUP($B79,Forb_Table,18),"") ->  | J79: =IF($B79<>"",VLOOKUP($B79,Forb_Table,5),"") ->  | K79: =IF($B79<>"",VLOOKUP($B79,Forb_Table,17),"") ->  | L79: =IF($B79<>"",VLOOKUP($B79,Forb_Table,12),"") ->  | M79: =IF(D80>0,D80,0) ->  | N79: =IF(B79="","",SUM(E79:E80)*J79) ->  | O79: =IF($B79<>"",VLOOKUP($B79,Forb_Table,11),"") ->  | P79: =IF($B79<>"",VLOOKUP($B79,Forb_Table,9),"") ->  | Q79: =IF($B79<>"",VLOOKUP($B79,Forb_Table,13),"") ->  | R79: =IF($B79<>"",VLOOKUP($B79,Forb_Table,45),"") ->  | S79: =IF($B79<>"",VLOOKUP($B79,Forb_Table,15),"") ->  | T79: =IF($B79<>"",VLOOKUP($B79,Forb_Table,16),"") ->  | U79: =IF($B79<>"",VLOOKUP($B79,Forb_Table,14),"") ->  | V79: =IF($B79<>"",VLOOKUP($B79,Forb_Table,6),"") ->  | W79: =IF($B79<>"",VLOOKUP($B79,Forb_Table,7),"") ->  | X79: =IF(C79="","",1) ->  | AB79: 1 | AP79: 0 | AR79: =IF(B79="","",VLOOKUP(B79,ForbsLegumes!$A$4:$AT$113,46)) -> 
C80: =IF($B79<>"",VLOOKUP($B79,Forb_Table,2),"") ->  | D80: =IF(AND(E79="",F79="",G79=""),"",F80/$F$155) ->  | E80: =IF(AND($D79="",$F79="",$G79=""),"",IF(AND($G79="",$F79<>""),$F79/$P79,IF(AND($F79="",$E79="",$G79<>""),$G79/16,""))) ->  | F80: =IF(AND(D79="",E79="",F79="",G79=""),"",IF(AND(E79="",G79=""),"",IF(E79<>"",E79*P79,IF(G79<>"",E80*P79,"")))) ->  | G80: =IF(AND(D79="",E79="",F79="",G79=""),"",IF(AND(E79="",F79=""),"",IF(E79<>"",E79*16,IF(F79<>"",E80*16,"")))) ->  | J80: =IF($B79<>"",VLOOKUP($B79,Forb_Table,4),"") ->  | P80: =IF($B79<>"",VLOOKUP($B79,Forb_Table,8),"") ->  | AB80: 1 | AP80: 0 | AR80: =IF(B80="","",VLOOKUP(B80,ForbsLegumes!$A$4:$AT$113,46)) -> 
C81: =IF($B81<>"",VLOOKUP($B81,Forb_Table,3),"") ->  | H81: =IF($B81<>"",VLOOKUP($B81,Forb_Table,10),"") ->  | I81: =IF($B81<>"",VLOOKUP($B81,Forb_Table,18),"") ->  | J81: =IF($B81<>"",VLOOKUP($B81,Forb_Table,5),"") ->  | K81: =IF($B81<>"",VLOOKUP($B81,Forb_Table,17),"") ->  | L81: =IF($B81<>"",VLOOKUP($B81,Forb_Table,12),"") ->  | M81: =IF(D82>0,D82,0) ->  | N81: =IF(B81="","",SUM(E81:E82)*J81) ->  | O81: =IF($B81<>"",VLOOKUP($B81,Forb_Table,11),"") ->  | P81: =IF($B81<>"",VLOOKUP($B81,Forb_Table,9),"") ->  | Q81: =IF($B81<>"",VLOOKUP($B81,Forb_Table,13),"") ->  | R81: =IF($B81<>"",VLOOKUP($B81,Forb_Table,45),"") ->  | S81: =IF($B81<>"",VLOOKUP($B81,Forb_Table,15),"") ->  | T81: =IF($B81<>"",VLOOKUP($B81,Forb_Table,16),"") ->  | U81: =IF($B81<>"",VLOOKUP($B81,Forb_Table,14),"") ->  | V81: =IF($B81<>"",VLOOKUP($B81,Forb_Table,6),"") ->  | W81: =IF($B81<>"",VLOOKUP($B81,Forb_Table,7),"") ->  | X81: =IF(C81="","",1) ->  | AB81: 1 | AP81: 0 | AR81: =IF(B81="","",VLOOKUP(B81,ForbsLegumes!$A$4:$AT$113,46)) -> 
C82: =IF($B81<>"",VLOOKUP($B81,Forb_Table,2),"") ->  | D82: =IF(AND(E81="",F81="",G81=""),"",F82/$F$155) ->  | E82: =IF(AND($D81="",$F81="",$G81=""),"",IF(AND($G81="",$F81<>""),$F81/$P81,IF(AND($F81="",$E81="",$G81<>""),$G81/16,""))) ->  | F82: =IF(AND(D81="",E81="",F81="",G81=""),"",IF(AND(E81="",G81=""),"",IF(E81<>"",E81*P81,IF(G81<>"",E82*P81,"")))) ->  | G82: =IF(AND(D81="",E81="",F81="",G81=""),"",IF(AND(E81="",F81=""),"",IF(E81<>"",E81*16,IF(F81<>"",E82*16,"")))) ->  | J82: =IF($B81<>"",VLOOKUP($B81,Forb_Table,4),"") ->  | P82: =IF($B81<>"",VLOOKUP($B81,Forb_Table,8),"") ->  | AB82: 1 | AP82: 0 | AR82: =IF(B82="","",VLOOKUP(B82,ForbsLegumes!$A$4:$AT$113,46)) -> 
C83: =IF($B83<>"",VLOOKUP($B83,Forb_Table,3),"") ->  | H83: =IF($B83<>"",VLOOKUP($B83,Forb_Table,10),"") ->  | I83: =IF($B83<>"",VLOOKUP($B83,Forb_Table,18),"") ->  | J83: =IF($B83<>"",VLOOKUP($B83,Forb_Table,5),"") ->  | K83: =IF($B83<>"",VLOOKUP($B83,Forb_Table,17),"") ->  | L83: =IF($B83<>"",VLOOKUP($B83,Forb_Table,12),"") ->  | M83: =IF(D84>0,D84,0) ->  | N83: =IF(B83="","",SUM(E83:E84)*J83) ->  | O83: =IF($B83<>"",VLOOKUP($B83,Forb_Table,11),"") ->  | P83: =IF($B83<>"",VLOOKUP($B83,Forb_Table,9),"") ->  | Q83: =IF($B83<>"",VLOOKUP($B83,Forb_Table,13),"") ->  | R83: =IF($B83<>"",VLOOKUP($B83,Forb_Table,45),"") ->  | S83: =IF($B83<>"",VLOOKUP($B83,Forb_Table,15),"") ->  | T83: =IF($B83<>"",VLOOKUP($B83,Forb_Table,16),"") ->  | U83: =IF($B83<>"",VLOOKUP($B83,Forb_Table,14),"") ->  | V83: =IF($B83<>"",VLOOKUP($B83,Forb_Table,6),"") ->  | W83: =IF($B83<>"",VLOOKUP($B83,Forb_Table,7),"") ->  | X83: =IF(C83="","",1) ->  | AB83: 1 | AP83: 0 | AR83: =IF(B83="","",VLOOKUP(B83,ForbsLegumes!$A$4:$AT$113,46)) -> 
C84: =IF($B83<>"",VLOOKUP($B83,Forb_Table,2),"") ->  | D84: =IF(AND(E83="",F83="",G83=""),"",F84/$F$155) ->  | E84: =IF(AND($D83="",$F83="",$G83=""),"",IF(AND($G83="",$F83<>""),$F83/$P83,IF(AND($F83="",$E83="",$G83<>""),$G83/16,""))) ->  | F84: =IF(AND(D83="",E83="",F83="",G83=""),"",IF(AND(E83="",G83=""),"",IF(E83<>"",E83*P83,IF(G83<>"",E84*P83,"")))) ->  | G84: =IF(AND(D83="",E83="",F83="",G83=""),"",IF(AND(E83="",F83=""),"",IF(E83<>"",E83*16,IF(F83<>"",E84*16,"")))) ->  | J84: =IF($B83<>"",VLOOKUP($B83,Forb_Table,4),"") ->  | P84: =IF($B83<>"",VLOOKUP($B83,Forb_Table,8),"") ->  | AB84: 1 | AP84: 0 | AR84: =IF(B84="","",VLOOKUP(B84,ForbsLegumes!$A$4:$AT$113,46)) -> 
C85: =IF($B85<>"",VLOOKUP($B85,Forb_Table,3),"") ->  | H85: =IF($B85<>"",VLOOKUP($B85,Forb_Table,10),"") ->  | I85: =IF($B85<>"",VLOOKUP($B85,Forb_Table,18),"") ->  | J85: =IF($B85<>"",VLOOKUP($B85,Forb_Table,5),"") ->  | K85: =IF($B85<>"",VLOOKUP($B85,Forb_Table,17),"") ->  | L85: =IF($B85<>"",VLOOKUP($B85,Forb_Table,12),"") ->  | M85: =IF(D86>0,D86,0) ->  | N85: =IF(B85="","",SUM(E85:E86)*J85) ->  | O85: =IF($B85<>"",VLOOKUP($B85,Forb_Table,11),"") ->  | P85: =IF($B85<>"",VLOOKUP($B85,Forb_Table,9),"") ->  | Q85: =IF($B85<>"",VLOOKUP($B85,Forb_Table,13),"") ->  | R85: =IF($B85<>"",VLOOKUP($B85,Forb_Table,45),"") ->  | S85: =IF($B85<>"",VLOOKUP($B85,Forb_Table,15),"") ->  | T85: =IF($B85<>"",VLOOKUP($B85,Forb_Table,16),"") ->  | U85: =IF($B85<>"",VLOOKUP($B85,Forb_Table,14),"") ->  | V85: =IF($B85<>"",VLOOKUP($B85,Forb_Table,6),"") ->  | W85: =IF($B85<>"",VLOOKUP($B85,Forb_Table,7),"") ->  | X85: =IF(C85="","",1) ->  | AB85: 1 | AP85: 0 | AR85: =IF(B85="","",VLOOKUP(B85,ForbsLegumes!$A$4:$AT$113,46)) -> 
C86: =IF($B85<>"",VLOOKUP($B85,Forb_Table,2),"") ->  | D86: =IF(AND(E85="",F85="",G85=""),"",F86/$F$155) ->  | E86: =IF(AND($D85="",$F85="",$G85=""),"",IF(AND($G85="",$F85<>""),$F85/$P85,IF(AND($F85="",$E85="",$G85<>""),$G85/16,""))) ->  | F86: =IF(AND(D85="",E85="",F85="",G85=""),"",IF(AND(E85="",G85=""),"",IF(E85<>"",E85*P85,IF(G85<>"",E86*P85,"")))) ->  | G86: =IF(AND(D85="",E85="",F85="",G85=""),"",IF(AND(E85="",F85=""),"",IF(E85<>"",E85*16,IF(F85<>"",E86*16,"")))) ->  | J86: =IF($B85<>"",VLOOKUP($B85,Forb_Table,4),"") ->  | P86: =IF($B85<>"",VLOOKUP($B85,Forb_Table,8),"") ->  | AB86: 1 | AP86: 0 | AR86: =IF(B86="","",VLOOKUP(B86,ForbsLegumes!$A$4:$AT$113,46)) -> 
C87: =IF($B87<>"",VLOOKUP($B87,Forb_Table,3),"") ->  | H87: =IF($B87<>"",VLOOKUP($B87,Forb_Table,10),"") ->  | I87: =IF($B87<>"",VLOOKUP($B87,Forb_Table,18),"") ->  | J87: =IF($B87<>"",VLOOKUP($B87,Forb_Table,5),"") ->  | K87: =IF($B87<>"",VLOOKUP($B87,Forb_Table,17),"") ->  | L87: =IF($B87<>"",VLOOKUP($B87,Forb_Table,12),"") ->  | M87: =IF(D88>0,D88,0) ->  | N87: =IF(B87="","",SUM(E87:E88)*J87) ->  | O87: =IF($B87<>"",VLOOKUP($B87,Forb_Table,11),"") ->  | P87: =IF($B87<>"",VLOOKUP($B87,Forb_Table,9),"") ->  | Q87: =IF($B87<>"",VLOOKUP($B87,Forb_Table,13),"") ->  | R87: =IF($B87<>"",VLOOKUP($B87,Forb_Table,45),"") ->  | S87: =IF($B87<>"",VLOOKUP($B87,Forb_Table,15),"") ->  | T87: =IF($B87<>"",VLOOKUP($B87,Forb_Table,16),"") ->  | U87: =IF($B87<>"",VLOOKUP($B87,Forb_Table,14),"") ->  | V87: =IF($B87<>"",VLOOKUP($B87,Forb_Table,6),"") ->  | W87: =IF($B87<>"",VLOOKUP($B87,Forb_Table,7),"") ->  | X87: =IF(C87="","",1) ->  | AB87: 1 | AP87: 0 | AR87: =IF(B87="","",VLOOKUP(B87,ForbsLegumes!$A$4:$AT$113,46)) -> 
C88: =IF($B87<>"",VLOOKUP($B87,Forb_Table,2),"") ->  | D88: =IF(AND(E87="",F87="",G87=""),"",F88/$F$155) ->  | E88: =IF(AND($D87="",$F87="",$G87=""),"",IF(AND($G87="",$F87<>""),$F87/$P87,IF(AND($F87="",$E87="",$G87<>""),$G87/16,""))) ->  | F88: =IF(AND(D87="",E87="",F87="",G87=""),"",IF(AND(E87="",G87=""),"",IF(E87<>"",E87*P87,IF(G87<>"",E88*P87,"")))) ->  | G88: =IF(AND(D87="",E87="",F87="",G87=""),"",IF(AND(E87="",F87=""),"",IF(E87<>"",E87*16,IF(F87<>"",E88*16,"")))) ->  | J88: =IF($B87<>"",VLOOKUP($B87,Forb_Table,4),"") ->  | P88: =IF($B87<>"",VLOOKUP($B87,Forb_Table,8),"") ->  | AB88: 1 | AP88: 0 | AR88: =IF(B88="","",VLOOKUP(B88,ForbsLegumes!$A$4:$AT$113,46)) -> 
C89: =IF($B89<>"",VLOOKUP($B89,Forb_Table,3),"") ->  | H89: =IF($B89<>"",VLOOKUP($B89,Forb_Table,10),"") ->  | I89: =IF($B89<>"",VLOOKUP($B89,Forb_Table,18),"") ->  | J89: =IF($B89<>"",VLOOKUP($B89,Forb_Table,5),"") ->  | K89: =IF($B89<>"",VLOOKUP($B89,Forb_Table,17),"") ->  | L89: =IF($B89<>"",VLOOKUP($B89,Forb_Table,12),"") ->  | M89: =IF(D90>0,D90,0) ->  | N89: =IF(B89="","",SUM(E89:E90)*J89) ->  | O89: =IF($B89<>"",VLOOKUP($B89,Forb_Table,11),"") ->  | P89: =IF($B89<>"",VLOOKUP($B89,Forb_Table,9),"") ->  | Q89: =IF($B89<>"",VLOOKUP($B89,Forb_Table,13),"") ->  | R89: =IF($B89<>"",VLOOKUP($B89,Forb_Table,45),"") ->  | S89: =IF($B89<>"",VLOOKUP($B89,Forb_Table,15),"") ->  | T89: =IF($B89<>"",VLOOKUP($B89,Forb_Table,16),"") ->  | U89: =IF($B89<>"",VLOOKUP($B89,Forb_Table,14),"") ->  | V89: =IF($B89<>"",VLOOKUP($B89,Forb_Table,6),"") ->  | W89: =IF($B89<>"",VLOOKUP($B89,Forb_Table,7),"") ->  | X89: =IF(C89="","",1) ->  | AB89: 1 | AP89: 0 | AR89: =IF(B89="","",VLOOKUP(B89,ForbsLegumes!$A$4:$AT$113,46)) -> 
C90: =IF($B89<>"",VLOOKUP($B89,Forb_Table,2),"") ->  | D90: =IF(AND(E89="",F89="",G89=""),"",F90/$F$155) ->  | E90: =IF(AND($D89="",$F89="",$G89=""),"",IF(AND($G89="",$F89<>""),$F89/$P89,IF(AND($F89="",$E89="",$G89<>""),$G89/16,""))) ->  | F90: =IF(AND(D89="",E89="",F89="",G89=""),"",IF(AND(E89="",G89=""),"",IF(E89<>"",E89*P89,IF(G89<>"",E90*P89,"")))) ->  | G90: =IF(AND(D89="",E89="",F89="",G89=""),"",IF(AND(E89="",F89=""),"",IF(E89<>"",E89*16,IF(F89<>"",E90*16,"")))) ->  | J90: =IF($B89<>"",VLOOKUP($B89,Forb_Table,4),"") ->  | P90: =IF($B89<>"",VLOOKUP($B89,Forb_Table,8),"") ->  | AB90: 1 | AP90: 0 | AR90: =IF(B90="","",VLOOKUP(B90,ForbsLegumes!$A$4:$AT$113,46)) -> 
C91: =IF($B91<>"",VLOOKUP($B91,Forb_Table,3),"") ->  | H91: =IF($B91<>"",VLOOKUP($B91,Forb_Table,10),"") ->  | I91: =IF($B91<>"",VLOOKUP($B91,Forb_Table,18),"") ->  | J91: =IF($B91<>"",VLOOKUP($B91,Forb_Table,5),"") ->  | K91: =IF($B91<>"",VLOOKUP($B91,Forb_Table,17),"") ->  | L91: =IF($B91<>"",VLOOKUP($B91,Forb_Table,12),"") ->  | M91: =IF(D92>0,D92,0) ->  | N91: =IF(B91="","",SUM(E91:E92)*J91) ->  | O91: =IF($B91<>"",VLOOKUP($B91,Forb_Table,11),"") ->  | P91: =IF($B91<>"",VLOOKUP($B91,Forb_Table,9),"") ->  | Q91: =IF($B91<>"",VLOOKUP($B91,Forb_Table,13),"") ->  | R91: =IF($B91<>"",VLOOKUP($B91,Forb_Table,45),"") ->  | S91: =IF($B91<>"",VLOOKUP($B91,Forb_Table,15),"") ->  | T91: =IF($B91<>"",VLOOKUP($B91,Forb_Table,16),"") ->  | U91: =IF($B91<>"",VLOOKUP($B91,Forb_Table,14),"") ->  | V91: =IF($B91<>"",VLOOKUP($B91,Forb_Table,6),"") ->  | W91: =IF($B91<>"",VLOOKUP($B91,Forb_Table,7),"") ->  | X91: =IF(C91="","",1) ->  | AB91: 1 | AP91: 0 | AR91: =IF(B91="","",VLOOKUP(B91,ForbsLegumes!$A$4:$AT$113,46)) -> 
C92: =IF($B91<>"",VLOOKUP($B91,Forb_Table,2),"") ->  | D92: =IF(AND(E91="",F91="",G91=""),"",F92/$F$155) ->  | E92: =IF(AND($D91="",$F91="",$G91=""),"",IF(AND($G91="",$F91<>""),$F91/$P91,IF(AND($F91="",$E91="",$G91<>""),$G91/16,""))) ->  | F92: =IF(AND(D91="",E91="",F91="",G91=""),"",IF(AND(E91="",G91=""),"",IF(E91<>"",E91*P91,IF(G91<>"",E92*P91,"")))) ->  | G92: =IF(AND(D91="",E91="",F91="",G91=""),"",IF(AND(E91="",F91=""),"",IF(E91<>"",E91*16,IF(F91<>"",E92*16,"")))) ->  | J92: =IF($B91<>"",VLOOKUP($B91,Forb_Table,4),"") ->  | P92: =IF($B91<>"",VLOOKUP($B91,Forb_Table,8),"") ->  | AB92: 1 | AP92: 0 | AR92: =IF(B92="","",VLOOKUP(B92,ForbsLegumes!$A$4:$AT$113,46)) -> 
C93: =IF($B93<>"",VLOOKUP($B93,Forb_Table,3),"") ->  | H93: =IF($B93<>"",VLOOKUP($B93,Forb_Table,10),"") ->  | I93: =IF($B93<>"",VLOOKUP($B93,Forb_Table,18),"") ->  | J93: =IF($B93<>"",VLOOKUP($B93,Forb_Table,5),"") ->  | K93: =IF($B93<>"",VLOOKUP($B93,Forb_Table,17),"") ->  | L93: =IF($B93<>"",VLOOKUP($B93,Forb_Table,12),"") ->  | M93: =IF(D94>0,D94,0) ->  | N93: =IF(B93="","",SUM(E93:E94)*J93) ->  | O93: =IF($B93<>"",VLOOKUP($B93,Forb_Table,11),"") ->  | P93: =IF($B93<>"",VLOOKUP($B93,Forb_Table,9),"") ->  | Q93: =IF($B93<>"",VLOOKUP($B93,Forb_Table,13),"") ->  | R93: =IF($B93<>"",VLOOKUP($B93,Forb_Table,45),"") ->  | S93: =IF($B93<>"",VLOOKUP($B93,Forb_Table,15),"") ->  | T93: =IF($B93<>"",VLOOKUP($B93,Forb_Table,16),"") ->  | U93: =IF($B93<>"",VLOOKUP($B93,Forb_Table,14),"") ->  | V93: =IF($B93<>"",VLOOKUP($B93,Forb_Table,6),"") ->  | W93: =IF($B93<>"",VLOOKUP($B93,Forb_Table,7),"") ->  | X93: =IF(C93="","",1) ->  | AB93: 1 | AP93: 0 | AR93: =IF(B93="","",VLOOKUP(B93,ForbsLegumes!$A$4:$AT$113,46)) -> 
C94: =IF($B93<>"",VLOOKUP($B93,Forb_Table,2),"") ->  | D94: =IF(AND(E93="",F93="",G93=""),"",F94/$F$155) ->  | E94: =IF(AND($D93="",$F93="",$G93=""),"",IF(AND($G93="",$F93<>""),$F93/$P93,IF(AND($F93="",$E93="",$G93<>""),$G93/16,""))) ->  | F94: =IF(AND(D93="",E93="",F93="",G93=""),"",IF(AND(E93="",G93=""),"",IF(E93<>"",E93*P93,IF(G93<>"",E94*P93,"")))) ->  | G94: =IF(AND(D93="",E93="",F93="",G93=""),"",IF(AND(E93="",F93=""),"",IF(E93<>"",E93*16,IF(F93<>"",E94*16,"")))) ->  | J94: =IF($B93<>"",VLOOKUP($B93,Forb_Table,4),"") ->  | P94: =IF($B93<>"",VLOOKUP($B93,Forb_Table,8),"") ->  | AB94: 1 | AP94: 0 | AR94: =IF(B94="","",VLOOKUP(B94,ForbsLegumes!$A$4:$AT$113,46)) -> 
C95: =IF($B95<>"",VLOOKUP($B95,Forb_Table,3),"") ->  | H95: =IF($B95<>"",VLOOKUP($B95,Forb_Table,10),"") ->  | I95: =IF($B95<>"",VLOOKUP($B95,Forb_Table,18),"") ->  | J95: =IF($B95<>"",VLOOKUP($B95,Forb_Table,5),"") ->  | K95: =IF($B95<>"",VLOOKUP($B95,Forb_Table,17),"") ->  | L95: =IF($B95<>"",VLOOKUP($B95,Forb_Table,12),"") ->  | M95: =IF(D96>0,D96,0) ->  | N95: =IF(B95="","",SUM(E95:E96)*J95) ->  | O95: =IF($B95<>"",VLOOKUP($B95,Forb_Table,11),"") ->  | P95: =IF($B95<>"",VLOOKUP($B95,Forb_Table,9),"") ->  | Q95: =IF($B95<>"",VLOOKUP($B95,Forb_Table,13),"") ->  | R95: =IF($B95<>"",VLOOKUP($B95,Forb_Table,45),"") ->  | S95: =IF($B95<>"",VLOOKUP($B95,Forb_Table,15),"") ->  | T95: =IF($B95<>"",VLOOKUP($B95,Forb_Table,16),"") ->  | U95: =IF($B95<>"",VLOOKUP($B95,Forb_Table,14),"") ->  | V95: =IF($B95<>"",VLOOKUP($B95,Forb_Table,6),"") ->  | W95: =IF($B95<>"",VLOOKUP($B95,Forb_Table,7),"") ->  | X95: =IF(C95="","",1) ->  | AB95: 1 | AO95: =IF($B95="","",IF(AND($AR95=1,$C96="Forb"),SUM($E95:$E96),"")) ->  | AP95: =IF(B95="",0,SUM(F95:F96)/$F$155) -> 0 | AR95: =IF(B95="","",VLOOKUP(B95,ForbsLegumes!$A$4:$AT$113,46)) -> 
C96: =IF($B95<>"",VLOOKUP($B95,Forb_Table,2),"") ->  | D96: =IF(AND(E95="",F95="",G95=""),"",F96/$F$155) ->  | E96: =IF(AND($D95="",$F95="",$G95=""),"",IF(AND($G95="",$F95<>""),$F95/$P95,IF(AND($F95="",$E95="",$G95<>""),$G95/16,""))) ->  | F96: =IF(AND(D95="",E95="",F95="",G95=""),"",IF(AND(E95="",G95=""),"",IF(E95<>"",E95*P95,IF(G95<>"",E96*P95,"")))) ->  | G96: =IF(AND(D95="",E95="",F95="",G95=""),"",IF(AND(E95="",F95=""),"",IF(E95<>"",E95*16,IF(F95<>"",E96*16,"")))) ->  | J96: =IF($B95<>"",VLOOKUP($B95,Forb_Table,4),"") ->  | P96: =IF($B95<>"",VLOOKUP($B95,Forb_Table,8),"") ->  | AB96: 1 | AP96: 0 | AR96: =IF(B96="","",VLOOKUP(B96,ForbsLegumes!$A$4:$AT$113,46)) -> 
C97: =IF($B97<>"",VLOOKUP($B97,Forb_Table,3),"") ->  | H97: =IF($B97<>"",VLOOKUP($B97,Forb_Table,10),"") ->  | I97: =IF($B97<>"",VLOOKUP($B97,Forb_Table,18),"") ->  | J97: =IF($B97<>"",VLOOKUP($B97,Forb_Table,5),"") ->  | K97: =IF($B97<>"",VLOOKUP($B97,Forb_Table,17),"") ->  | L97: =IF($B97<>"",VLOOKUP($B97,Forb_Table,12),"") ->  | M97: =IF(D98>0,D98,0) ->  | N97: =IF(B97="","",SUM(E97:E98)*J97) ->  | O97: =IF($B97<>"",VLOOKUP($B97,Forb_Table,11),"") ->  | P97: =IF($B97<>"",VLOOKUP($B97,Forb_Table,9),"") ->  | Q97: =IF($B97<>"",VLOOKUP($B97,Forb_Table,13),"") ->  | R97: =IF($B97<>"",VLOOKUP($B97,Forb_Table,45),"") ->  | S97: =IF($B97<>"",VLOOKUP($B97,Forb_Table,15),"") ->  | T97: =IF($B97<>"",VLOOKUP($B97,Forb_Table,16),"") ->  | U97: =IF($B97<>"",VLOOKUP($B97,Forb_Table,14),"") ->  | V97: =IF($B97<>"",VLOOKUP($B97,Forb_Table,6),"") ->  | W97: =IF($B97<>"",VLOOKUP($B97,Forb_Table,7),"") ->  | X97: =IF(C97="","",1) ->  | AB97: 1 | AP97: 0 | AR97: =IF(B97="","",VLOOKUP(B97,ForbsLegumes!$A$4:$AT$113,46)) -> 
C98: =IF($B97<>"",VLOOKUP($B97,Forb_Table,2),"") ->  | D98: =IF(AND(E97="",F97="",G97=""),"",F98/$F$155) ->  | E98: =IF(AND($D97="",$F97="",$G97=""),"",IF(AND($G97="",$F97<>""),$F97/$P97,IF(AND($F97="",$E97="",$G97<>""),$G97/16,""))) ->  | F98: =IF(AND(D97="",E97="",F97="",G97=""),"",IF(AND(E97="",G97=""),"",IF(E97<>"",E97*P97,IF(G97<>"",E98*P97,"")))) ->  | G98: =IF(AND(D97="",E97="",F97="",G97=""),"",IF(AND(E97="",F97=""),"",IF(E97<>"",E97*16,IF(F97<>"",E98*16,"")))) ->  | J98: =IF($B97<>"",VLOOKUP($B97,Forb_Table,4),"") ->  | P98: =IF($B97<>"",VLOOKUP($B97,Forb_Table,8),"") ->  | AB98: 1 | AP98: 0 | AR98: =IF(B98="","",VLOOKUP(B98,ForbsLegumes!$A$4:$AT$113,46)) -> 
C99: =IF($B99<>"",VLOOKUP($B99,Forb_Table,3),"") ->  | H99: =IF($B99<>"",VLOOKUP($B99,Forb_Table,10),"") ->  | I99: =IF($B99<>"",VLOOKUP($B99,Forb_Table,18),"") ->  | J99: =IF($B99<>"",VLOOKUP($B99,Forb_Table,5),"") ->  | K99: =IF($B99<>"",VLOOKUP($B99,Forb_Table,17),"") ->  | L99: =IF($B99<>"",VLOOKUP($B99,Forb_Table,12),"") ->  | M99: =IF(D100>0,D100,0) ->  | N99: =IF(B99="","",SUM(E99:E100)*J99) ->  | O99: =IF($B99<>"",VLOOKUP($B99,Forb_Table,11),"") ->  | P99: =IF($B99<>"",VLOOKUP($B99,Forb_Table,9),"") ->  | Q99: =IF($B99<>"",VLOOKUP($B99,Forb_Table,13),"") ->  | R99: =IF($B99<>"",VLOOKUP($B99,Forb_Table,45),"") ->  | S99: =IF($B99<>"",VLOOKUP($B99,Forb_Table,15),"") ->  | T99: =IF($B99<>"",VLOOKUP($B99,Forb_Table,16),"") ->  | U99: =IF($B99<>"",VLOOKUP($B99,Forb_Table,14),"") ->  | V99: =IF($B99<>"",VLOOKUP($B99,Forb_Table,6),"") ->  | W99: =IF($B99<>"",VLOOKUP($B99,Forb_Table,7),"") ->  | X99: =IF(C99="","",1) ->  | AB99: 1 | AP99: 0 | AR99: =IF(B99="","",VLOOKUP(B99,ForbsLegumes!$A$4:$AT$113,46)) -> 
C100: =IF($B99<>"",VLOOKUP($B99,Forb_Table,2),"") ->  | D100: =IF(AND(E99="",F99="",G99=""),"",F100/$F$155) ->  | E100: =IF(AND($D99="",$F99="",$G99=""),"",IF(AND($G99="",$F99<>""),$F99/$P99,IF(AND($F99="",$E99="",$G99<>""),$G99/16,""))) ->  | F100: =IF(AND(D99="",E99="",F99="",G99=""),"",IF(AND(E99="",G99=""),"",IF(E99<>"",E99*P99,IF(G99<>"",E100*P99,"")))) ->  | G100: =IF(AND(D99="",E99="",F99="",G99=""),"",IF(AND(E99="",F99=""),"",IF(E99<>"",E99*16,IF(F99<>"",E100*16,"")))) ->  | J100: =IF($B99<>"",VLOOKUP($B99,Forb_Table,4),"") ->  | P100: =IF($B99<>"",VLOOKUP($B99,Forb_Table,8),"") ->  | AB100: 1 | AP100: 0 | AR100: =IF(B100="","",VLOOKUP(B100,ForbsLegumes!$A$4:$AT$113,46)) -> 
C101: =IF($B101<>"",VLOOKUP($B101,Forb_Table,3),"") ->  | H101: =IF($B101<>"",VLOOKUP($B101,Forb_Table,10),"") ->  | I101: =IF($B101<>"",VLOOKUP($B101,Forb_Table,18),"") ->  | J101: =IF($B101<>"",VLOOKUP($B101,Forb_Table,5),"") ->  | K101: =IF($B101<>"",VLOOKUP($B101,Forb_Table,17),"") ->  | L101: =IF($B101<>"",VLOOKUP($B101,Forb_Table,12),"") ->  | M101: =IF(D102>0,D102,0) ->  | N101: =IF(B101="","",SUM(E101:E102)*J101) ->  | O101: =IF($B101<>"",VLOOKUP($B101,Forb_Table,11),"") ->  | P101: =IF($B101<>"",VLOOKUP($B101,Forb_Table,9),"") ->  | Q101: =IF($B101<>"",VLOOKUP($B101,Forb_Table,13),"") ->  | R101: =IF($B101<>"",VLOOKUP($B101,Forb_Table,45),"") ->  | S101: =IF($B101<>"",VLOOKUP($B101,Forb_Table,15),"") ->  | T101: =IF($B101<>"",VLOOKUP($B101,Forb_Table,16),"") ->  | U101: =IF($B101<>"",VLOOKUP($B101,Forb_Table,14),"") ->  | V101: =IF($B101<>"",VLOOKUP($B101,Forb_Table,6),"") ->  | W101: =IF($B101<>"",VLOOKUP($B101,Forb_Table,7),"") ->  | X101: =IF(C101="","",1) ->  | AB101: 1 | AP101: 0 | AR101: =IF(B101="","",VLOOKUP(B101,ForbsLegumes!$A$4:$AT$113,46)) -> 
C102: =IF($B101<>"",VLOOKUP($B101,Forb_Table,2),"") ->  | D102: =IF(AND(E101="",F101="",G101=""),"",F102/$F$155) ->  | E102: =IF(AND($D101="",$F101="",$G101=""),"",IF(AND($G101="",$F101<>""),$F101/$P101,IF(AND($F101="",$E101="",$G101<>""),$G101/16,""))) ->  | F102: =IF(AND(D101="",E101="",F101="",G101=""),"",IF(AND(E101="",G101=""),"",IF(E101<>"",E101*P101,IF(G101<>"",E102*P101,"")))) ->  | G102: =IF(AND(D101="",E101="",F101="",G101=""),"",IF(AND(E101="",F101=""),"",IF(E101<>"",E101*16,IF(F101<>"",E102*16,"")))) ->  | J102: =IF($B101<>"",VLOOKUP($B101,Forb_Table,4),"") ->  | P102: =IF($B101<>"",VLOOKUP($B101,Forb_Table,8),"") ->  | AB102: 1 | AP102: 0 | AR102: =IF(B102="","",VLOOKUP(B102,ForbsLegumes!$A$4:$AT$113,46)) -> 
C103: =IF($B103<>"",VLOOKUP($B103,Forb_Table,3),"") ->  | H103: =IF($B103<>"",VLOOKUP($B103,Forb_Table,10),"") ->  | I103: =IF($B103<>"",VLOOKUP($B103,Forb_Table,18),"") ->  | J103: =IF($B103<>"",VLOOKUP($B103,Forb_Table,5),"") ->  | K103: =IF($B103<>"",VLOOKUP($B103,Forb_Table,17),"") ->  | L103: =IF($B103<>"",VLOOKUP($B103,Forb_Table,12),"") ->  | M103: =IF(D104>0,D104,0) ->  | N103: =IF(B103="","",SUM(E103:E104)*J103) ->  | O103: =IF($B103<>"",VLOOKUP($B103,Forb_Table,11),"") ->  | P103: =IF($B103<>"",VLOOKUP($B103,Forb_Table,9),"") ->  | Q103: =IF($B103<>"",VLOOKUP($B103,Forb_Table,13),"") ->  | R103: =IF($B103<>"",VLOOKUP($B103,Forb_Table,45),"") ->  | S103: =IF($B103<>"",VLOOKUP($B103,Forb_Table,15),"") ->  | T103: =IF($B103<>"",VLOOKUP($B103,Forb_Table,16),"") ->  | U103: =IF($B103<>"",VLOOKUP($B103,Forb_Table,14),"") ->  | V103: =IF($B103<>"",VLOOKUP($B103,Forb_Table,6),"") ->  | W103: =IF($B103<>"",VLOOKUP($B103,Forb_Table,7),"") ->  | X103: =IF(C103="","",1) ->  | AB103: 1 | AP103: 0 | AR103: =IF(B103="","",VLOOKUP(B103,ForbsLegumes!$A$4:$AT$113,46)) -> 
C104: =IF($B103<>"",VLOOKUP($B103,Forb_Table,2),"") ->  | D104: =IF(AND(E103="",F103="",G103=""),"",F104/$F$155) ->  | E104: =IF(AND($D103="",$F103="",$G103=""),"",IF(AND($G103="",$F103<>""),$F103/$P103,IF(AND($F103="",$E103="",$G103<>""),$G103/16,""))) ->  | F104: =IF(AND(D103="",E103="",F103="",G103=""),"",IF(AND(E103="",G103=""),"",IF(E103<>"",E103*P103,IF(G103<>"",E104*P103,"")))) ->  | G104: =IF(AND(D103="",E103="",F103="",G103=""),"",IF(AND(E103="",F103=""),"",IF(E103<>"",E103*16,IF(F103<>"",E104*16,"")))) ->  | J104: =IF($B103<>"",VLOOKUP($B103,Forb_Table,4),"") ->  | P104: =IF($B103<>"",VLOOKUP($B103,Forb_Table,8),"") ->  | AB104: 1 | AP104: 0 | AR104: =IF(B104="","",VLOOKUP(B104,ForbsLegumes!$A$4:$AT$113,46)) -> 
C105: =IF($B105<>"",VLOOKUP($B105,Forb_Table,3),"") ->  | H105: =IF($B105<>"",VLOOKUP($B105,Forb_Table,10),"") ->  | I105: =IF($B105<>"",VLOOKUP($B105,Forb_Table,18),"") ->  | J105: =IF($B105<>"",VLOOKUP($B105,Forb_Table,5),"") ->  | K105: =IF($B105<>"",VLOOKUP($B105,Forb_Table,17),"") ->  | L105: =IF($B105<>"",VLOOKUP($B105,Forb_Table,12),"") ->  | M105: =IF(D106>0,D106,0) ->  | N105: =IF(B105="","",SUM(E105:E106)*J105) ->  | O105: =IF($B105<>"",VLOOKUP($B105,Forb_Table,11),"") ->  | P105: =IF($B105<>"",VLOOKUP($B105,Forb_Table,9),"") ->  | Q105: =IF($B105<>"",VLOOKUP($B105,Forb_Table,13),"") ->  | R105: =IF($B105<>"",VLOOKUP($B105,Forb_Table,45),"") ->  | S105: =IF($B105<>"",VLOOKUP($B105,Forb_Table,15),"") ->  | T105: =IF($B105<>"",VLOOKUP($B105,Forb_Table,16),"") ->  | U105: =IF($B105<>"",VLOOKUP($B105,Forb_Table,14),"") ->  | V105: =IF($B105<>"",VLOOKUP($B105,Forb_Table,6),"") ->  | W105: =IF($B105<>"",VLOOKUP($B105,Forb_Table,7),"") ->  | X105: =IF(C105="","",1) ->  | AB105: 1 | AP105: 0 | AR105: =IF(B105="","",VLOOKUP(B105,ForbsLegumes!$A$4:$AT$113,46)) -> 
C106: =IF($B105<>"",VLOOKUP($B105,Forb_Table,2),"") ->  | D106: =IF(AND(E105="",F105="",G105=""),"",F106/$F$155) ->  | E106: =IF(AND($D105="",$F105="",$G105=""),"",IF(AND($G105="",$F105<>""),$F105/$P105,IF(AND($F105="",$E105="",$G105<>""),$G105/16,""))) ->  | F106: =IF(AND(D105="",E105="",F105="",G105=""),"",IF(AND(E105="",G105=""),"",IF(E105<>"",E105*P105,IF(G105<>"",E106*P105,"")))) ->  | G106: =IF(AND(D105="",E105="",F105="",G105=""),"",IF(AND(E105="",F105=""),"",IF(E105<>"",E105*16,IF(F105<>"",E106*16,"")))) ->  | J106: =IF($B105<>"",VLOOKUP($B105,Forb_Table,4),"") ->  | P106: =IF($B105<>"",VLOOKUP($B105,Forb_Table,8),"") ->  | AB106: 1 | AP106: 0 | AR106: =IF(B106="","",VLOOKUP(B106,ForbsLegumes!$A$4:$AT$113,46)) -> 
C107: =IF($B107<>"",VLOOKUP($B107,Forb_Table,3),"") ->  | H107: =IF($B107<>"",VLOOKUP($B107,Forb_Table,10),"") ->  | I107: =IF($B107<>"",VLOOKUP($B107,Forb_Table,18),"") ->  | J107: =IF($B107<>"",VLOOKUP($B107,Forb_Table,5),"") ->  | K107: =IF($B107<>"",VLOOKUP($B107,Forb_Table,17),"") ->  | L107: =IF($B107<>"",VLOOKUP($B107,Forb_Table,12),"") ->  | M107: =IF(D108>0,D108,0) ->  | N107: =IF(B107="","",SUM(E107:E108)*J107) ->  | O107: =IF($B107<>"",VLOOKUP($B107,Forb_Table,11),"") ->  | P107: =IF($B107<>"",VLOOKUP($B107,Forb_Table,9),"") ->  | Q107: =IF($B107<>"",VLOOKUP($B107,Forb_Table,13),"") ->  | R107: =IF($B107<>"",VLOOKUP($B107,Forb_Table,45),"") ->  | S107: =IF($B107<>"",VLOOKUP($B107,Forb_Table,15),"") ->  | T107: =IF($B107<>"",VLOOKUP($B107,Forb_Table,16),"") ->  | U107: =IF($B107<>"",VLOOKUP($B107,Forb_Table,14),"") ->  | V107: =IF($B107<>"",VLOOKUP($B107,Forb_Table,6),"") ->  | W107: =IF($B107<>"",VLOOKUP($B107,Forb_Table,7),"") ->  | X107: =IF(C107="","",1) ->  | AB107: 1 | AP107: 0 | AR107: =IF(B107="","",VLOOKUP(B107,ForbsLegumes!$A$4:$AT$113,46)) -> 
C108: =IF($B107<>"",VLOOKUP($B107,Forb_Table,2),"") ->  | D108: =IF(AND(E107="",F107="",G107=""),"",F108/$F$155) ->  | E108: =IF(AND($D107="",$F107="",$G107=""),"",IF(AND($G107="",$F107<>""),$F107/$P107,IF(AND($F107="",$E107="",$G107<>""),$G107/16,""))) ->  | F108: =IF(AND(D107="",E107="",F107="",G107=""),"",IF(AND(E107="",G107=""),"",IF(E107<>"",E107*P107,IF(G107<>"",E108*P107,"")))) ->  | G108: =IF(AND(D107="",E107="",F107="",G107=""),"",IF(AND(E107="",F107=""),"",IF(E107<>"",E107*16,IF(F107<>"",E108*16,"")))) ->  | J108: =IF($B107<>"",VLOOKUP($B107,Forb_Table,4),"") ->  | P108: =IF($B107<>"",VLOOKUP($B107,Forb_Table,8),"") ->  | AB108: 1 | AP108: 0 | AR108: =IF(B108="","",VLOOKUP(B108,ForbsLegumes!$A$4:$AT$113,46)) -> 
C109: =IF($B109<>"",VLOOKUP($B109,Forb_Table,3),"") ->  | H109: =IF($B109<>"",VLOOKUP($B109,Forb_Table,10),"") ->  | I109: =IF($B109<>"",VLOOKUP($B109,Forb_Table,18),"") ->  | J109: =IF($B109<>"",VLOOKUP($B109,Forb_Table,5),"") ->  | K109: =IF($B109<>"",VLOOKUP($B109,Forb_Table,17),"") ->  | L109: =IF($B109<>"",VLOOKUP($B109,Forb_Table,12),"") ->  | M109: =IF(D110>0,D110,0) ->  | N109: =IF(B109="","",SUM(E109:E110)*J109) ->  | O109: =IF($B109<>"",VLOOKUP($B109,Forb_Table,11),"") ->  | P109: =IF($B109<>"",VLOOKUP($B109,Forb_Table,9),"") ->  | Q109: =IF($B109<>"",VLOOKUP($B109,Forb_Table,13),"") ->  | R109: =IF($B109<>"",VLOOKUP($B109,Forb_Table,45),"") ->  | S109: =IF($B109<>"",VLOOKUP($B109,Forb_Table,15),"") ->  | T109: =IF($B109<>"",VLOOKUP($B109,Forb_Table,16),"") ->  | U109: =IF($B109<>"",VLOOKUP($B109,Forb_Table,14),"") ->  | V109: =IF($B109<>"",VLOOKUP($B109,Forb_Table,6),"") ->  | W109: =IF($B109<>"",VLOOKUP($B109,Forb_Table,7),"") ->  | X109: =IF(C109="","",1) ->  | AB109: 1 | AP109: 0 | AR109: =IF(B109="","",VLOOKUP(B109,ForbsLegumes!$A$4:$AT$113,46)) -> 
C110: =IF($B109<>"",VLOOKUP($B109,Forb_Table,2),"") ->  | D110: =IF(AND(E109="",F109="",G109=""),"",F110/$F$155) ->  | E110: =IF(AND($D109="",$F109="",$G109=""),"",IF(AND($G109="",$F109<>""),$F109/$P109,IF(AND($F109="",$E109="",$G109<>""),$G109/16,""))) ->  | F110: =IF(AND(D109="",E109="",F109="",G109=""),"",IF(AND(E109="",G109=""),"",IF(E109<>"",E109*P109,IF(G109<>"",E110*P109,"")))) ->  | G110: =IF(AND(D109="",E109="",F109="",G109=""),"",IF(AND(E109="",F109=""),"",IF(E109<>"",E109*16,IF(F109<>"",E110*16,"")))) ->  | J110: =IF($B109<>"",VLOOKUP($B109,Forb_Table,4),"") ->  | P110: =IF($B109<>"",VLOOKUP($B109,Forb_Table,8),"") ->  | AB110: 1 | AP110: 0 | AR110: =IF(B110="","",VLOOKUP(B110,ForbsLegumes!$A$4:$AT$113,46)) -> 
C111: =IF($B111<>"",VLOOKUP($B111,Forb_Table,3),"") ->  | H111: =IF($B111<>"",VLOOKUP($B111,Forb_Table,10),"") ->  | I111: =IF($B111<>"",VLOOKUP($B111,Forb_Table,18),"") ->  | J111: =IF($B111<>"",VLOOKUP($B111,Forb_Table,5),"") ->  | K111: =IF($B111<>"",VLOOKUP($B111,Forb_Table,17),"") ->  | L111: =IF($B111<>"",VLOOKUP($B111,Forb_Table,12),"") ->  | M111: =IF(D112>0,D112,0) ->  | N111: =IF(B111="","",SUM(E111:E112)*J111) ->  | O111: =IF($B111<>"",VLOOKUP($B111,Forb_Table,11),"") ->  | P111: =IF($B111<>"",VLOOKUP($B111,Forb_Table,9),"") ->  | Q111: =IF($B111<>"",VLOOKUP($B111,Forb_Table,13),"") ->  | R111: =IF($B111<>"",VLOOKUP($B111,Forb_Table,45),"") ->  | S111: =IF($B111<>"",VLOOKUP($B111,Forb_Table,15),"") ->  | T111: =IF($B111<>"",VLOOKUP($B111,Forb_Table,16),"") ->  | U111: =IF($B111<>"",VLOOKUP($B111,Forb_Table,14),"") ->  | V111: =IF($B111<>"",VLOOKUP($B111,Forb_Table,6),"") ->  | W111: =IF($B111<>"",VLOOKUP($B111,Forb_Table,7),"") ->  | X111: =IF(C111="","",1) ->  | AB111: 1 | AP111: 0 | AR111: =IF(B111="","",VLOOKUP(B111,ForbsLegumes!$A$4:$AT$113,46)) -> 
C112: =IF($B111<>"",VLOOKUP($B111,Forb_Table,2),"") ->  | D112: =IF(AND(E111="",F111="",G111=""),"",F112/$F$155) ->  | E112: =IF(AND($D111="",$F111="",$G111=""),"",IF(AND($G111="",$F111<>""),$F111/$P111,IF(AND($F111="",$E111="",$G111<>""),$G111/16,""))) ->  | F112: =IF(AND(D111="",E111="",F111="",G111=""),"",IF(AND(E111="",G111=""),"",IF(E111<>"",E111*P111,IF(G111<>"",E112*P111,"")))) ->  | G112: =IF(AND(D111="",E111="",F111="",G111=""),"",IF(AND(E111="",F111=""),"",IF(E111<>"",E111*16,IF(F111<>"",E112*16,"")))) ->  | J112: =IF($B111<>"",VLOOKUP($B111,Forb_Table,4),"") ->  | P112: =IF($B111<>"",VLOOKUP($B111,Forb_Table,8),"") ->  | AB112: 1 | AP112: 0 | AR112: =IF(B112="","",VLOOKUP(B112,ForbsLegumes!$A$4:$AT$113,46)) -> 
C113: =IF($B113<>"",VLOOKUP($B113,Forb_Table,3),"") ->  | H113: =IF($B113<>"",VLOOKUP($B113,Forb_Table,10),"") ->  | I113: =IF($B113<>"",VLOOKUP($B113,Forb_Table,18),"") ->  | J113: =IF($B113<>"",VLOOKUP($B113,Forb_Table,5),"") ->  | K113: =IF($B113<>"",VLOOKUP($B113,Forb_Table,17),"") ->  | L113: =IF($B113<>"",VLOOKUP($B113,Forb_Table,12),"") ->  | M113: =IF(D114>0,D114,0) ->  | N113: =IF(B113="","",SUM(E113:E114)*J113) ->  | O113: =IF($B113<>"",VLOOKUP($B113,Forb_Table,11),"") ->  | P113: =IF($B113<>"",VLOOKUP($B113,Forb_Table,9),"") ->  | Q113: =IF($B113<>"",VLOOKUP($B113,Forb_Table,13),"") ->  | R113: =IF($B113<>"",VLOOKUP($B113,Forb_Table,45),"") ->  | S113: =IF($B113<>"",VLOOKUP($B113,Forb_Table,15),"") ->  | T113: =IF($B113<>"",VLOOKUP($B113,Forb_Table,16),"") ->  | U113: =IF($B113<>"",VLOOKUP($B113,Forb_Table,14),"") ->  | V113: =IF($B113<>"",VLOOKUP($B113,Forb_Table,6),"") ->  | W113: =IF($B113<>"",VLOOKUP($B113,Forb_Table,7),"") ->  | X113: =IF(C113="","",1) ->  | AB113: 1 | AP113: 0 | AR113: =IF(B113="","",VLOOKUP(B113,ForbsLegumes!$A$4:$AT$113,46)) -> 
C114: =IF($B113<>"",VLOOKUP($B113,Forb_Table,2),"") ->  | D114: =IF(AND(E113="",F113="",G113=""),"",F114/$F$155) ->  | E114: =IF(AND($D113="",$F113="",$G113=""),"",IF(AND($G113="",$F113<>""),$F113/$P113,IF(AND($F113="",$E113="",$G113<>""),$G113/16,""))) ->  | F114: =IF(AND(D113="",E113="",F113="",G113=""),"",IF(AND(E113="",G113=""),"",IF(E113<>"",E113*P113,IF(G113<>"",E114*P113,"")))) ->  | G114: =IF(AND(D113="",E113="",F113="",G113=""),"",IF(AND(E113="",F113=""),"",IF(E113<>"",E113*16,IF(F113<>"",E114*16,"")))) ->  | J114: =IF($B113<>"",VLOOKUP($B113,Forb_Table,4),"") ->  | P114: =IF($B113<>"",VLOOKUP($B113,Forb_Table,8),"") ->  | AB114: 1 | AP114: 0 | AR114: =IF(B114="","",VLOOKUP(B114,ForbsLegumes!$A$4:$AT$113,46)) -> 
C115: =IF($B115<>"",VLOOKUP($B115,Forb_Table,3),"") ->  | H115: =IF($B115<>"",VLOOKUP($B115,Forb_Table,10),"") ->  | I115: =IF($B115<>"",VLOOKUP($B115,Forb_Table,18),"") ->  | J115: =IF($B115<>"",VLOOKUP($B115,Forb_Table,5),"") ->  | K115: =IF($B115<>"",VLOOKUP($B115,Forb_Table,17),"") ->  | L115: =IF($B115<>"",VLOOKUP($B115,Forb_Table,12),"") ->  | M115: =IF(D116>0,D116,0) ->  | N115: =IF(B115="","",SUM(E115:E116)*J115) ->  | O115: =IF($B115<>"",VLOOKUP($B115,Forb_Table,11),"") ->  | P115: =IF($B115<>"",VLOOKUP($B115,Forb_Table,9),"") ->  | Q115: =IF($B115<>"",VLOOKUP($B115,Forb_Table,13),"") ->  | R115: =IF($B115<>"",VLOOKUP($B115,Forb_Table,45),"") ->  | S115: =IF($B115<>"",VLOOKUP($B115,Forb_Table,15),"") ->  | T115: =IF($B115<>"",VLOOKUP($B115,Forb_Table,16),"") ->  | U115: =IF($B115<>"",VLOOKUP($B115,Forb_Table,14),"") ->  | V115: =IF($B115<>"",VLOOKUP($B115,Forb_Table,6),"") ->  | W115: =IF($B115<>"",VLOOKUP($B115,Forb_Table,7),"") ->  | X115: =IF(C115="","",1) ->  | AB115: 1 | AP115: 0 | AR115: =IF(B115="","",VLOOKUP(B115,ForbsLegumes!$A$4:$AT$113,46)) -> 
C116: =IF($B115<>"",VLOOKUP($B115,Forb_Table,2),"") ->  | D116: =IF(AND(E115="",F115="",G115=""),"",F116/$F$155) ->  | E116: =IF(AND($D115="",$F115="",$G115=""),"",IF(AND($G115="",$F115<>""),$F115/$P115,IF(AND($F115="",$E115="",$G115<>""),$G115/16,""))) ->  | F116: =IF(AND(D115="",E115="",F115="",G115=""),"",IF(AND(E115="",G115=""),"",IF(E115<>"",E115*P115,IF(G115<>"",E116*P115,"")))) ->  | G116: =IF(AND(D115="",E115="",F115="",G115=""),"",IF(AND(E115="",F115=""),"",IF(E115<>"",E115*16,IF(F115<>"",E116*16,"")))) ->  | J116: =IF($B115<>"",VLOOKUP($B115,Forb_Table,4),"") ->  | P116: =IF($B115<>"",VLOOKUP($B115,Forb_Table,8),"") ->  | AB116: 1 | AP116: 0 | AR116: =IF(B116="","",VLOOKUP(B116,ForbsLegumes!$A$4:$AT$113,46)) -> 
C117: =IF($B117<>"",VLOOKUP($B117,Forb_Table,3),"") ->  | H117: =IF($B117<>"",VLOOKUP($B117,Forb_Table,10),"") ->  | I117: =IF($B117<>"",VLOOKUP($B117,Forb_Table,18),"") ->  | J117: =IF($B117<>"",VLOOKUP($B117,Forb_Table,5),"") ->  | K117: =IF($B117<>"",VLOOKUP($B117,Forb_Table,17),"") ->  | L117: =IF($B117<>"",VLOOKUP($B117,Forb_Table,12),"") ->  | M117: =IF(D118>0,D118,0) ->  | N117: =IF(B117="","",SUM(E117:E118)*J117) ->  | O117: =IF($B117<>"",VLOOKUP($B117,Forb_Table,11),"") ->  | P117: =IF($B117<>"",VLOOKUP($B117,Forb_Table,9),"") ->  | Q117: =IF($B117<>"",VLOOKUP($B117,Forb_Table,13),"") ->  | R117: =IF($B117<>"",VLOOKUP($B117,Forb_Table,45),"") ->  | S117: =IF($B117<>"",VLOOKUP($B117,Forb_Table,15),"") ->  | T117: =IF($B117<>"",VLOOKUP($B117,Forb_Table,16),"") ->  | U117: =IF($B117<>"",VLOOKUP($B117,Forb_Table,14),"") ->  | V117: =IF($B117<>"",VLOOKUP($B117,Forb_Table,6),"") ->  | W117: =IF($B117<>"",VLOOKUP($B117,Forb_Table,7),"") ->  | X117: =IF(C117="","",1) ->  | AB117: 1 | AP117: 0 | AR117: =IF(B117="","",VLOOKUP(B117,ForbsLegumes!$A$4:$AT$113,46)) -> 
C118: =IF($B117<>"",VLOOKUP($B117,Forb_Table,2),"") ->  | D118: =IF(AND(E117="",F117="",G117=""),"",F118/$F$155) ->  | E118: =IF(AND($D117="",$F117="",$G117=""),"",IF(AND($G117="",$F117<>""),$F117/$P117,IF(AND($F117="",$E117="",$G117<>""),$G117/16,""))) ->  | F118: =IF(AND(D117="",E117="",F117="",G117=""),"",IF(AND(E117="",G117=""),"",IF(E117<>"",E117*P117,IF(G117<>"",E118*P117,"")))) ->  | G118: =IF(AND(D117="",E117="",F117="",G117=""),"",IF(AND(E117="",F117=""),"",IF(E117<>"",E117*16,IF(F117<>"",E118*16,"")))) ->  | J118: =IF($B117<>"",VLOOKUP($B117,Forb_Table,4),"") ->  | P118: =IF($B117<>"",VLOOKUP($B117,Forb_Table,8),"") ->  | AB118: 1 | AP118: 0 | AR118: =IF(B118="","",VLOOKUP(B118,ForbsLegumes!$A$4:$AT$113,46)) -> 
C119: =IF($B119<>"",VLOOKUP($B119,Forb_Table,3),"") ->  | H119: =IF($B119<>"",VLOOKUP($B119,Forb_Table,10),"") ->  | I119: =IF($B119<>"",VLOOKUP($B119,Forb_Table,18),"") ->  | J119: =IF($B119<>"",VLOOKUP($B119,Forb_Table,5),"") ->  | K119: =IF($B119<>"",VLOOKUP($B119,Forb_Table,17),"") ->  | L119: =IF($B119<>"",VLOOKUP($B119,Forb_Table,12),"") ->  | M119: =IF(D120>0,D120,0) ->  | N119: =IF(B119="","",SUM(E119:E120)*J119) ->  | O119: =IF($B119<>"",VLOOKUP($B119,Forb_Table,11),"") ->  | P119: =IF($B119<>"",VLOOKUP($B119,Forb_Table,9),"") ->  | Q119: =IF($B119<>"",VLOOKUP($B119,Forb_Table,13),"") ->  | R119: =IF($B119<>"",VLOOKUP($B119,Forb_Table,45),"") ->  | S119: =IF($B119<>"",VLOOKUP($B119,Forb_Table,15),"") ->  | T119: =IF($B119<>"",VLOOKUP($B119,Forb_Table,16),"") ->  | U119: =IF($B119<>"",VLOOKUP($B119,Forb_Table,14),"") ->  | V119: =IF($B119<>"",VLOOKUP($B119,Forb_Table,6),"") ->  | W119: =IF($B119<>"",VLOOKUP($B119,Forb_Table,7),"") ->  | X119: =IF(C119="","",1) ->  | AB119: 1 | AP119: 0 | AR119: =IF(B119="","",VLOOKUP(B119,ForbsLegumes!$A$4:$AT$113,46)) -> 
C120: =IF($B119<>"",VLOOKUP($B119,Forb_Table,2),"") ->  | D120: =IF(AND(E119="",F119="",G119=""),"",F120/$F$155) ->  | E120: =IF(AND($D119="",$F119="",$G119=""),"",IF(AND($G119="",$F119<>""),$F119/$P119,IF(AND($F119="",$E119="",$G119<>""),$G119/16,""))) ->  | F120: =IF(AND(D119="",E119="",F119="",G119=""),"",IF(AND(E119="",G119=""),"",IF(E119<>"",E119*P119,IF(G119<>"",E120*P119,"")))) ->  | G120: =IF(AND(D119="",E119="",F119="",G119=""),"",IF(AND(E119="",F119=""),"",IF(E119<>"",E119*16,IF(F119<>"",E120*16,"")))) ->  | J120: =IF($B119<>"",VLOOKUP($B119,Forb_Table,4),"") ->  | P120: =IF($B119<>"",VLOOKUP($B119,Forb_Table,8),"") ->  | AB120: 1 | AP120: 0 | AR120: =IF(B120="","",VLOOKUP(B120,ForbsLegumes!$A$4:$AT$113,46)) -> 
C121: =IF($B121<>"",VLOOKUP($B121,Forb_Table,3),"") ->  | H121: =IF($B121<>"",VLOOKUP($B121,Forb_Table,10),"") ->  | I121: =IF($B121<>"",VLOOKUP($B121,Forb_Table,18),"") ->  | J121: =IF($B121<>"",VLOOKUP($B121,Forb_Table,5),"") ->  | K121: =IF($B121<>"",VLOOKUP($B121,Forb_Table,17),"") ->  | L121: =IF($B121<>"",VLOOKUP($B121,Forb_Table,12),"") ->  | M121: =IF(D122>0,D122,0) ->  | N121: =IF(B121="","",SUM(E121:E122)*J121) ->  | O121: =IF($B121<>"",VLOOKUP($B121,Forb_Table,11),"") ->  | P121: =IF($B121<>"",VLOOKUP($B121,Forb_Table,9),"") ->  | Q121: =IF($B121<>"",VLOOKUP($B121,Forb_Table,13),"") ->  | R121: =IF($B121<>"",VLOOKUP($B121,Forb_Table,45),"") ->  | S121: =IF($B121<>"",VLOOKUP($B121,Forb_Table,15),"") ->  | T121: =IF($B121<>"",VLOOKUP($B121,Forb_Table,16),"") ->  | U121: =IF($B121<>"",VLOOKUP($B121,Forb_Table,14),"") ->  | V121: =IF($B121<>"",VLOOKUP($B121,Forb_Table,6),"") ->  | W121: =IF($B121<>"",VLOOKUP($B121,Forb_Table,7),"") ->  | X121: =IF(C121="","",1) ->  | AB121: 1 | AP121: 0 | AR121: =IF(B121="","",VLOOKUP(B121,ForbsLegumes!$A$4:$AT$113,46)) -> 
C122: =IF($B121<>"",VLOOKUP($B121,Forb_Table,2),"") ->  | D122: =IF(AND(E121="",F121="",G121=""),"",F122/$F$155) ->  | E122: =IF(AND($D121="",$F121="",$G121=""),"",IF(AND($G121="",$F121<>""),$F121/$P121,IF(AND($F121="",$E121="",$G121<>""),$G121/16,""))) ->  | F122: =IF(AND(D121="",E121="",F121="",G121=""),"",IF(AND(E121="",G121=""),"",IF(E121<>"",E121*P121,IF(G121<>"",E122*P121,"")))) ->  | G122: =IF(AND(D121="",E121="",F121="",G121=""),"",IF(AND(E121="",F121=""),"",IF(E121<>"",E121*16,IF(F121<>"",E122*16,"")))) ->  | J122: =IF($B121<>"",VLOOKUP($B121,Forb_Table,4),"") ->  | P122: =IF($B121<>"",VLOOKUP($B121,Forb_Table,8),"") ->  | AB122: 1 | AP122: 0 | AR122: =IF(B122="","",VLOOKUP(B122,ForbsLegumes!$A$4:$AT$113,46)) -> 
C123: =IF($B123<>"",VLOOKUP($B123,Forb_Table,3),"") ->  | H123: =IF($B123<>"",VLOOKUP($B123,Forb_Table,10),"") ->  | I123: =IF($B123<>"",VLOOKUP($B123,Forb_Table,18),"") ->  | J123: =IF($B123<>"",VLOOKUP($B123,Forb_Table,5),"") ->  | K123: =IF($B123<>"",VLOOKUP($B123,Forb_Table,17),"") ->  | L123: =IF($B123<>"",VLOOKUP($B123,Forb_Table,12),"") ->  | M123: =IF(D124>0,D124,0) ->  | N123: =IF(B123="","",SUM(E123:E124)*J123) ->  | O123: =IF($B123<>"",VLOOKUP($B123,Forb_Table,11),"") ->  | P123: =IF($B123<>"",VLOOKUP($B123,Forb_Table,9),"") ->  | Q123: =IF($B123<>"",VLOOKUP($B123,Forb_Table,13),"") ->  | R123: =IF($B123<>"",VLOOKUP($B123,Forb_Table,45),"") ->  | S123: =IF($B123<>"",VLOOKUP($B123,Forb_Table,15),"") ->  | T123: =IF($B123<>"",VLOOKUP($B123,Forb_Table,16),"") ->  | U123: =IF($B123<>"",VLOOKUP($B123,Forb_Table,14),"") ->  | V123: =IF($B123<>"",VLOOKUP($B123,Forb_Table,6),"") ->  | W123: =IF($B123<>"",VLOOKUP($B123,Forb_Table,7),"") ->  | X123: =IF(C123="","",1) ->  | AB123: 1 | AP123: 0 | AR123: =IF(B123="","",VLOOKUP(B123,ForbsLegumes!$A$4:$AT$113,46)) -> 
C124: =IF($B123<>"",VLOOKUP($B123,Forb_Table,2),"") ->  | D124: =IF(AND(E123="",F123="",G123=""),"",F124/$F$155) ->  | E124: =IF(AND($D123="",$F123="",$G123=""),"",IF(AND($G123="",$F123<>""),$F123/$P123,IF(AND($F123="",$E123="",$G123<>""),$G123/16,""))) ->  | F124: =IF(AND(D123="",E123="",F123="",G123=""),"",IF(AND(E123="",G123=""),"",IF(E123<>"",E123*P123,IF(G123<>"",E124*P123,"")))) ->  | G124: =IF(AND(D123="",E123="",F123="",G123=""),"",IF(AND(E123="",F123=""),"",IF(E123<>"",E123*16,IF(F123<>"",E124*16,"")))) ->  | J124: =IF($B123<>"",VLOOKUP($B123,Forb_Table,4),"") ->  | P124: =IF($B123<>"",VLOOKUP($B123,Forb_Table,8),"") ->  | AB124: 1 | AP124: 0 | AR124: =IF(B124="","",VLOOKUP(B124,ForbsLegumes!$A$4:$AT$113,46)) -> 
C125: =IF($B125<>"",VLOOKUP($B125,Forb_Table,3),"") ->  | H125: =IF($B125<>"",VLOOKUP($B125,Forb_Table,10),"") ->  | I125: =IF($B125<>"",VLOOKUP($B125,Forb_Table,18),"") ->  | J125: =IF($B125<>"",VLOOKUP($B125,Forb_Table,5),"") ->  | K125: =IF($B125<>"",VLOOKUP($B125,Forb_Table,17),"") ->  | L125: =IF($B125<>"",VLOOKUP($B125,Forb_Table,12),"") ->  | M125: =IF(D126>0,D126,0) ->  | N125: =IF(B125="","",SUM(E125:E126)*J125) ->  | O125: =IF($B125<>"",VLOOKUP($B125,Forb_Table,11),"") ->  | P125: =IF($B125<>"",VLOOKUP($B125,Forb_Table,9),"") ->  | Q125: =IF($B125<>"",VLOOKUP($B125,Forb_Table,13),"") ->  | R125: =IF($B125<>"",VLOOKUP($B125,Forb_Table,45),"") ->  | S125: =IF($B125<>"",VLOOKUP($B125,Forb_Table,15),"") ->  | T125: =IF($B125<>"",VLOOKUP($B125,Forb_Table,16),"") ->  | U125: =IF($B125<>"",VLOOKUP($B125,Forb_Table,14),"") ->  | V125: =IF($B125<>"",VLOOKUP($B125,Forb_Table,6),"") ->  | W125: =IF($B125<>"",VLOOKUP($B125,Forb_Table,7),"") ->  | X125: =IF(C125="","",1) ->  | AB125: 1 | AP125: 0 | AR125: =IF(B125="","",VLOOKUP(B125,ForbsLegumes!$A$4:$AT$113,46)) -> 
C126: =IF($B125<>"",VLOOKUP($B125,Forb_Table,2),"") ->  | D126: =IF(AND(E125="",F125="",G125=""),"",F126/$F$155) ->  | E126: =IF(AND($D125="",$F125="",$G125=""),"",IF(AND($G125="",$F125<>""),$F125/$P125,IF(AND($F125="",$E125="",$G125<>""),$G125/16,""))) ->  | F126: =IF(AND(D125="",E125="",F125="",G125=""),"",IF(AND(E125="",G125=""),"",IF(E125<>"",E125*P125,IF(G125<>"",E126*P125,"")))) ->  | G126: =IF(AND(D125="",E125="",F125="",G125=""),"",IF(AND(E125="",F125=""),"",IF(E125<>"",E125*16,IF(F125<>"",E126*16,"")))) ->  | J126: =IF($B125<>"",VLOOKUP($B125,Forb_Table,4),"") ->  | P126: =IF($B125<>"",VLOOKUP($B125,Forb_Table,8),"") ->  | AB126: 1 | AP126: 0 | AR126: =IF(B126="","",VLOOKUP(B126,ForbsLegumes!$A$4:$AT$113,46)) -> 
C127: =IF($B127<>"",VLOOKUP($B127,Forb_Table,3),"") ->  | H127: =IF($B127<>"",VLOOKUP($B127,Forb_Table,10),"") ->  | I127: =IF($B127<>"",VLOOKUP($B127,Forb_Table,18),"") ->  | J127: =IF($B127<>"",VLOOKUP($B127,Forb_Table,5),"") ->  | K127: =IF($B127<>"",VLOOKUP($B127,Forb_Table,17),"") ->  | L127: =IF($B127<>"",VLOOKUP($B127,Forb_Table,12),"") ->  | M127: =IF(D128>0,D128,0) ->  | N127: =IF(B127="","",SUM(E127:E128)*J127) ->  | O127: =IF($B127<>"",VLOOKUP($B127,Forb_Table,11),"") ->  | P127: =IF($B127<>"",VLOOKUP($B127,Forb_Table,9),"") ->  | Q127: =IF($B127<>"",VLOOKUP($B127,Forb_Table,13),"") ->  | R127: =IF($B127<>"",VLOOKUP($B127,Forb_Table,45),"") ->  | S127: =IF($B127<>"",VLOOKUP($B127,Forb_Table,15),"") ->  | T127: =IF($B127<>"",VLOOKUP($B127,Forb_Table,16),"") ->  | U127: =IF($B127<>"",VLOOKUP($B127,Forb_Table,14),"") ->  | V127: =IF($B127<>"",VLOOKUP($B127,Forb_Table,6),"") ->  | W127: =IF($B127<>"",VLOOKUP($B127,Forb_Table,7),"") ->  | X127: =IF(C127="","",1) ->  | AB127: 1 | AD127: =IF($B127<>"",VLOOKUP($B127,Forb_Table,26),"") ->  | AF127: =IF($B127<>"",VLOOKUP($B127,Forb_Table,27),"") ->  | AO127: =IF($B127="","",IF(AND($AR127=1,$C128="Forb"),SUM($E127:$E128),"")) ->  | AP127: =IF(B127="",0,SUM(F127:F128)/$F$155) -> 0 | AR127: =IF(B127="","",VLOOKUP(B127,ForbsLegumes!$A$4:$AT$113,46)) -> 
C128: =IF($B127<>"",VLOOKUP($B127,Forb_Table,2),"") ->  | D128: =IF(AND(E127="",F127="",G127=""),"",F128/$F$155) ->  | E128: =IF(AND($D127="",$F127="",$G127=""),"",IF(AND($G127="",$F127<>""),$F127/$P127,IF(AND($F127="",$E127="",$G127<>""),$G127/16,""))) ->  | F128: =IF(AND(D127="",E127="",F127="",G127=""),"",IF(AND(E127="",G127=""),"",IF(E127<>"",E127*P127,IF(G127<>"",E128*P127,"")))) ->  | G128: =IF(AND(D127="",E127="",F127="",G127=""),"",IF(AND(E127="",F127=""),"",IF(E127<>"",E127*16,IF(F127<>"",E128*16,"")))) ->  | J128: =IF($B127<>"",VLOOKUP($B127,Forb_Table,4),"") ->  | P128: =IF($B127<>"",VLOOKUP($B127,Forb_Table,8),"") ->  | Y128: =IF($B128="","",IF(AE128=1,1,"")) ->  | Z128: =IF($B128="","",IF(AND($C129="Forb",$AG128=1),1,"")) ->  | AA128: =IF($B128="","",IF(AND(Y128="",Z128=""),1,"")) ->  | AB128: 1 | AE128: =IF(AD128="X",1,"") ->  | AG128: =IF(AF128="X",1,"") ->  | AH128: =IF($B128="","",IF($AE128=1,SUM(F128:F129),"")) ->  | AI128: =IF($B128="","",IF(AND($AG128=1,$C129="Forb"),SUM($F128:$F129),"")) ->  | AJ128: =IF($B128="","",IF(AND($AG128=1,$C129="Legume"),SUM($F128:$F129),"")) ->  | AK128: =IF($B128="","",IF(AND($AR128=1,$C129="Forb"),SUM($F128:$F129),"")) ->  | AL128: =IF($B128="","",IF($AE128=1,SUM($E128:$E129),"")) ->  | AM128: =IF($B128="","",IF(AND($AG128=1,$C129="Forb"),SUM($E128:$E129),"")) ->  | AN128: =IF($B128="","",IF(AND($AG128=1,$C129="Legume"),SUM($E128:$E129),"")) ->  | AP128: 0 | AQ128: =IF(AP128>0.2,1,"") ->  | AR128: =IF(B128="","",VLOOKUP(B128,ForbsLegumes!$A$4:$AT$113,46)) -> 
C129: =IF($B129<>"",VLOOKUP($B129,Forb_Table,3),"") ->  | H129: =IF($B129<>"",VLOOKUP($B129,Forb_Table,10),"") ->  | I129: =IF($B129<>"",VLOOKUP($B129,Forb_Table,18),"") ->  | J129: =IF($B129<>"",VLOOKUP($B129,Forb_Table,5),"") ->  | K129: =IF($B129<>"",VLOOKUP($B129,Forb_Table,17),"") ->  | L129: =IF($B129<>"",VLOOKUP($B129,Forb_Table,12),"") ->  | M129: =IF(D130>0,D130,0) ->  | N129: =IF(B129="","",SUM(E129:E130)*J129) ->  | O129: =IF($B129<>"",VLOOKUP($B129,Forb_Table,11),"") ->  | P129: =IF($B129<>"",VLOOKUP($B129,Forb_Table,9),"") ->  | Q129: =IF($B129<>"",VLOOKUP($B129,Forb_Table,13),"") ->  | R129: =IF($B129<>"",VLOOKUP($B129,Forb_Table,45),"") ->  | S129: =IF($B129<>"",VLOOKUP($B129,Forb_Table,15),"") ->  | T129: =IF($B129<>"",VLOOKUP($B129,Forb_Table,16),"") ->  | U129: =IF($B129<>"",VLOOKUP($B129,Forb_Table,14),"") ->  | V129: =IF($B129<>"",VLOOKUP($B129,Forb_Table,6),"") ->  | W129: =IF($B129<>"",VLOOKUP($B129,Forb_Table,7),"") ->  | X129: =IF(C129="","",1) ->  | AB129: 1 | AP129: 0 | AR129: =IF(B129="","",VLOOKUP(B129,ForbsLegumes!$A$4:$AT$113,46)) -> 
C130: =IF($B129<>"",VLOOKUP($B129,Forb_Table,2),"") ->  | D130: =IF(AND(E129="",F129="",G129=""),"",F130/$F$155) ->  | E130: =IF(AND($D129="",$F129="",$G129=""),"",IF(AND($G129="",$F129<>""),$F129/$P129,IF(AND($F129="",$E129="",$G129<>""),$G129/16,""))) ->  | F130: =IF(AND(D129="",E129="",F129="",G129=""),"",IF(AND(E129="",G129=""),"",IF(E129<>"",E129*P129,IF(G129<>"",E130*P129,"")))) ->  | G130: =IF(AND(D129="",E129="",F129="",G129=""),"",IF(AND(E129="",F129=""),"",IF(E129<>"",E129*16,IF(F129<>"",E130*16,"")))) ->  | J130: =IF($B129<>"",VLOOKUP($B129,Forb_Table,4),"") ->  | P130: =IF($B129<>"",VLOOKUP($B129,Forb_Table,8),"") ->  | AB130: 1 | AP130: 0 | AR130: =IF(B130="","",VLOOKUP(B130,ForbsLegumes!$A$4:$AT$113,46)) -> 
C131: =IF($B131<>"",VLOOKUP($B131,Forb_Table,3),"") ->  | H131: =IF($B131<>"",VLOOKUP($B131,Forb_Table,10),"") ->  | I131: =IF($B131<>"",VLOOKUP($B131,Forb_Table,18),"") ->  | J131: =IF($B131<>"",VLOOKUP($B131,Forb_Table,5),"") ->  | K131: =IF($B131<>"",VLOOKUP($B131,Forb_Table,17),"") ->  | L131: =IF($B131<>"",VLOOKUP($B131,Forb_Table,12),"") ->  | M131: =IF(D132>0,D132,0) ->  | N131: =IF(B131="","",SUM(E131:E132)*J131) ->  | O131: =IF($B131<>"",VLOOKUP($B131,Forb_Table,11),"") ->  | P131: =IF($B131<>"",VLOOKUP($B131,Forb_Table,9),"") ->  | Q131: =IF($B131<>"",VLOOKUP($B131,Forb_Table,13),"") ->  | R131: =IF($B131<>"",VLOOKUP($B131,Forb_Table,45),"") ->  | S131: =IF($B131<>"",VLOOKUP($B131,Forb_Table,15),"") ->  | T131: =IF($B131<>"",VLOOKUP($B131,Forb_Table,16),"") ->  | U131: =IF($B131<>"",VLOOKUP($B131,Forb_Table,14),"") ->  | V131: =IF($B131<>"",VLOOKUP($B131,Forb_Table,6),"") ->  | W131: =IF($B131<>"",VLOOKUP($B131,Forb_Table,7),"") ->  | X131: =IF(C131="","",1) ->  | AB131: 1 | AP131: 0 | AR131: =IF(B131="","",VLOOKUP(B131,ForbsLegumes!$A$4:$AT$113,46)) -> 
C132: =IF($B131<>"",VLOOKUP($B131,Forb_Table,2),"") ->  | D132: =IF(AND(E131="",F131="",G131=""),"",F132/$F$155) ->  | E132: =IF(AND($D131="",$F131="",$G131=""),"",IF(AND($G131="",$F131<>""),$F131/$P131,IF(AND($F131="",$E131="",$G131<>""),$G131/16,""))) ->  | F132: =IF(AND(D131="",E131="",F131="",G131=""),"",IF(AND(E131="",G131=""),"",IF(E131<>"",E131*P131,IF(G131<>"",E132*P131,"")))) ->  | G132: =IF(AND(D131="",E131="",F131="",G131=""),"",IF(AND(E131="",F131=""),"",IF(E131<>"",E131*16,IF(F131<>"",E132*16,"")))) ->  | J132: =IF($B131<>"",VLOOKUP($B131,Forb_Table,4),"") ->  | P132: =IF($B131<>"",VLOOKUP($B131,Forb_Table,8),"") ->  | AB132: 1 | AP132: 0 | AR132: =IF(B132="","",VLOOKUP(B132,ForbsLegumes!$A$4:$AT$113,46)) -> 
C133: =IF($B133<>"",VLOOKUP($B133,Forb_Table,3),"") ->  | H133: =IF($B133<>"",VLOOKUP($B133,Forb_Table,10),"") ->  | I133: =IF($B133<>"",VLOOKUP($B133,Forb_Table,18),"") ->  | J133: =IF($B133<>"",VLOOKUP($B133,Forb_Table,5),"") ->  | K133: =IF($B133<>"",VLOOKUP($B133,Forb_Table,17),"") ->  | L133: =IF($B133<>"",VLOOKUP($B133,Forb_Table,12),"") ->  | M133: =IF(D134>0,D134,0) ->  | N133: =IF(B133="","",SUM(E133:E134)*J133) ->  | O133: =IF($B133<>"",VLOOKUP($B133,Forb_Table,11),"") ->  | P133: =IF($B133<>"",VLOOKUP($B133,Forb_Table,9),"") ->  | Q133: =IF($B133<>"",VLOOKUP($B133,Forb_Table,13),"") ->  | R133: =IF($B133<>"",VLOOKUP($B133,Forb_Table,45),"") ->  | S133: =IF($B133<>"",VLOOKUP($B133,Forb_Table,15),"") ->  | T133: =IF($B133<>"",VLOOKUP($B133,Forb_Table,16),"") ->  | U133: =IF($B133<>"",VLOOKUP($B133,Forb_Table,14),"") ->  | V133: =IF($B133<>"",VLOOKUP($B133,Forb_Table,6),"") ->  | W133: =IF($B133<>"",VLOOKUP($B133,Forb_Table,7),"") ->  | X133: =IF(C133="","",1) ->  | AB133: 1 | AP133: 0 | AR133: =IF(B133="","",VLOOKUP(B133,ForbsLegumes!$A$4:$AT$113,46)) -> 
C134: =IF($B133<>"",VLOOKUP($B133,Forb_Table,2),"") ->  | D134: =IF(AND(E133="",F133="",G133=""),"",F134/$F$155) ->  | E134: =IF(AND($D133="",$F133="",$G133=""),"",IF(AND($G133="",$F133<>""),$F133/$P133,IF(AND($F133="",$E133="",$G133<>""),$G133/16,""))) ->  | F134: =IF(AND(D133="",E133="",F133="",G133=""),"",IF(AND(E133="",G133=""),"",IF(E133<>"",E133*P133,IF(G133<>"",E134*P133,"")))) ->  | G134: =IF(AND(D133="",E133="",F133="",G133=""),"",IF(AND(E133="",F133=""),"",IF(E133<>"",E133*16,IF(F133<>"",E134*16,"")))) ->  | J134: =IF($B133<>"",VLOOKUP($B133,Forb_Table,4),"") ->  | P134: =IF($B133<>"",VLOOKUP($B133,Forb_Table,8),"") ->  | AB134: 1 | AP134: 0 | AR134: =IF(B134="","",VLOOKUP(B134,ForbsLegumes!$A$4:$AT$113,46)) -> 
C135: =IF($B135<>"",VLOOKUP($B135,Forb_Table,3),"") ->  | H135: =IF($B135<>"",VLOOKUP($B135,Forb_Table,10),"") ->  | I135: =IF($B135<>"",VLOOKUP($B135,Forb_Table,18),"") ->  | J135: =IF($B135<>"",VLOOKUP($B135,Forb_Table,5),"") ->  | K135: =IF($B135<>"",VLOOKUP($B135,Forb_Table,17),"") ->  | L135: =IF($B135<>"",VLOOKUP($B135,Forb_Table,12),"") ->  | M135: =IF(D136>0,D136,0) ->  | N135: =IF(B135="","",SUM(E135:E136)*J135) ->  | O135: =IF($B135<>"",VLOOKUP($B135,Forb_Table,11),"") ->  | P135: =IF($B135<>"",VLOOKUP($B135,Forb_Table,9),"") ->  | Q135: =IF($B135<>"",VLOOKUP($B135,Forb_Table,13),"") ->  | R135: =IF($B135<>"",VLOOKUP($B135,Forb_Table,45),"") ->  | S135: =IF($B135<>"",VLOOKUP($B135,Forb_Table,15),"") ->  | T135: =IF($B135<>"",VLOOKUP($B135,Forb_Table,16),"") ->  | U135: =IF($B135<>"",VLOOKUP($B135,Forb_Table,14),"") ->  | V135: =IF($B135<>"",VLOOKUP($B135,Forb_Table,6),"") ->  | W135: =IF($B135<>"",VLOOKUP($B135,Forb_Table,7),"") ->  | X135: =IF(C135="","",1) ->  | AB135: 1 | AP135: 0 | AR135: =IF(B135="","",VLOOKUP(B135,ForbsLegumes!$A$4:$AT$113,46)) -> 
C136: =IF($B135<>"",VLOOKUP($B135,Forb_Table,2),"") ->  | D136: =IF(AND(E135="",F135="",G135=""),"",F136/$F$155) ->  | E136: =IF(AND($D135="",$F135="",$G135=""),"",IF(AND($G135="",$F135<>""),$F135/$P135,IF(AND($F135="",$E135="",$G135<>""),$G135/16,""))) ->  | F136: =IF(AND(D135="",E135="",F135="",G135=""),"",IF(AND(E135="",G135=""),"",IF(E135<>"",E135*P135,IF(G135<>"",E136*P135,"")))) ->  | G136: =IF(AND(D135="",E135="",F135="",G135=""),"",IF(AND(E135="",F135=""),"",IF(E135<>"",E135*16,IF(F135<>"",E136*16,"")))) ->  | J136: =IF($B135<>"",VLOOKUP($B135,Forb_Table,4),"") ->  | P136: =IF($B135<>"",VLOOKUP($B135,Forb_Table,8),"") ->  | AB136: 1 | AP136: 0 | AR136: =IF(B136="","",VLOOKUP(B136,ForbsLegumes!$A$4:$AT$113,46)) -> 
C137: =IF($B137<>"",VLOOKUP($B137,Forb_Table,3),"") ->  | H137: =IF($B137<>"",VLOOKUP($B137,Forb_Table,10),"") ->  | I137: =IF($B137<>"",VLOOKUP($B137,Forb_Table,18),"") ->  | J137: =IF($B137<>"",VLOOKUP($B137,Forb_Table,5),"") ->  | K137: =IF($B137<>"",VLOOKUP($B137,Forb_Table,17),"") ->  | L137: =IF($B137<>"",VLOOKUP($B137,Forb_Table,12),"") ->  | M137: =IF(D138>0,D138,0) ->  | N137: =IF(B137="","",SUM(E137:E138)*J137) ->  | O137: =IF($B137<>"",VLOOKUP($B137,Forb_Table,11),"") ->  | P137: =IF($B137<>"",VLOOKUP($B137,Forb_Table,9),"") ->  | Q137: =IF($B137<>"",VLOOKUP($B137,Forb_Table,13),"") ->  | R137: =IF($B137<>"",VLOOKUP($B137,Forb_Table,45),"") ->  | S137: =IF($B137<>"",VLOOKUP($B137,Forb_Table,15),"") ->  | T137: =IF($B137<>"",VLOOKUP($B137,Forb_Table,16),"") ->  | U137: =IF($B137<>"",VLOOKUP($B137,Forb_Table,14),"") ->  | V137: =IF($B137<>"",VLOOKUP($B137,Forb_Table,6),"") ->  | W137: =IF($B137<>"",VLOOKUP($B137,Forb_Table,7),"") ->  | X137: =IF(C137="","",1) ->  | AB137: 1 | AP137: 0 | AR137: =IF(B137="","",VLOOKUP(B137,ForbsLegumes!$A$4:$AT$113,46)) -> 
C138: =IF($B137<>"",VLOOKUP($B137,Forb_Table,2),"") ->  | D138: =IF(AND(E137="",F137="",G137=""),"",F138/$F$155) ->  | E138: =IF(AND($D137="",$F137="",$G137=""),"",IF(AND($G137="",$F137<>""),$F137/$P137,IF(AND($F137="",$E137="",$G137<>""),$G137/16,""))) ->  | F138: =IF(AND(D137="",E137="",F137="",G137=""),"",IF(AND(E137="",G137=""),"",IF(E137<>"",E137*P137,IF(G137<>"",E138*P137,"")))) ->  | G138: =IF(AND(D137="",E137="",F137="",G137=""),"",IF(AND(E137="",F137=""),"",IF(E137<>"",E137*16,IF(F137<>"",E138*16,"")))) ->  | J138: =IF($B137<>"",VLOOKUP($B137,Forb_Table,4),"") ->  | P138: =IF($B137<>"",VLOOKUP($B137,Forb_Table,8),"") ->  | AB138: 1 | AP138: 0 | AR138: =IF(B138="","",VLOOKUP(B138,ForbsLegumes!$A$4:$AT$113,46)) -> 
C139: =IF($B139<>"",VLOOKUP($B139,Forb_Table,3),"") ->  | H139: =IF($B139<>"",VLOOKUP($B139,Forb_Table,10),"") ->  | I139: =IF($B139<>"",VLOOKUP($B139,Forb_Table,18),"") ->  | J139: =IF($B139<>"",VLOOKUP($B139,Forb_Table,5),"") ->  | K139: =IF($B139<>"",VLOOKUP($B139,Forb_Table,17),"") ->  | L139: =IF($B139<>"",VLOOKUP($B139,Forb_Table,12),"") ->  | M139: =IF(D140>0,D140,0) ->  | N139: =IF(B139="","",SUM(E139:E140)*J139) ->  | O139: =IF($B139<>"",VLOOKUP($B139,Forb_Table,11),"") ->  | P139: =IF($B139<>"",VLOOKUP($B139,Forb_Table,9),"") ->  | Q139: =IF($B139<>"",VLOOKUP($B139,Forb_Table,13),"") ->  | R139: =IF($B139<>"",VLOOKUP($B139,Forb_Table,45),"") ->  | S139: =IF($B139<>"",VLOOKUP($B139,Forb_Table,15),"") ->  | T139: =IF($B139<>"",VLOOKUP($B139,Forb_Table,16),"") ->  | U139: =IF($B139<>"",VLOOKUP($B139,Forb_Table,14),"") ->  | V139: =IF($B139<>"",VLOOKUP($B139,Forb_Table,6),"") ->  | W139: =IF($B139<>"",VLOOKUP($B139,Forb_Table,7),"") ->  | X139: =IF(C139="","",1) ->  | AB139: 1 | AP139: 0 | AR139: =IF(B139="","",VLOOKUP(B139,ForbsLegumes!$A$4:$AT$113,46)) -> 
C140: =IF($B139<>"",VLOOKUP($B139,Forb_Table,2),"") ->  | D140: =IF(AND(E139="",F139="",G139=""),"",F140/$F$155) ->  | E140: =IF(AND($D139="",$F139="",$G139=""),"",IF(AND($G139="",$F139<>""),$F139/$P139,IF(AND($F139="",$E139="",$G139<>""),$G139/16,""))) ->  | F140: =IF(AND(D139="",E139="",F139="",G139=""),"",IF(AND(E139="",G139=""),"",IF(E139<>"",E139*P139,IF(G139<>"",E140*P139,"")))) ->  | G140: =IF(AND(D139="",E139="",F139="",G139=""),"",IF(AND(E139="",F139=""),"",IF(E139<>"",E139*16,IF(F139<>"",E140*16,"")))) ->  | J140: =IF($B139<>"",VLOOKUP($B139,Forb_Table,4),"") ->  | P140: =IF($B139<>"",VLOOKUP($B139,Forb_Table,8),"") ->  | AB140: 1 | AP140: 0 | AR140: =IF(B140="","",VLOOKUP(B140,ForbsLegumes!$A$4:$AT$113,46)) -> 
C141: =IF($B141<>"",VLOOKUP($B141,Forb_Table,3),"") ->  | H141: =IF($B141<>"",VLOOKUP($B141,Forb_Table,10),"") ->  | I141: =IF($B141<>"",VLOOKUP($B141,Forb_Table,18),"") ->  | J141: =IF($B141<>"",VLOOKUP($B141,Forb_Table,5),"") ->  | K141: =IF($B141<>"",VLOOKUP($B141,Forb_Table,17),"") ->  | L141: =IF($B141<>"",VLOOKUP($B141,Forb_Table,12),"") ->  | M141: =IF(D142>0,D142,0) ->  | N141: =IF(B141="","",SUM(E141:E142)*J141) ->  | O141: =IF($B141<>"",VLOOKUP($B141,Forb_Table,11),"") ->  | P141: =IF($B141<>"",VLOOKUP($B141,Forb_Table,9),"") ->  | Q141: =IF($B141<>"",VLOOKUP($B141,Forb_Table,13),"") ->  | R141: =IF($B141<>"",VLOOKUP($B141,Forb_Table,45),"") ->  | S141: =IF($B141<>"",VLOOKUP($B141,Forb_Table,15),"") ->  | T141: =IF($B141<>"",VLOOKUP($B141,Forb_Table,16),"") ->  | U141: =IF($B141<>"",VLOOKUP($B141,Forb_Table,14),"") ->  | V141: =IF($B141<>"",VLOOKUP($B141,Forb_Table,6),"") ->  | W141: =IF($B141<>"",VLOOKUP($B141,Forb_Table,7),"") ->  | X141: =IF(C141="","",1) ->  | AB141: 1 | AP141: 0 | AR141: =IF(B141="","",VLOOKUP(B141,ForbsLegumes!$A$4:$AT$113,46)) -> 
C142: =IF($B141<>"",VLOOKUP($B141,Forb_Table,2),"") ->  | D142: =IF(AND(E141="",F141="",G141=""),"",F142/$F$155) ->  | E142: =IF(AND($D141="",$F141="",$G141=""),"",IF(AND($G141="",$F141<>""),$F141/$P141,IF(AND($F141="",$E141="",$G141<>""),$G141/16,""))) ->  | F142: =IF(AND(D141="",E141="",F141="",G141=""),"",IF(AND(E141="",G141=""),"",IF(E141<>"",E141*P141,IF(G141<>"",E142*P141,"")))) ->  | G142: =IF(AND(D141="",E141="",F141="",G141=""),"",IF(AND(E141="",F141=""),"",IF(E141<>"",E141*16,IF(F141<>"",E142*16,"")))) ->  | J142: =IF($B141<>"",VLOOKUP($B141,Forb_Table,4),"") ->  | P142: =IF($B141<>"",VLOOKUP($B141,Forb_Table,8),"") ->  | Z142: =IF($B142="","",IF(AND(#REF!="Forb",$AG142=1),1,"")) ->  | AB142: 1 | AH142: =IF($B142="","",IF($AE142=1,SUM(F142:F143),"")) ->  | AI142: =IF($B142="","",IF(AND($AG142=1,#REF!="Forb"),SUM($F142:$F143),"")) ->  | AJ142: =IF($B142="","",IF(AND($AG142=1,#REF!="Legume"),SUM($F142:$F143),"")) ->  | AL142: =IF($B142="","",IF($AE142=1,SUM($E142:$E143),"")) ->  | AM142: =IF($B142="","",IF(AND($AG142=1,#REF!="Forb"),SUM($E142:$E143),"")) ->  | AN142: =IF($B142="","",IF(AND($AG142=1,#REF!="Legume"),SUM($E142:$E143),"")) -> 
C143: FORBS/LEGUMES TOTAL | D143: =IF(SUM(D63:D102)>1,"> 100%",SUM(D63:D102)) -> 0 | E143: =SUM(E63:E142) -> 0 | F143: =SUM(F63:F142) -> 0 | G143: =+E143*16 -> 0 | M143: =SUM(M63:M142) -> 0 | N143: =SUM(N63:N142) -> 0 | X143: =SUM(X63:X142) -> 0 | Y143: =SUM(Y63:Y142) -> 0 | Z143: =SUM(Z63:Z142) -> 0 | AA143: =SUM(AA63:AA142) -> 0 | AB143: =SUM(AB63:AB142) -> 0 | AC143: =SUM(AC63:AC142) -> 0 | AE143: 0 | AG143: 0 | AH143: 0 | AI143: 0 | AJ143: 0 | AK143: 0 | AL143: 0 | AM143: 0 | AN143: 0 | AO143: 0 | AP143: 0
AD144: =+AE143+AB55 -> 0 | AF144: =+AG143+AD55 -> 0
C147: MIX TOTALS TABLE | E147: lbs / acre PLS | F147: seeds / ft2 PLS | G147: Oz./acre PLS | H147: Number in Mix | I147: % of Mix | J147: % Sod-Forming Grasses | K147: Estimated Cost/Acre
C148: Introduced Grasses | E148: =IF(T55=0,"",T55) ->  | F148: =IF(V55=0,"",V55) ->  | G148: =IF(E148="","",E148*16) ->  | H148: =IF(X55=0,"",X55) ->  | I148: =IF(F148="","",F148/$F$155) -> 
C149: Native Grasses | E149: =IF(U55=0,"",U55) ->  | F149: =IF(W55=0,"",W55) ->  | G149: =IF(E149="","",E149*16) ->  | H149: =IF(Y55=0,"",Y55) ->  | I149: =IF(F149="","",F149/$F$155) -> 
C150: GRASSES TOTAL | E150: =SUM(E148:E149) -> 0 | F150: =SUM(F148:F149) -> 0 | G150: =SUM(G148:G149) -> 0 | H150: =SUM(H148:H149) -> 0 | I150: =SUM(I148:I149) -> 0 | K150: =+L55 -> 0
C151: Forbs | E151: =IF(AM$143=0,"",AM$143) ->  | F151: =IF(AI$143=0,"",AI$143) ->  | G151: =IF(E151="","",E151*16) ->  | H151: =IF(Z$143=0,"",Z$143) ->  | I151: =IF(F151="","",F151/$F$155) -> 
C152: Introduced Legumes | E152: =IF(AL$143=0,"",AL$143) ->  | F152: =IF(AH$143=0,"",AH$143) ->  | G152: =IF(E152="","",E152*16) ->  | H152: =IF(Y$143=0,"",Y$143) ->  | I152: =IF(F152="","",F152/$F$155) -> 
C153: Native Legumes | E153: =IF(AN$143=0,"",AN$143) ->  | F153: =IF(AJ$143=0,"",AJ$143) ->  | H153: =IF(AA$143=0,"",AA$143) ->  | I153: =IF(F153="","",F153/$F$155) -> 
C154: F/L TOTAL | E154: =+E143 -> 0 | F154: =+F143 -> 0 | G154: =IF(E154="","",E154*16) -> 0 | H154: =SUM(H151:H153) -> 0 | I154: =SUM(I151:I153) -> 0 | J154: N/A | K154: =+N143 -> 0
C155: GRAND TOTAL | E155: =+E154+E150 -> 0 | F155: =+F154+F150 -> 0 | G155: =+G154+G150 -> 0 | H155: =+H154+H150 -> 0 | I155: =+I154+I150 -> 0 | J155: =IF(S$55=0,0,S$55/F155) -> 0 | K155: =+K154+K150 -> 0
C156: =IF(E156="","","Forbs (MONARCH), if applicable)") ->  | E156: =IF(AO$143=0,"",AO$143) ->  | F156: =IF(AK$143=0,"",AK$143) ->  | G156: =IF(E156="","",E156*16) ->  | I156: =IF(F156="","",F156/$F$154) ->  | J156: =IF(E156="","","Min. 60% of forbs need to be Monarch Friendly for Monarch mixes") -> 

Sheet SeedingPlan_CUST
A1: LANDOWNER: | B1: =IF(Calculator!C1="","",Calculator!C1) -> 
A2: TRACT #: | B2: =IF(Calculator!G1="","",Calculator!G1) ->  | E2: NRCS Std.: | F2: =IF(Calculator!$Z$2=1,327,IF(Calculator!$Z$2=2,342,IF(Calculator!$Z$2=3,512,""))) -> 
A3: Field(s): | B3: =IF(Calculator!G2="","",Calculator!G2) ->  | E3: Plan by: | F3: =IF(Calculator!I1="","",Calculator!I1) -> 
A5: Total Acres: | B5: =IF(Calculator!G3="","",Calculator!G3) ->  | E5: Plan date: | F5: =IF(Calculator!I2="","",Calculator!I2) -> 
A6: County: | B6: =IF(Calculator!C2="","",Calculator!C2) ->  | I6: =+I8 -> 0 | K6: HIDDEN
I7: =MAX(I13:I32) -> 0
I8: =MAX(J37:J76) -> 0
A11: GRASSES
A12: Common Name | B12: Scientific Name | D12: Intro/ Native | E12: PLS (lbs / Acre) | F12: PLS Total Lbs.
A13: =IF(Calculator!B15<>"",Calculator!B15,"") ->  | B13: =IF(Calculator!C15<>"",Calculator!C15,"") ->  | D13: =IF(A13="","",IF(Calculator!AB15=1,"Intro","Native")) ->  | E13: =IF(A13="","",SUM(Calculator!E15:E16)) ->  | F13: =IF(OR(E13="",$B$5=""),"",E13*$B$5) ->  | I13: =IF(A13="",0,M13) -> 0 | J13: =IF(A13="","",1) ->  | M13: 1 | O13: =IF(D13="","",IF(D13="Native","N","I")) ->  | P13: =IF(O13="I",1,"") ->  | Q13: =IF(O13="N",1,"") -> 
A14: =IF(Calculator!B17<>"",Calculator!B17,"") ->  | B14: =IF(Calculator!C17<>"",Calculator!C17,"") ->  | D14: =IF(A14="","",IF(Calculator!AB17=1,"Intro","Native")) ->  | E14: =IF(A14="","",SUM(Calculator!E17:E18)) ->  | I14: =IF(A14="",0,M14) -> 0 | J14: =IF(A14="","",1) ->  | M14: =+M13+1 -> 2 | O14: =IF(D14="","",IF(D14="Native","N","I")) ->  | P14: =IF(O14="I",1,"") ->  | Q14: =IF(O14="N",1,"") -> 
A15: =IF(Calculator!B19<>"",Calculator!B19,"") ->  | B15: =IF(Calculator!C19<>"",Calculator!C19,"") ->  | D15: =IF(A15="","",IF(Calculator!AB19=1,"Intro","Native")) ->  | E15: =IF(A15="","",SUM(Calculator!E19:E20)) ->  | I15: 0 | M15: =+M14+1 -> 3
A16: =IF(Calculator!B21<>"",Calculator!B21,"") ->  | B16: =IF(Calculator!C21<>"",Calculator!C21,"") ->  | D16: =IF(A16="","",IF(Calculator!AB21=1,"Intro","Native")) ->  | E16: =IF(A16="","",SUM(Calculator!E21:E22)) ->  | I16: 0 | M16: 4
A17: =IF(Calculator!B23<>"",Calculator!B23,"") ->  | B17: =IF(Calculator!C23<>"",Calculator!C23,"") ->  | D17: =IF(A17="","",IF(Calculator!AB23=1,"Intro","Native")) ->  | E17: =IF(A17="","",SUM(Calculator!E23:E24)) ->  | I17: 0 | M17: 5
A18: =IF(Calculator!B25<>"",Calculator!B25,"") ->  | B18: =IF(Calculator!C25<>"",Calculator!C25,"") ->  | D18: =IF(A18="","",IF(Calculator!AB25=1,"Intro","Native")) ->  | E18: =IF(A18="","",SUM(Calculator!E25:E26)) ->  | I18: 0 | M18: 6
A19: =IF(Calculator!B27<>"",Calculator!B27,"") ->  | B19: =IF(Calculator!C27<>"",Calculator!C27,"") ->  | D19: =IF(A19="","",IF(Calculator!AB27=1,"Intro","Native")) ->  | E19: =IF(A19="","",SUM(Calculator!E27:E28)) ->  | I19: 0 | M19: 7
A20: =IF(Calculator!B29<>"",Calculator!B29,"") ->  | B20: =IF(Calculator!C29<>"",Calculator!C29,"") ->  | D20: =IF(A20="","",IF(Calculator!AB29=1,"Intro","Native")) ->  | E20: =IF(A20="","",SUM(Calculator!E29:E30)) ->  | I20: 0 | M20: 8
A21: =IF(Calculator!B31<>"",Calculator!B31,"") ->  | B21: =IF(Calculator!C31<>"",Calculator!C31,"") ->  | D21: =IF(A21="","",IF(Calculator!AB31=1,"Intro","Native")) ->  | E21: =IF(A21="","",SUM(Calculator!E31:E32)) ->  | I21: 0 | M21: 9
A22: =IF(Calculator!B33<>"",Calculator!B33,"") ->  | B22: =IF(Calculator!C33<>"",Calculator!C33,"") ->  | D22: =IF(A22="","",IF(Calculator!AB33=1,"Intro","Native")) ->  | E22: =IF(A22="","",SUM(Calculator!E33:E34)) ->  | I22: 0 | M22: 10
A23: =IF(Calculator!B35<>"",Calculator!B35,"") ->  | B23: =IF(Calculator!C35<>"",Calculator!C35,"") ->  | D23: =IF(A23="","",IF(Calculator!AB35=1,"Intro","Native")) ->  | E23: =IF(A23="","",SUM(Calculator!E35:E36)) ->  | I23: 0 | M23: 11
A24: =IF(Calculator!B37<>"",Calculator!B37,"") ->  | B24: =IF(Calculator!C37<>"",Calculator!C37,"") ->  | D24: =IF(A24="","",IF(Calculator!AB37=1,"Intro","Native")) ->  | E24: =IF(A24="","",SUM(Calculator!E37:E38)) ->  | I24: 0 | M24: 12
A25: =IF(Calculator!B39<>"",Calculator!B39,"") ->  | B25: =IF(Calculator!C39<>"",Calculator!C39,"") ->  | D25: =IF(A25="","",IF(Calculator!AB39=1,"Intro","Native")) ->  | E25: =IF(A25="","",SUM(Calculator!E39:E40)) ->  | I25: 0 | M25: 13
A26: =IF(Calculator!B41<>"",Calculator!B41,"") ->  | B26: =IF(Calculator!C41<>"",Calculator!C41,"") ->  | D26: =IF(A26="","",IF(Calculator!AB41=1,"Intro","Native")) ->  | E26: =IF(A26="","",SUM(Calculator!E41:E42)) ->  | I26: 0 | M26: 14
A27: =IF(Calculator!B43<>"",Calculator!B43,"") ->  | B27: =IF(Calculator!C43<>"",Calculator!C43,"") ->  | D27: =IF(A27="","",IF(Calculator!AB43=1,"Intro","Native")) ->  | E27: =IF(A27="","",SUM(Calculator!E43:E44)) ->  | I27: 0 | M27: 15
A28: =IF(Calculator!B45<>"",Calculator!B45,"") ->  | B28: =IF(Calculator!C45<>"",Calculator!C45,"") ->  | D28: =IF(A28="","",IF(Calculator!AB45=1,"Intro","Native")) ->  | E28: =IF(A28="","",SUM(Calculator!E45:E46)) ->  | I28: 0 | M28: 16
A29: =IF(Calculator!B47<>"",Calculator!B47,"") ->  | B29: =IF(Calculator!C47<>"",Calculator!C47,"") ->  | D29: =IF(A29="","",IF(Calculator!AB47=1,"Intro","Native")) ->  | E29: =IF(A29="","",SUM(Calculator!E47:E48)) ->  | I29: 0 | M29: 17
A30: =IF(Calculator!B49<>"",Calculator!B49,"") ->  | B30: =IF(Calculator!C49<>"",Calculator!C49,"") ->  | D30: =IF(A30="","",IF(Calculator!AB49=1,"Intro","Native")) ->  | E30: =IF(A30="","",SUM(Calculator!E49:E50)) ->  | I30: 0 | M30: 18
A31: =IF(Calculator!B51<>"",Calculator!B51,"") ->  | B31: =IF(Calculator!C51<>"",Calculator!C51,"") ->  | D31: =IF(A31="","",IF(Calculator!AB51=1,"Intro","Native")) ->  | E31: =IF(A31="","",SUM(Calculator!E51:E52)) ->  | I31: 0 | M31: 19
A32: =IF(Calculator!B53<>"",Calculator!B53,"") ->  | B32: =IF(Calculator!C53<>"",Calculator!C53,"") ->  | D32: =IF(A32="","",IF(Calculator!AB53=1,"Intro","Native")) ->  | E32: =IF(A32="","",SUM(Calculator!E53:E54)) ->  | I32: 0 | M32: 20
J33: =SUM(J13:J32) -> 0
A34: TOTAL GRASSES: | E34: =SUM(E13:E32) -> 0 | F34: =SUM(F13:F32) -> 0
A35: FORBS/LEGUMES
A36: Common Name | B36: Scientific Name | D36: Intro/ Native | E36: PLS (lbs / Acre) | F36: PLS Total Lbs. | G36: PLS (oz./Acre) | H36: PLS Total Oz.
A37: =IF(Calculator!B63<>"",Calculator!B63,"") ->  | B37: =IF(Calculator!C63<>"",Calculator!C63,"") ->  | D37: =IF(A37="","",IF(Calculator!AE63=1,"Intro","Native")) ->  | E37: =IF(OR($A37="",$D37="Native"),"",SUM(Calculator!E63:E64)) ->  | F37: =IF(OR(E37="",$B$5=""),"",E37*$B$5) ->  | G37: =IF(OR($A37="",$D37="Intro"),"",SUM(Calculator!G63:G64)) ->  | H37: =IF(OR(G37="",$B$5=""),"",G37*$B$5) ->  | I37: =IF(A37="","",IF(Calculator!AR63=1,"X","")) ->  | J37: =IF(A37="",0,M37) -> 0 | M37: 1 | O37: =IF(D37="","",IF(D37="Native","N","I")) ->  | P37: =IF(O37="I",1,"") ->  | Q37: =IF(O37="N",1,"") -> 
A38: =IF(Calculator!B65<>"",Calculator!B65,"") ->  | B38: =IF(Calculator!C65<>"",Calculator!C65,"") ->  | D38: =IF(A38="","",IF(Calculator!AE65=1,"Intro","Native")) ->  | E38: =IF(OR($A38="",$D38="Native"),"",SUM(Calculator!E65:E66)) ->  | G38: =IF(OR($A38="",$D38="Intro"),"",SUM(Calculator!G65:G66)) ->  | I38: =IF(A38="","",IF(Calculator!AR65=1,"X","")) ->  | J38: =IF(A38="",0,M38) -> 0 | M38: =+M37+1 -> 2
A39: =IF(Calculator!B67<>"",Calculator!B67,"") ->  | B39: =IF(Calculator!C67<>"",Calculator!C67,"") ->  | D39: =IF(A39="","",IF(Calculator!AE67=1,"Intro","Native")) ->  | E39: =IF(OR(A39="",D39="Native"),"",SUM(Calculator!E67:E68)) ->  | G39: =IF(OR(A39="",D39="Intro"),"",SUM(Calculator!G67:G68)) ->  | I39: =IF(A39="","",IF(Calculator!AR67=1,"X","")) ->  | J39: 0 | M39: =+M38+1 -> 3
A40: =IF(Calculator!B69<>"",Calculator!B69,"") ->  | B40: =IF(Calculator!C69<>"",Calculator!C69,"") ->  | D40: =IF(A40="","",IF(Calculator!AE69=1,"Intro","Native")) ->  | E40: =IF(OR(A40="",D40="Native"),"",SUM(Calculator!E69:E70)) ->  | G40: =IF(OR(A40="",D40="Intro"),"",SUM(Calculator!G69:G70)) ->  | I40: =IF(A40="","",IF(Calculator!AR69=1,"X","")) ->  | J40: 0 | M40: 4
A41: =IF(Calculator!B71<>"",Calculator!B71,"") ->  | B41: =IF(Calculator!C71<>"",Calculator!C71,"") ->  | D41: =IF(A41="","",IF(Calculator!AE71=1,"Intro","Native")) ->  | E41: =IF(OR(A41="",D41="Native"),"",SUM(Calculator!E71:E72)) ->  | G41: =IF(OR(A41="",D41="Intro"),"",SUM(Calculator!G71:G72)) ->  | I41: =IF(A41="","",IF(Calculator!AR71=1,"X","")) ->  | J41: 0 | M41: 5
A42: =IF(Calculator!B73<>"",Calculator!B73,"") ->  | B42: =IF(Calculator!C73<>"",Calculator!C73,"") ->  | D42: =IF(A42="","",IF(Calculator!AE73=1,"Intro","Native")) ->  | E42: =IF(OR(A42="",D42="Native"),"",SUM(Calculator!E73:E74)) ->  | G42: =IF(OR(A42="",D42="Intro"),"",SUM(Calculator!G73:G74)) ->  | I42: =IF(A42="","",IF(Calculator!AR73=1,"X","")) ->  | J42: 0 | M42: 6
A43: =IF(Calculator!B75<>"",Calculator!B75,"") ->  | B43: =IF(Calculator!C75<>"",Calculator!C75,"") ->  | D43: =IF(A43="","",IF(Calculator!AE75=1,"Intro","Native")) ->  | E43: =IF(OR(A43="",D43="Native"),"",SUM(Calculator!E75:E76)) ->  | G43: =IF(OR(A43="",D43="Intro"),"",SUM(Calculator!G75:G76)) ->  | I43: =IF(A43="","",IF(Calculator!AR75=1,"X","")) ->  | J43: 0 | M43: 7
A44: =IF(Calculator!B77<>"",Calculator!B77,"") ->  | B44: =IF(Calculator!C77<>"",Calculator!C77,"") ->  | D44: =IF(A44="","",IF(Calculator!AE77=1,"Intro","Native")) ->  | E44: =IF(OR(A44="",D44="Native"),"",SUM(Calculator!E77:E78)) ->  | G44: =IF(OR(A44="",D44="Intro"),"",SUM(Calculator!G77:G78)) ->  | I44: =IF(A44="","",IF(Calculator!AR77=1,"X","")) ->  | J44: 0 | M44: 8
A45: =IF(Calculator!B79<>"",Calculator!B79,"") ->  | B45: =IF(Calculator!C79<>"",Calculator!C79,"") ->  | D45: =IF(A45="","",IF(Calculator!AE79=1,"Intro","Native")) ->  | E45: =IF(OR(A45="",D45="Native"),"",SUM(Calculator!E79:E80)) ->  | G45: =IF(OR(A45="",D45="Intro"),"",SUM(Calculator!G79:G80)) ->  | I45: =IF(A45="","",IF(Calculator!AR79=1,"X","")) ->  | J45: 0 | M45: 9
A46: =IF(Calculator!B81<>"",Calculator!B81,"") ->  | B46: =IF(Calculator!C81<>"",Calculator!C81,"") ->  | D46: =IF(A46="","",IF(Calculator!AE81=1,"Intro","Native")) ->  | E46: =IF(OR(A46="",D46="Native"),"",SUM(Calculator!E81:E82)) ->  | G46: =IF(OR(A46="",D46="Intro"),"",SUM(Calculator!G81:G82)) ->  | I46: =IF(A46="","",IF(Calculator!AR81=1,"X","")) ->  | J46: 0 | M46: 10
A47: =IF(Calculator!B83<>"",Calculator!B83,"") ->  | B47: =IF(Calculator!C83<>"",Calculator!C83,"") ->  | D47: =IF(A47="","",IF(Calculator!AE83=1,"Intro","Native")) ->  | E47: =IF(OR(A47="",D47="Native"),"",SUM(Calculator!E83:E84)) ->  | G47: =IF(OR(A47="",D47="Intro"),"",SUM(Calculator!G83:G84)) ->  | I47: =IF(A47="","",IF(Calculator!AR83=1,"X","")) ->  | J47: 0 | M47: 11
A48: =IF(Calculator!B85<>"",Calculator!B85,"") ->  | B48: =IF(Calculator!C85<>"",Calculator!C85,"") ->  | D48: =IF(A48="","",IF(Calculator!AE85=1,"Intro","Native")) ->  | E48: =IF(OR(A48="",D48="Native"),"",SUM(Calculator!E85:E86)) ->  | G48: =IF(OR(A48="",D48="Intro"),"",SUM(Calculator!G85:G86)) ->  | I48: =IF(A48="","",IF(Calculator!AR85=1,"X","")) ->  | J48: 0 | M48: 12
A49: =IF(Calculator!B87<>"",Calculator!B87,"") ->  | B49: =IF(Calculator!C87<>"",Calculator!C87,"") ->  | D49: =IF(A49="","",IF(Calculator!AE87=1,"Intro","Native")) ->  | E49: =IF(OR(A49="",D49="Native"),"",SUM(Calculator!E87:E88)) ->  | G49: =IF(OR(A49="",D49="Intro"),"",SUM(Calculator!G87:G88)) ->  | I49: =IF(A49="","",IF(Calculator!AR87=1,"X","")) ->  | J49: 0 | M49: 13
A50: =IF(Calculator!B89<>"",Calculator!B89,"") ->  | B50: =IF(Calculator!C89<>"",Calculator!C89,"") ->  | D50: =IF(A50="","",IF(Calculator!AE89=1,"Intro","Native")) ->  | E50: =IF(OR(A50="",D50="Native"),"",SUM(Calculator!E89:E90)) ->  | G50: =IF(OR(A50="",D50="Intro"),"",SUM(Calculator!G89:G90)) ->  | I50: =IF(A50="","",IF(Calculator!AR89=1,"X","")) ->  | J50: 0 | M50: 14
A51: =IF(Calculator!B91<>"",Calculator!B91,"") ->  | B51: =IF(Calculator!C91<>"",Calculator!C91,"") ->  | D51: =IF(A51="","",IF(Calculator!AE91=1,"Intro","Native")) ->  | E51: =IF(OR(A51="",D51="Native"),"",SUM(Calculator!E91:E92)) ->  | G51: =IF(OR(A51="",D51="Intro"),"",SUM(Calculator!G91:G92)) ->  | I51: =IF(A51="","",IF(Calculator!AR91=1,"X","")) ->  | J51: 0 | M51: 15
A52: =IF(Calculator!B93<>"",Calculator!B93,"") ->  | B52: =IF(Calculator!C93<>"",Calculator!C93,"") ->  | D52: =IF(A52="","",IF(Calculator!AE93=1,"Intro","Native")) ->  | E52: =IF(OR(A52="",D52="Native"),"",SUM(Calculator!E93:E94)) ->  | G52: =IF(OR(A52="",D52="Intro"),"",SUM(Calculator!G93:G94)) ->  | I52: =IF(A52="","",IF(Calculator!AR93=1,"X","")) ->  | J52: 0 | M52: 16
A53: =IF(Calculator!B95<>"",Calculator!B95,"") ->  | B53: =IF(Calculator!C95<>"",Calculator!C95,"") ->  | D53: =IF(A53="","",IF(Calculator!AE95=1,"Intro","Native")) ->  | E53: =IF(OR(A53="",D53="Native"),"",SUM(Calculator!E95:E96)) ->  | G53: =IF(OR(A53="",D53="Intro"),"",SUM(Calculator!G95:G96)) ->  | I53: =IF(A53="","",IF(Calculator!AR95=1,"X","")) ->  | J53: 0 | M53: 17
A54: =IF(Calculator!B97<>"",Calculator!B97,"") ->  | B54: =IF(Calculator!C97<>"",Calculator!C97,"") ->  | D54: =IF(A54="","",IF(Calculator!AE97=1,"Intro","Native")) ->  | E54: =IF(OR(A54="",D54="Native"),"",SUM(Calculator!E97:E98)) ->  | G54: =IF(OR(A54="",D54="Intro"),"",SUM(Calculator!G97:G98)) ->  | I54: =IF(A54="","",IF(Calculator!AR97=1,"X","")) ->  | J54: 0 | M54: 18
A55: =IF(Calculator!B99<>"",Calculator!B99,"") ->  | B55: =IF(Calculator!C99<>"",Calculator!C99,"") ->  | D55: =IF(A55="","",IF(Calculator!AE99=1,"Intro","Native")) ->  | E55: =IF(OR(A55="",D55="Native"),"",SUM(Calculator!E99:E100)) ->  | G55: =IF(OR(A55="",D55="Intro"),"",SUM(Calculator!G99:G100)) ->  | I55: =IF(A55="","",IF(Calculator!AR99=1,"X","")) ->  | J55: 0 | M55: 19
A56: =IF(Calculator!B101<>"",Calculator!B101,"") ->  | B56: =IF(Calculator!C101<>"",Calculator!C101,"") ->  | D56: =IF(A56="","",IF(Calculator!AE101=1,"Intro","Native")) ->  | E56: =IF(OR(A56="",D56="Native"),"",SUM(Calculator!E101:E102)) ->  | G56: =IF(OR(A56="",D56="Intro"),"",SUM(Calculator!G101:G102)) ->  | I56: =IF(A56="","",IF(Calculator!AR101=1,"X","")) ->  | J56: 0 | M56: 20
A57: =IF(Calculator!B103<>"",Calculator!B103,"") ->  | B57: =IF(Calculator!C103<>"",Calculator!C103,"") ->  | D57: =IF(A57="","",IF(Calculator!AE103=1,"Intro","Native")) ->  | E57: =IF(OR(A57="",D57="Native"),"",SUM(Calculator!E103:E104)) ->  | G57: =IF(OR(A57="",D57="Intro"),"",SUM(Calculator!G103:G104)) ->  | I57: =IF(A57="","",IF(Calculator!AR103=1,"X","")) ->  | J57: 0 | M57: 21
A58: =IF(Calculator!B105<>"",Calculator!B105,"") ->  | B58: =IF(Calculator!C105<>"",Calculator!C105,"") ->  | D58: =IF(A58="","",IF(Calculator!AE105=1,"Intro","Native")) ->  | E58: =IF(OR(A58="",D58="Native"),"",SUM(Calculator!E105:E106)) ->  | G58: =IF(OR(A58="",D58="Intro"),"",SUM(Calculator!G105:G106)) ->  | I58: =IF(A58="","",IF(Calculator!AR105=1,"X","")) ->  | J58: 0 | M58: 22
A59: =IF(Calculator!B107<>"",Calculator!B107,"") ->  | B59: =IF(Calculator!C107<>"",Calculator!C107,"") ->  | D59: =IF(A59="","",IF(Calculator!AE107=1,"Intro","Native")) ->  | E59: =IF(OR(A59="",D59="Native"),"",SUM(Calculator!E107:E108)) ->  | G59: =IF(OR(A59="",D59="Intro"),"",SUM(Calculator!G107:G108)) ->  | I59: =IF(A59="","",IF(Calculator!AR107=1,"X","")) ->  | J59: 0 | M59: 23
A60: =IF(Calculator!B109<>"",Calculator!B109,"") ->  | B60: =IF(Calculator!C109<>"",Calculator!C109,"") ->  | D60: =IF(A60="","",IF(Calculator!AE109=1,"Intro","Native")) ->  | E60: =IF(OR(A60="",D60="Native"),"",SUM(Calculator!E109:E110)) ->  | G60: =IF(OR(A60="",D60="Intro"),"",SUM(Calculator!G109:G110)) ->  | I60: =IF(A60="","",IF(Calculator!AR109=1,"X","")) ->  | J60: 0 | M60: 24
A61: =IF(Calculator!B111<>"",Calculator!B111,"") ->  | B61: =IF(Calculator!C111<>"",Calculator!C111,"") ->  | D61: =IF(A61="","",IF(Calculator!AE111=1,"Intro","Native")) ->  | E61: =IF(OR(A61="",D61="Native"),"",SUM(Calculator!E111:E112)) ->  | G61: =IF(OR(A61="",D61="Intro"),"",SUM(Calculator!G111:G112)) ->  | I61: =IF(A61="","",IF(Calculator!AR111=1,"X","")) ->  | J61: 0 | M61: 25
A62: =IF(Calculator!B113<>"",Calculator!B113,"") ->  | B62: =IF(Calculator!C113<>"",Calculator!C113,"") ->  | D62: =IF(A62="","",IF(Calculator!AE113=1,"Intro","Native")) ->  | E62: =IF(OR(A62="",D62="Native"),"",SUM(Calculator!E113:E114)) ->  | G62: =IF(OR(A62="",D62="Intro"),"",SUM(Calculator!G113:G114)) ->  | I62: =IF(A62="","",IF(Calculator!AR113=1,"X","")) ->  | J62: 0 | M62: 26
A63: =IF(Calculator!B115<>"",Calculator!B115,"") ->  | B63: =IF(Calculator!C115<>"",Calculator!C115,"") ->  | D63: =IF(A63="","",IF(Calculator!AE115=1,"Intro","Native")) ->  | E63: =IF(OR(A63="",D63="Native"),"",SUM(Calculator!E115:E116)) ->  | G63: =IF(OR(A63="",D63="Intro"),"",SUM(Calculator!G115:G116)) ->  | I63: =IF(A63="","",IF(Calculator!AR115=1,"X","")) ->  | J63: 0 | M63: 27
A64: =IF(Calculator!B117<>"",Calculator!B117,"") ->  | B64: =IF(Calculator!C117<>"",Calculator!C117,"") ->  | D64: =IF(A64="","",IF(Calculator!AE117=1,"Intro","Native")) ->  | E64: =IF(OR(A64="",D64="Native"),"",SUM(Calculator!E117:E118)) ->  | G64: =IF(OR(A64="",D64="Intro"),"",SUM(Calculator!G117:G118)) ->  | I64: =IF(A64="","",IF(Calculator!AR117=1,"X","")) ->  | J64: 0 | M64: 28
A65: =IF(Calculator!B119<>"",Calculator!B119,"") ->  | B65: =IF(Calculator!C119<>"",Calculator!C119,"") ->  | D65: =IF(A65="","",IF(Calculator!AE119=1,"Intro","Native")) ->  | E65: =IF(OR(A65="",D65="Native"),"",SUM(Calculator!E119:E120)) ->  | G65: =IF(OR(A65="",D65="Intro"),"",SUM(Calculator!G119:G120)) ->  | I65: =IF(A65="","",IF(Calculator!AR119=1,"X","")) ->  | J65: 0 | M65: 29
A66: =IF(Calculator!B121<>"",Calculator!B121,"") ->  | B66: =IF(Calculator!C121<>"",Calculator!C121,"") ->  | D66: =IF(A66="","",IF(Calculator!AE121=1,"Intro","Native")) ->  | E66: =IF(OR(A66="",D66="Native"),"",SUM(Calculator!E121:E122)) ->  | G66: =IF(OR(A66="",D66="Intro"),"",SUM(Calculator!G121:G122)) ->  | I66: =IF(A66="","",IF(Calculator!A121=1,"X","")) ->  | J66: 0 | M66: 30
A67: =IF(Calculator!B123<>"",Calculator!B123,"") ->  | B67: =IF(Calculator!C123<>"",Calculator!C123,"") ->  | D67: =IF(A67="","",IF(Calculator!AE123=1,"Intro","Native")) ->  | E67: =IF(OR(A67="",D67="Native"),"",SUM(Calculator!E123:E124)) ->  | G67: =IF(OR(A67="",D67="Intro"),"",SUM(Calculator!G123:G124)) ->  | I67: =IF(A67="","",IF(Calculator!AR123=1,"X","")) ->  | J67: 0 | M67: 31
A68: =IF(Calculator!B125<>"",Calculator!B125,"") ->  | B68: =IF(Calculator!C125<>"",Calculator!C125,"") ->  | D68: =IF(A68="","",IF(Calculator!AE125=1,"Intro","Native")) ->  | E68: =IF(OR(A68="",D68="Native"),"",SUM(Calculator!E125:E126)) ->  | G68: =IF(OR(A68="",D68="Intro"),"",SUM(Calculator!G125:G126)) ->  | I68: =IF(A68="","",IF(Calculator!AR125=1,"X","")) ->  | J68: 0 | M68: 32
A69: =IF(Calculator!B127<>"",Calculator!B127,"") ->  | B69: =IF(Calculator!C127<>"",Calculator!C127,"") ->  | D69: =IF(A69="","",IF(Calculator!AE127=1,"Intro","Native")) ->  | E69: =IF(OR(A69="",D69="Native"),"",SUM(Calculator!E127:E128)) ->  | G69: =IF(OR(A69="",D69="Intro"),"",SUM(Calculator!G127:G128)) ->  | I69: =IF(A69="","",IF(Calculator!AR127=1,"X","")) ->  | J69: 0 | M69: 33
A70: =IF(Calculator!B129<>"",Calculator!B129,"") ->  | B70: =IF(Calculator!C129<>"",Calculator!C129,"") ->  | D70: =IF(A70="","",IF(Calculator!AE129=1,"Intro","Native")) ->  | E70: =IF(OR(A70="",D70="Native"),"",SUM(Calculator!E129:E130)) ->  | G70: =IF(OR(A70="",D70="Intro"),"",SUM(Calculator!G129:G130)) ->  | I70: =IF(A70="","",IF(Calculator!AR129=1,"X","")) ->  | J70: 0 | M70: 34
A71: =IF(Calculator!B131<>"",Calculator!B131,"") ->  | B71: =IF(Calculator!C131<>"",Calculator!C131,"") ->  | D71: =IF(A71="","",IF(Calculator!AE131=1,"Intro","Native")) ->  | E71: =IF(OR(A71="",D71="Native"),"",SUM(Calculator!E131:E132)) ->  | G71: =IF(OR(A71="",D71="Intro"),"",SUM(Calculator!G131:G132)) ->  | I71: =IF(A71="","",IF(Calculator!AR131=1,"X","")) ->  | J71: 0 | M71: 35
A72: =IF(Calculator!B133<>"",Calculator!B133,"") ->  | B72: =IF(Calculator!C133<>"",Calculator!C133,"") ->  | D72: =IF(A72="","",IF(Calculator!AE133=1,"Intro","Native")) ->  | E72: =IF(OR(A72="",D72="Native"),"",SUM(Calculator!E133:E134)) ->  | G72: =IF(OR(A72="",D72="Intro"),"",SUM(Calculator!G133:G134)) ->  | I72: =IF(A72="","",IF(Calculator!AR133=1,"X","")) ->  | J72: 0 | M72: 36
A73: =IF(Calculator!B135<>"",Calculator!B135,"") ->  | B73: =IF(Calculator!C135<>"",Calculator!C135,"") ->  | D73: =IF(A73="","",IF(Calculator!AE135=1,"Intro","Native")) ->  | E73: =IF(OR(A73="",D73="Native"),"",SUM(Calculator!E135:E136)) ->  | G73: =IF(OR(A73="",D73="Intro"),"",SUM(Calculator!G135:G136)) ->  | I73: =IF(A73="","",IF(Calculator!AR135=1,"X","")) ->  | J73: 0 | M73: 37
A74: =IF(Calculator!B137<>"",Calculator!B137,"") ->  | B74: =IF(Calculator!C137<>"",Calculator!C137,"") ->  | D74: =IF(A74="","",IF(Calculator!AE137=1,"Intro","Native")) ->  | E74: =IF(OR(A74="",D74="Native"),"",SUM(Calculator!E137:E138)) ->  | G74: =IF(OR(A74="",D74="Intro"),"",SUM(Calculator!G137:G138)) ->  | I74: =IF(A74="","",IF(Calculator!AR137=1,"X","")) ->  | J74: 0 | M74: 38
A75: =IF(Calculator!B139<>"",Calculator!B139,"") ->  | B75: =IF(Calculator!C139<>"",Calculator!C139,"") ->  | D75: =IF(A75="","",IF(Calculator!AE139=1,"Intro","Native")) ->  | E75: =IF(OR(A75="",D75="Native"),"",SUM(Calculator!E139:E140)) ->  | G75: =IF(OR(A75="",D75="Intro"),"",SUM(Calculator!G139:G140)) ->  | I75: =IF(A75="","",IF(Calculator!AR139=1,"X","")) ->  | J75: 0 | M75: 39
A76: =IF(Calculator!B141<>"",Calculator!B141,"") ->  | B76: =IF(Calculator!C141<>"",Calculator!C141,"") ->  | D76: =IF(A76="","",IF(Calculator!AE141=1,"Intro","Native")) ->  | E76: =IF(OR(A76="",D76="Native"),"",SUM(Calculator!E141:E142)) ->  | G76: =IF(OR(A76="",D76="Intro"),"",SUM(Calculator!G141:G142)) ->  | I76: =IF(A76="","",IF(Calculator!AR141=1,"X","")) ->  | J76: 0 | M76: 40
A78: TOTAL FORBS/LEGUMES: | E78: =IF(SUM(E37:E76)=0,"",SUM(E37:E76)) ->  | F78: =IF(SUM(F37:F76)=0,"",SUM(F37:F76)) ->  | G78: =IF(SUM(G37:G76)=0,"",SUM(G37:G76)) ->  | H78: =IF(SUM(H37:H76)=0,"",SUM(H37:H76)) ->  | J78: =SUM(J37:J76) -> 0 | P78: =SUM(P13:P76) -> 0 | Q78: =SUM(Q13:Q76) -> 0
A80: SEEDING DATES | D80: Spring Seeding | E80: Late Summer | F80: Fall Dormant Seeding | H80: Frost Seeding Allowed?
A81: =IF(OR(K91=0,B6=""),"",IF(OR(K91=1,K91=3),VLOOKUP(Counties!$P$24,Counties!$R$2:$W$10,3),"")) ->  | D81: =IF(A81="","",VLOOKUP(Counties!$P$24,Counties!$R$2:$W$10,4)) ->  | E81: =IF(A81="","",VLOOKUP(Counties!$P$24,Counties!$R$2:$W$10,5)) ->  | F81: =IF(A81="","",VLOOKUP(Counties!$P$24,Counties!$R$2:$W$10,6)) ->  | H81: =IF(A81="","",VLOOKUP(Counties!$P$24,Counties!$R$2:$X$10,7)) -> 
A82: =IF(OR(K91=0,B6=""),"",IF(OR(K91=2,K91=3),VLOOKUP(Counties!$P$24,Counties!$R$10:$W$19,3),"")) ->  | D82: =IF(A82="","",VLOOKUP(Counties!$P$24,Counties!$R$10:$W$19,4)) ->  | E82: =IF(A82="","",VLOOKUP(Counties!$P$24,Counties!$R$10:$W$19,5)) ->  | F82: =IF(A82="","",VLOOKUP(Counties!$P$24,Counties!$R$10:$W$19,6)) ->  | H82: =IF(A82="","",VLOOKUP(Counties!$P$24,Counties!$R$10:$X$19,7)) -> 
D83: lbs/acre | E83: Total lbs. | F83: OR | G83: Bu./Acre | H83: Total Bu.
A84: Temporary Cover Crop: | B84: NONE | D84: =IF(OR(B84="",B84="none"),"",VLOOKUP(B84,comp_temp!P7:Q13,2)) ->  | E84: =IF(OR($B$5="",D84=""),"",D84*$B$5) ->  | F84: =IF(ISNUMBER(D84),"OR","") ->  | G84: =IF(OR(B84="",B84="none"),"",VLOOKUP(B84,comp_temp!P7:R13,3)) ->  | H84: =IF(OR($B$5="",D84=""),"",G84*$B$5) -> 
A85: Companion Crop: | E85: =IF(OR(D85="",$B$5=""),"",D85*$B$5) ->  | F85: =IF(ISNUMBER(D85),"OR","") ->  | G85: =IF(OR(B85="",B85="none"),"",VLOOKUP(B85,comp_temp!P33:R44,3)) ->  | H85: =IF(OR($B$5="",D85=""),"",G85*$B$5) -> 
A86: You must pick Yes or No
A88: Fertilizer & Lime | E88: Total Lbs. Needed | H88: General
H89: Soil Test
A90: 80-89 Lime | D90: =+O91 ->  | E90: =IF(ISNUMBER(D90),D90*$B$5,"") ->  | H90: Fert./Lime Not Needed | L90: yes/no box status
A91: Nitrogen | D91: =+O91 ->  | E91: =IF(ISNUMBER(D91),D91*$B$5,"") ->  | K91: =IF(AND(P78=0,Q78=0),0,IF(P78>0,1,IF(AND(P78=0,Q78>0),2))) -> 0 | L91: determines intro(1),native(2), or both(3) in mix | O91: =IF(K91=2,"N/R",IF(F2=512,"ST","")) -> 
A92: Phosphate (P205) | D92: =+O91 ->  | E92: =IF(ISNUMBER(D92),D92*$B$5,"") ->  | H92: =IF(O$91=2,"N/R","") -> 
A93: Potash (K20) | D93: =+O91 ->  | E93: =IF(ISNUMBER(D93),D93*$B$5,"") -> 
D94: =IF(D90="N/R","N/R=Not Recommended for Pure Native Mixes",IF(D90="ST","ST=Soil Test Required","")) -> 
C95: 2000
A96: Seeding was completed on: | D96: according to the above requirements.
B97: (Date)

Sheet Grasses
A1: 1 | B1: 2 | C1: 3 | D1: 4 | E1: 5 | F1: 6 | G1: 7 | H1: 8 | I1: 9 | J1: 10 | K1: 11 | L1: 12 | M1: 13 | N1: 14 | O1: 15 | P1: 16 | Q1: MOISTURE REGIME | Z1: Forage Suitablility Groups (FSG) | AJ1: Forage Productivity | AO1: Intro/Native | AP1: Pure Stand Rate
A2: Common Name | B2: Plant Type | C2: Scientific Name | D2: Estimated Cost/lb | E2: Seeds/lb. | F2: Seeds/sq ft @ 1 lb./ac | H2: Blooming period | I2: Growth Form | J2: Suitable For Pollinators | K2: Wildlife Value | L2: Retardance Capacity | M2: Forage Productivity | N2: Fertility Requirements | O2: Moisture Regime | P2: FSG | Q2: D | R2: DM | S2: M | T2: WM | U2: W | V2: ALL | W2: INTRO | X2: NAT | Y2: BOTH | Z2: 1 | AA2: 2 | AB2: 3 | AC2: 4 | AD2: 5 | AE2: 6 | AF2: 7 | AG2: 8 | AH2: 9 | AI2: 10 | AJ2: LOW | AK2: MED | AL2: HIGH | AM2: Pasture | AN2: POLLINATOR
C3: LEAVE THIS ROW BLANK | Q3: X | R3: X | S3: X | T3: X | U3: X | V3: X | W3: X | X3: X | Y3: X | Z3: X | AA3: X | AB3: X | AC3: X | AD3: X | AE3: X | AF3: X | AG3: X | AH3: X | AI3: X | AJ3: X | AK3: X | AL3: X | AM3: X | AN3: X
A4: American Mannagrass | B4: Grass | C4: Glyceria grandis | D4: 0 | E4: 1279616 | F4: 29.38475666 | H4: Late | I4: Bunch | J4: yes | K4: fair | L4: A | M4: fair | N4: medium | O4: WM, W | P4: 4,7,10 | T4: X | U4: X | V4: X | X4: X | Y4: X | AC4: X | AF4: X | AI4: X | AK4: X | AN4: X | AO4: N
A5: Annual (Italian) Ryegrass | B5: Grass | C5: Lolium perenne L. ssp. Multiflorum | D5: 0 | E5: 227000 | F5: 5.211202938 | H5: Middle | I5: Bunch | J5: yes | K5: fair | L5: C | M5: fair | N5: medium | O5: DM,M,WM | P5: 1,4-9 | R5: X | S5: X | T5: X | V5: X | W5: X | Y5: X | Z5: X | AC5: X | AD5: X | AE5: X | AF5: X | AG5: X | AH5: X | AK5: X | AM5: X | AN5: X | AO5: I | AP5: 20
A6: Big Bluestem | B6: Grass | C6: Andropogon gerardii | D6: 0 | E6: 165000 | F6: 3.79 | H6: Middle | I6: Bunch | J6: yes | K6: good | L6: B | M6: good | N6: low | O6: D, DM, M, WM | P6: 1-9 | Q6: X | R6: X | S6: X | T6: X | V6: X | X6: X | Y6: X | Z6: X | AA6: X | AB6: X | AC6: X | AD6: X | AE6: X | AF6: X | AG6: X | AH6: X | AL6: X | AM6: X | AN6: X | AO6: N | AP6: 10
A7: Bluejoint | B7: Grass | C7: Calamagrostis canadensis | D7: 0 | E7: 4480064 | F7: 102.8466483 | H7: Early | I7: Sod-Forming | J7: no | K7: good | L7: B | M7: poor | N7: high | O7: WM, W | P7: 4,7,10 | T7: X | U7: X | V7: X | X7: X | Y7: X | AC7: X | AF7: X | AI7: X | AJ7: X | AO7: N
A8: Bottlebrush Sedge | B8: Sedge | C8: Carex hystericina | D8: 0 | E8: 480208 | F8: 11.01928375 | H8: Late | I8: Bunch | J8: yes | K8: fair | L8: C | M8: poor | N8: low | O8: WM, W | P8: 4,7,10 | T8: X | U8: X | V8: X | X8: X | Y8: X | AC8: X | AF8: X | AI8: X | AJ8: X | AN8: X | AO8: N
A9: Canada Wildrye | B9: Grass | C9: Elymus canadensis | D9: 0 | E9: 83200 | F9: 1.910009183 | H9: Early | I9: Bunch | J9: yes | K9: fair | L9: B | M9: poor | N9: medium | O9: DM, M,WM | P9: 1,3,4,5,6,7,8,9 | R9: X | S9: X | T9: X | V9: X | X9: X | Y9: X | Z9: X | AB9: X | AC9: X | AD9: X | AE9: X | AF9: X | AG9: X | AH9: X | AJ9: X | AN9: X | AO9: N
A10: Chewings Red Fescue | B10: Grass | C10: Festuca rubra L. ssp. fallax | D10: 0 | E10: 350000 | F10: 8.034894399 | H10: Early | I10: Sod-Forming | J10: no | K10: poor | L10: D | M10: poor | N10: medium | O10: D, DM, M | P10: 2,3,5,6,8,9 | Q10: X | R10: X | S10: X | V10: X | W10: X | Y10: X | AA10: X | AB10: X | AD10: X | AE10: X | AG10: X | AH10: X | AJ10: X | AM10: X | AO10: I | AP10: 5
A11: Common Rush | B11: Rush | C11: Juncus effusus | D11: 0 | E11: 16000112 | F11: 367.3094582 | H11: Middle | I11: Bunch | J11: yes | K11: good | L11: C | M11: poor | N11: mediom | O11: WM, W | P11: 4,7,10 | T11: X | U11: X | V11: X | X11: X | Y11: X | AC11: X | AF11: X | AI11: X | AJ11: X | AN11: X | AO11: N
A12: Creeping Red Fescue | B12: Grass | C12: Festuca rubra | D12: 0 | E12: 350000 | F12: 8.034894399 | H12: Early | I12: Sod-Forming | J12: no | K12: poor | L12: D | M12: poor | N12: low | O12: DM, M,WM | P12: 1,4-9 | R12: X | S12: X | T12: X | V12: X | W12: X | Y12: X | Z12: X | AC12: X | AD12: X | AE12: X | AF12: X | AG12: X | AH12: X | AJ12: X | AM12: X | AO12: I | AP12: 5
A13: Festulolium | B13: Grass | C13: Festuca x Lolium | D13: 0 | E13: 227000 | F13: 5.211202938 | H13: Middle | I13: Bunch | J13: yes | K13: fair | L13: C | M13: fair | N13: medium | O13: DM,M,WM | P13: 1-9 | R13: X | S13: X | T13: X | V13: X | W13: X | Y13: X | Z13: X | AA13: X | AB13: X | AC13: X | AD13: X | AE13: X | AF13: X | AG13: X | AH13: X | AK13: X | AM13: X | AN13: X | AO13: I | AP13: 12
A14: Fowl Mannagrass | B14: Grass | C14: Glyceria striata | D14: 0 | E14: 2560000 | F14: 58.76951331 | H14: Middle | I14: Bunch | J14: yes | K14: good | L14: B | M14: fair | N14: medium | O14: WM, W | P14: 4,7,10 | T14: X | U14: X | V14: X | X14: X | Y14: X | AC14: X | AF14: X | AI14: X | AK14: X | AN14: X | AO14: N
A15: Fox Sedge | B15: Sedge | C15: Carex vulpinoidea | D15: 0 | E15: 1599520 | F15: 36.73094582 | H15: Early | I15: Bunch | J15: yes | K15: poor | L15: B | M15: poor | N15: medium | O15: WM, W | P15: 4,7,10 | T15: X | U15: X | V15: X | X15: X | Y15: X | AC15: X | AF15: X | AI15: X | AJ15: X | AN15: X | AO15: N
A16: Green Bulrush | B16: Rush | C16: Scirpus atrovirens | D16: 0 | E16: 7359904 | F16: 168.9623508 | H16: Middle | I16: Bunch | J16: yes | K16: fair | L16: C | M16: poor | N16: low | O16: WM, W | P16: 4,7,10 | T16: X | U16: X | V16: X | X16: X | Y16: X | AC16: X | AF16: X | AI16: X | AJ16: X | AN16: X | AO16: N
A17: Hairy Grama | B17: Grass | C17: Bouteloua hirsuta | D17: 0 | E17: 1120000 | F17: 25.71166208 | H17: Middle | I17: Sod-Forming | J17: no | K17: poor | L17: D | M17: poor | N17: low | O17: D, DM | P17: 2,3,5,6 | Q17: X | R17: X | V17: X | X17: X | Y17: X | AA17: X | AB17: X | AD17: X | AE17: X | AJ17: X | AO17: N
A18: Indiangrass | B18: Grass | C18: Sorghastrum nutans | D18: 0 | E18: 192000 | F18: 4.407713499 | H18: Middle | I18: Bunch | J18: yes | K18: good | L18: B | M18: good | N18: medium | O18: D, DM, M, WM, W | P18: 1-9 | Q18: X | R18: X | S18: X | T18: X | U18: X | V18: X | X18: X | Y18: X | Z18: X | AA18: X | AB18: X | AC18: X | AD18: X | AE18: X | AF18: X | AG18: X | AH18: X | AL18: X | AM18: X | AN18: X | AO18: N | AP18: 10
A19: Intermediate Wheatgrass | B19: Grass | C19: Thinopirum intermedium | D19: 0 | E19: 88000 | F19: 30.3 | H19: Early | I19: Sod-Forming | J19: no | K19: good | L19: A | M19: good | N19: high | O19: D, DM, M | P19: 2,3,5,6,8,9 | Q19: X | R19: X | S19: X | W19: X | AA19: X | AB19: X | AC19: X | AD19: X | AE19: X | AF19: X | AG19: X | AH19: X | AL19: X | AM19: X | AO19: I | AP19: 15
A20: Kentucky Bluegrass | B20: Grass | C20: Poa pratensis | D20: 0 | E20: 2177000 | F20: 50 | H20: Early | I20: Sod-Forming | J20: no | K20: poor | L20: D | M20: fair | N20: high | O20: D, DM,M, WM,W | P20: 1 - 9 | Q20: X | R20: X | S20: X | T20: X | U20: X | V20: X | W20: X | Y20: X | Z20: X | AA20: X | AB20: X | AC20: X | AD20: X | AE20: X | AF20: X | AG20: X | AH20: X | AK20: X | AM20: X | AO20: I | AP20: 8
A21: Little Bluestem | B21: Grass | C21: Schizachyrium scoparium | D21: 0 | E21: 240000 | F21: 5.509641873 | H21: Middle | I21: Bunch | J21: yes | K21: fair | L21: D | M21: poor | N21: low | O21: D, DM, M | P21: 2,3,5,6 | Q21: X | R21: X | S21: X | V21: X | X21: X | Y21: X | AA21: X | AB21: X | AD21: X | AE21: X | AJ21: X | AN21: X | AO21: N
A22: Longhair Sedge | B22: Sedge | C22: Carex comosa | D22: 0 | E22: 480208 | F22: 11.01928375 | H22: Middle | I22: Bunch | J22: yes | K22: fair | L22: C | M22: poor | N22: low | O22: WM, W | P22: 4,7,10 | T22: X | U22: X | V22: X | X22: X | Y22: X | AC22: X | AF22: X | AI22: X | AJ22: X | AN22: X | AO22: N
A23: Meadow Fescue | B23: Grass | C23: Schedonorus pratensis | D23: 0 | E23: 227000 | F23: 5.211 | H23: Early | I23: Bunch | J23: yes | K23: fair | L23: D | M23: good | N23: high | O23: DM,M,WM | P23: 1,4-9 | R23: X | S23: X | T23: X | V23: X | W23: X | Y23: X | Z23: X | AC23: X | AD23: X | AE23: X | AF23: X | AG23: X | AH23: X | AL23: X | AM23: X | AN23: X | AO23: I | AP23: 12
A24: Orchardgrass | B24: Grass | C24: Dactylis glomerata L. | D24: 0 | E24: 653000 | F24: 14.99081726 | H24: Early | I24: Bunch | J24: yes | K24: fair | L24: B | M24: excellent | N24: medium | O24: D,DM,M,WM | P24: 1-9 | Q24: X | R24: X | S24: X | T24: X | V24: X | W24: X | Y24: X | Z24: X | AA24: X | AB24: X | AC24: X | AD24: X | AE24: X | AF24: X | AG24: X | AH24: X | AL24: X | AM24: X | AN24: X | AO24: I | AP24: 10
A25: Perennial Ryegrass | B25: Grass | C25: Lolium perenne | D25: 0 | E25: 227000 | F25: 5.211 | H25: Early | I25: Bunch | J25: yes | K25: fair | L25: C | M25: good | N25: high | O25: DM,M,WM | P25: 1,4-9 | R25: X | S25: X | T25: X | V25: X | W25: X | Y25: X | Z25: X | AC25: X | AD25: X | AE25: X | AF25: X | AG25: X | AH25: X | AL25: X | AM25: X | AN25: X | AO25: I | AP25: 20
A26: Porcupinegrass | B26: Grass | C26: Hesperostipa spartea | D26: 0 | E26: 176000 | F26: 4.0404 | H26: Early | I26: Bunch | J26: yes | K26: fair | L26: B | M26: poor | N26: low | O26: D, DM | P26: 2,3,5,6 | Q26: X | R26: X | V26: X | X26: X | Y26: X | AA26: X | AB26: X | AD26: X | AE26: X | AJ26: X | AN26: X | AO26: N
A27: Prairie Cordgrass | B27: Grass | C27: Spartina pectinata | D27: 0 | E27: 105600 | F27: 2.424242424 | H27: Middle | I27: Sod-Forming | J27: no | K27: fair | L27: A | M27: poor | N27: medium | O27: M, WM, W | P27: 4,7, 10 | S27: X | T27: X | U27: X | V27: X | X27: X | Y27: X | AC27: X | AF27: X | AI27: X | AJ27: X | AO27: N
A28: Prairie Dropseed | B28: Grass | C28: Sporobolus heterolepis | D28: 0 | E28: 256000 | F28: 5.876951331 | H28: Middle | I28: Bunch | J28: yes | K28: fair | L28: C | M28: poor | N28: medium | O28: D, DM, M | P28: 1,2,3,5,6,8,9 | Q28: X | R28: X | S28: X | V28: X | X28: X | Y28: X | Z28: X | AA28: X | AB28: X | AD28: X | AE28: X | AG28: X | AH28: X | AJ28: X | AN28: X | AO28: N
A29: Prairie Junegrass | B29: Grass | C29: Koeleria macrantha | D29: 0 | E29: 2308672 | F29: 52.99981635 | H29: Early | I29: Bunch | J29: yes | K29: fair | L29: D | M29: fair | N29: medium | O29: D, DM, M | P29: 1,2,3,5,6-9 | Q29: X | R29: X | S29: X | V29: X | X29: X | Y29: X | Z29: X | AA29: X | AB29: X | AD29: X | AE29: X | AF29: X | AG29: X | AH29: X | AK29: X | AN29: X | AO29: N
A30: Redtop | B30: Grass | C30: Agrostis gigantea | D30: 0 | E30: 4990000 | F30: 114.5546373 | H30: Early | I30: Sod-Forming | J30: no | K30: fair | L30: C | M30: fair | N30: low | O30: M, WM, W | P30: 1,4,7 | S30: X | T30: X | U30: X | V30: X | W30: X | Y30: X | Z30: X | AC30: X | AF30: X | AK30: X | AM30: X | AO30: I | AP30: 4
A31: River Bulrush | B31: Rush | C31: Schoenoplectus fluviatilis | D31: 0 | E31: 68784 | F31: 1.57943067 | H31: Middle | I31: Sod-Forming | J31: no | K31: fair | L31: C | M31: poor | N31: medium | O31: M,WM,W | P31: 4,7,10 | S31: X | T31: X | U31: X | V31: X | X31: X | Y31: X | AC31: X | AF31: X | AI31: X | AJ31: X | AO31: N
A32: Sand Dropseed | B32: Grass | C32: Sporobolus cryptandrus | D32: 0 | E32: 5314000 | F32: 122 | H32: Late | I32: Bunch | J32: yes | K32: fair | L32: C | M32: poor | N32: medium | O32: D,DM,M | P32: 2,3,5,6,8,9 | Q32: X | R32: X | S32: X | V32: X | X32: X | Y32: X | AA32: X | AB32: X | AD32: X | AE32: X | AG32: X | AH32: X | AJ32: X | AN32: X | AO32: N
A33: Sideoats Grama | B33: Grass | C33: Bouteloua curtipendula | D33: 0 | E33: 127000 | F33: 2.92 | H33: Middle | I33: Bunch | J33: yes | K33: fair | L33: D | M33: poor | N33: medium | O33: D, DM,M | P33: 1,2,3,5,6,8 | Q33: X | R33: X | S33: X | V33: X | X33: X | Y33: X | Z33: X | AA33: X | AB33: X | AD33: X | AE33: X | AG33: X | AJ33: X | AN33: X | AO33: N
A34: Smooth Bromegrass | B34: Grass | C34: Bromus inermis | D34: 0 | E34: 136000 | F34: 3.122130395 | H34: Middle | I34: Sod-Forming | J34: no | K34: fair | L34: B | M34: good | N34: high | O34: D,DM,M,WM | P34: 1-9 | Q34: X | R34: X | S34: X | T34: X | V34: X | W34: X | Y34: X | Z34: X | AA34: X | AB34: X | AC34: X | AD34: X | AE34: X | AF34: X | AG34: X | AH34: X | AL34: X | AM34: X | AO34: I | AP34: 20
A35: Softstem Bulrush | B35: Rush | C35: Schoenoplectus tabernaemontani | D35: 0 | E35: 496240 | F35: 11.3865932 | H35: Middle | I35: Sod-Forming | J35: no | K35: good | L35: C | M35: poor | N35: low | O35: WM,W | P35: 4,7,10 | T35: X | U35: X | V35: X | X35: X | Y35: X | AC35: X | AF35: X | AI35: X | AJ35: X | AO35: N
A36: Switchgrass | B36: Grass | C36: Panicum virgatum | D36: 0 | E36: 389000 | F36: 8.93 | H36: Middle | I36: Bunch | J36: yes | K36: good | L36: B | M36: good | N36: high | O36: D, DM, M, WM,W | P36: 1,2,3-9 | Q36: X | R36: X | S36: X | T36: X | U36: X | V36: X | X36: X | Y36: X | Z36: X | AA36: X | AB36: X | AC36: X | AD36: X | AE36: X | AF36: X | AG36: X | AH36: X | AL36: X | AM36: X | AN36: X | AO36: N | AP36: 7
A37: Tall Fescue | B37: Grass | C37: Festuca arundinacea | D37: 0 | E37: 227000 | F37: 5.280073462 | H37: Early | I37: Bunch | J37: yes | K37: fair | L37: B | M37: good | N37: low | O37: D,DM,M,WM | P37: 1-9 | Q37: X | R37: X | S37: X | T37: X | V37: X | W37: X | Y37: X | Z37: X | AA37: X | AB37: X | AC37: X | AD37: X | AE37: X | AF37: X | AG37: X | AH37: X | AL37: X | AM37: X | AN37: X | AO37: I | AP37: 12
A38: Timothy | B38: Grass | C38: Phleum pratense | D38: 0 | E38: 1230000 | F38: 28.24 | H38: Early | I38: Bunch | J38: yes | K38: fair | L38: B | M38: fair | N38: low | O38: DM,M,WM,W | P38: 1,4-9 | R38: X | S38: X | T38: X | U38: X | V38: X | W38: X | Y38: X | Z38: X | AC38: X | AD38: X | AE38: X | AF38: X | AG38: X | AH38: X | AK38: X | AM38: X | AN38: X | AO38: I | AP38: 8
A39: Virginia Wildrye | B39: Grass | C39: Elymus virginicus | D39: 0 | E39: 67200 | F39: 1.542699725 | H39: Early | I39: Bunch | J39: yes | K39: fair | L39: B | M39: fair | N39: medium | O39: M,WM, W | P39: 1,4,7,8,10 | S39: X | T39: X | U39: X | V39: X | X39: X | Y39: X | Z39: X | AC39: X | AF39: X | AG39: X | AI39: X | AK39: X | AN39: X | AO39: N
A40: Woolgrass | B40: Rush | C40: Scirpus cyperinus | D40: 0 | E40: 27200000 | F40: 624.426079 | H40: Late | I40: Bunch | J40: yes | K40: fair | L40: C | M40: poor | N40: medium | O40: W | P40: 1,4,7,10 | U40: X | V40: X | X40: X | Y40: X | Z40: X | AC40: X | AF40: X | AI40: X | AJ40: X | AN40: X | AO40: N
AO42: =IF(W42="","",IF(W42="x","I","N")) -> 
A46: FILTERED TABLE
A47: Common Name | B47: Scientific Name | C47: Plant Type | D47: Estimated Cost/lb | E47: Seeds/lb. | F47: Seeds/sq ft @ 1 lb./ac | G47: color code | H47: Blooming period | I47: Growth Form | J47: Suitable For Pollinators | K47: Wildlife Value | L47: Retardance Capacity | M47: Forage Productivity | N47: Fertility Requirements | O47: Moisture Regime | P47: FSG | Q47: D | R47: DM | S47: M | T47: WM | U47: W | V47: ALL | W47: INTRO | X47: NAT | Y47: BOTH | Z47: 1 | AA47: 2 | AB47: 3 | AC47: 4 | AD47: 5 | AE47: 6 | AF47: 7 | AG47: 8 | AH47: 9 | AI47: 10 | AJ47: LOW | AK47: MED | AL47: HIGH | AM47: Pasture | AN47: Pollinator
Q48: =IF(Calculator!$A$4=3,"X","") ->  | R48: =IF(Calculator!$A$4=5,"X","") ->  | S48: =IF(Calculator!$A$4=4,"X","") ->  | T48: =IF(Calculator!$A$4=6,"X","") ->  | U48: =IF(Calculator!$A$4=2,"X","") ->  | V48: =IF(Calculator!$A$4=1,"X","") ->  | W48: =IF(OR(Calculator!$A$6=2,Calculator!$A$10=1),"X","") ->  | X48: =IF(OR(Calculator!$A$6=3,Calculator!$A$10=2),"X","") ->  | Y48: =IF(OR(Calculator!$A$10=3,Calculator!$A$6=1),"X","") ->  | Z48: =IF(Calculator!$Y$2=1,"X","") ->  | AA48: =IF(Calculator!$Y$2=2,"X","") ->  | AB48: =IF(Calculator!$Y$2=3,"X","") ->  | AC48: =IF(Calculator!$Y$2=4,"X","") ->  | AD48: =IF(Calculator!$Y$2=5,"X","") ->  | AE48: =IF(Calculator!$Y$2=6,"X","") ->  | AF48: =IF(Calculator!$Y$2=7,"X","") ->  | AG48: =IF(Calculator!$Y$2=8,"X","") ->  | AH48: =IF(Calculator!$Y$2=9,"X","") ->  | AM48: =IF(Calculator!$Z$2=3,"X","") ->  | AN48: =IF(Calculator!$A$5=1,"X","") -> 
A49: Common Name | B49: Plant Type | C49: Scientific Name | D49: Estimated Cost/lb | E49: Seeds/lb. | F49: Seeds/sq ft @ 1 lb./ac | H49: Blooming period | I49: Growth Form | J49: Suitable For Pollinators | K49: Wildlife Value | L49: Retardance Capacity | M49: Forage Productivity | N49: Fertility Requirements | O49: Moisture Regime | P49: FSG | Q49: D | R49: DM | S49: M | T49: WM | U49: W | V49: ALL | W49: INTRO | X49: NAT | Y49: BOTH | Z49: 1 | AA49: 2 | AB49: 3 | AC49: 4 | AD49: 5 | AE49: 6 | AF49: 7 | AG49: 8 | AH49: 9 | AI49: 10 | AJ49: LOW | AK49: MED | AL49: HIGH | AM49: Pasture | AN49: POLLINATOR

Sheet ForbsLegumes
A1: 1 | B1: 2 | C1: 3 | D1: 4 | E1: 5 | F1: 6 | G1: 7 | H1: 8 | I1: 9 | J1: 10 | K1: 11 | L1: 12 | M1: 13 | N1: 14 | O1: 15 | P1: 16 | Q1: 17 | R1: 18 | S1: 19 | T1: MOISTURE REGIME | AD1: Forage Suitablility Groups (FSG) | AN1: Forage Productivity | AR1: Intro/Native | AS1: Pure Stand Rate
A2: Common Name | B2: Plant Type | C2: Scientific Name | D2: Estimated Cost/oz | E2: Estimated Cost/lb | F2: Seeds/oz | G2: Seeds/lb. | H2: Seeds/sq ft @ 1oz/ac | I2: Seeds/sq ft @ 1 lb./ac | J2: Blooming period | K2: Growth Form | L2: Suitable For Pollinators | M2: Wildlife Value | N2: Retardance Capacity | O2: Forage Productivity | P2: Fertility Requirements | Q2: Moisture Regime | R2: color code | S2: Forage Suitablility Groups (FSG) | T2: D | U2: DM | V2: M | W2: WM | X2: W | Y2: All | Z2: INTRO | AA2: NAT | AB2: BOTH | AC2: Pasture | AD2: 1 | AE2: 2 | AF2: 3 | AG2: 4 | AH2: 5 | AI2: 6 | AJ2: 7 | AK2: 8 | AL2: 9 | AM2: 10 | AN2: LOW | AO2: MED | AP2: HIGH | AQ2: Pollinator | AT2: Monarch Friendly
C3: Leave this row blank | E3: =D3*16 -> 0 | R3: 0 | T3: X | U3: X | V3: X | W3: X | X3: X | Y3: X | Z3: X | AA3: X | AB3: X | AC3: X | AD3: X | AE3: X | AF3: X | AG3: X | AH3: X | AI3: X | AJ3: X | AK3: X | AL3: X | AM3: X | AN3: X | AO3: X | AP3: X | AQ3: X
A4: Alfalfa | B4: Legume | C4: Medicago sativa | D4: 0 | E4: =+D4*16 -> 0 | F4: 13688 | G4: 219000 | H4: 0.314 | I4: =+H4*16 -> 5.024 | J4: Middle | K4: crown | L4: Yes | M4: good | N4: C | O4: good | P4: high | Q4: D, DM, M | R4: 21 | S4: 2,3,5,6,8,9 | T4: X | U4: X | V4: X | Y4: X | Z4: X | AB4: X | AC4: X | AE4: X | AF4: X | AH4: X | AI4: X | AK4: X | AL4: X | AP4: X | AQ4: X | AR4: I | AS4: 12
A5: Alsike Clover | B5: Legume | C5: Trifolium hybridum | D5: 0 | E5: 0 | F5: 42500 | G5: 680000 | H5: 0.975 | I5: 15.6 | J5: Early-Middle | K5: crown | L5: Yes | M5: good | N5: D | O5: fair | P5: medium | Q5: M, WM, W | R5: 38 | S5: 1,4,5,7,8,9 | V5: X | W5: X | X5: X | Y5: X | Z5: X | AB5: X | AC5: X | AD5: X | AG5: X | AH5: X | AJ5: X | AK5: X | AL5: X | AN5: X | AQ5: X | AR5: I | AS5: 3
A6: Angelica | B6: Forb | C6: Angelica atropurpurea | D6: 0 | E6: 0 | F6: 5400 | G6: 86400 | H6: 0.1239669421 | I6: 1.983471074 | J6: Middle | K6: erect, single stem | L6: yes | M6: fair | N6: D | O6: N/A | P6: low | Q6: W | R6: 10 | X6: X | Y6: X | AA6: X | AB6: X | AQ6: X | AR6: N
A7: Bergamot | B7: Forb | C7: Monarda fistulosa | D7: 0 | E7: 0 | F7: 77800 | G7: 1244800 | H7: 1.786042241 | I7: 28.57667585 | J7: Middle-Late | K7: erect, stem branched | L7: yes | M7: good | N7: D | O7: N/A | P7: low | Q7: DM, M, WM | R7: 21 | U7: X | V7: X | W7: X | Y7: X | AA7: X | AB7: X | AQ7: X | AR7: N | AT7: 1
A8: Biennial Beeblossom | B8: Forb | C8: Gaura biennis | D8: 0 | E8: 0 | F8: 2700 | G8: 43200 | H8: 0.06198347107 | I8: 0.9917355372 | J8: Middle-Late | K8: erect, single stem | L8: yes | M8: fair | N8: D | O8: N/A | P8: low | Q8: M | R8: 38 | V8: X | Y8: X | AA8: X | AB8: X | AQ8: X | AR8: N
A9: Bird's Foot Violet | B9: Forb | C9: Viola pedata | D9: 0 | E9: 0 | F9: 26000 | G9: 416000 | H9: 0.597 | I9: 9.552 | J9: Early-Late | K9: erect, stemless | L9: yes | M9: poor | N9: D | O9: N/A | P9: low | Q9: D, DM | R9: 21 | T9: X | U9: X | Y9: X | AA9: X | AB9: X | AQ9: X | AR9: N
A10: Birdsfoot Trefoil | B10: Legume | C10: Lotus corniculatus | D10: 0 | E10: 0 | F10: 23437.5 | G10: 375000 | H10: 0.538 | I10: 8.608 | J10: Middle-Late | K10: single crown | L10: Yes | M10: good | N10: D | O10: fair | P10: medium | Q10: DM, M, WM,W | R10: 6 | S10: 1,4-9 | U10: X | V10: X | W10: X | X10: X | Y10: X | Z10: X | AB10: X | AC10: X | AD10: X | AG10: X | AH10: X | AI10: X | AJ10: X | AK10: X | AL10: X | AN10: X | AQ10: X | AR10: I | AS10: 7
A11: Black-Eyed Susan | B11: Forb | C11: Rudbeckia hirta | D11: 0 | E11: 0 | F11: 99600 | G11: 1593600 | H11: 2.286501377 | I11: 36.58402204 | J11: Middle-Late | K11: sinngle stem | L11: yes | M11: fair | N11: D | O11: N/A | P11: medium | Q11: D, DM, M, WM | R11: 6 | T11: X | U11: X | V11: X | W11: X | Y11: X | AA11: X | AB11: X | AQ11: X | AR11: N | AT11: 1
A12: Blue Vervain | B12: Forb | C12: Verbena hastata | D12: 0 | E12: 0 | F12: 93000 | G12: 1488000 | H12: 2.134986226 | I12: 34.15977961 | J12: Middle-Late | K12: single stem | L12: Yes | M12: fair | N12: D | O12: N/A | P12: low | Q12: WM, W | R12: 41 | W12: X | X12: X | Y12: X | AA12: X | AB12: X | AQ12: X | AR12: N
A13: Blue-Eyed Grass | B13: Forb | C13: Sisyrinchium campestre | D13: 0 | E13: 0 | F13: 45000 | G13: 720000 | H13: 1.033057851 | I13: 16.52892562 | J13: Early-Middle | K13: erect, unbranched | L13: yes | M13: poor | N13: D | O13: N/A | P13: low | Q13: D, DM, M | R13: 41 | T13: X | U13: X | V13: X | Y13: X | AA13: X | AB13: X | AQ13: X | AR13: N
A14: Boneset | B14: Forb | C14: Eupatorium perfoliatum | D14: 0 | E14: 0 | F14: 160000 | G14: 2560000 | H14: 3.673094582 | I14: 58.76951331 | J14: Middle-Late | K14: erect, single stem | L14: Yes | M14: good | N14: D | O14: N/A | P14: low | Q14: WM,W | R14: 15 | W14: X | X14: X | Y14: X | AA14: X | AB14: X | AQ14: X | AR14: N | AT14: 1
A15: Bottle Gentian | B15: Forb | C15: Gentiana andrewsii | D15: 0 | E15: 0 | F15: 280000 | G15: 4480000 | H15: 6.427915519 | I15: 102.8466483 | J15: Middle-Late | K15: erect, bunched | L15: yes | M15: fair | N15: D | O15: N/A | P15: low | Q15: M | R15: 41 | V15: X | Y15: X | AA15: X | AB15: X | AQ15: X | AR15: N
A16: Butterfly Milkweed | B16: Forb | C16: Asclepias tuberosa | D16: 0 | E16: 0 | F16: 3480 | G16: 55680 | H16: 0.08 | I16: 1.28 | J16: Middle | K16: weakly erect multi-stem | L16: yes | M16: good | N16: D | O16: N/A | P16: low | Q16: D, DM, M | R16: 44 | T16: X | U16: X | V16: X | Y16: X | AA16: X | AB16: X | AQ16: X | AR16: N | AT16: 1
A17: Canada Milkvetch | B17: Legume | C17: Astragalus canadensis | D17: 0 | E17: 0 | F17: 15960 | G17: 255360 | H17: 0.3663911846 | I17: 5.862258953 | J17: Middle | K17: erect, Stoloniferous | L17: yes | M17: good | N17: D | O17: N/A | P17: low | Q17: M, WM | R17: 6 | V17: X | W17: X | Y17: X | AA17: X | AB17: X | AQ17: X | AR17: N
A18: Cardinal Flower | B18: Forb | C18: Lobelia cardinalis | D18: 0 | E18: 0 | F18: 400000 | G18: 6400000 | H18: 9.182 | I18: 146.912 | J18: Middle-Late | K18: erect, unbranched | L18: yes | M18: good | N18: D | O18: N/A | P18: low | Q18: WM, W | R18: 3 | W18: X | X18: X | Y18: X | AA18: X | AB18: X | AQ18: X | AR18: N
A19: Common Ironweed | B19: Forb | C19: Vernonia fasciculata | D19: 0 | E19: 0 | F19: 20000 | G19: 320000 | H19: 0.4591368228 | I19: 7.346189164 | J19: Late | K19: erect, Single stem | L19: yes | M19: good | N19: D | O19: N/A | P19: low | Q19: WM, W | R19: 21 | W19: X | X19: X | Y19: X | AA19: X | AB19: X | AQ19: X | AR19: N
A20: Common Milkweed | B20: Forb | C20: Asclepias syriaca | D20: 0 | E20: 0 | F20: 4000 | G20: 64000 | H20: 0.09 | I20: 1.5 | J20: Middle-Late | K20: erect, single stem | L20: Yes | M20: Good | N20: D | O20: N/A | P20: low | Q20: DM, M | R20: 21 | U20: X | V20: X | Y20: X | AA20: X | AB20: X | AQ20: X | AR20: N | AT20: 1
A21: Compassplant | B21: Forb | C21: Silphium laciniatum | D21: 0 | E21: =+D21*16 -> 0 | F21: 650 | G21: 10400 | H21: 0.01492194674 | I21: =+H21*16 -> 0.2387511478 | J21: Middle-Late | K21: erect single stem | L21: yes | M21: good | N21: D | O21: N/A | P21: low | Q21: DM, M, WM | R21: 6 | U21: X | V21: X | W21: X | Y21: X | AA21: X | AB21: X | AQ21: X | AR21: N | AT21: 1
A22: Cream Wild Indigo | B22: Legume | C22: Baptisia bracteata | D22: 0 | E22: 0 | F22: 1700 | G22: 27200 | H22: 0.03902662994 | I22: 0.624426079 | J22: Early | K22: weakly erect,single stem | L22: yes | M22: fair | N22: D | O22: N/A | P22: low | Q22: M | R22: 6 | V22: X | Y22: X | AA22: X | AB22: X | AQ22: X | AR22: N
A23: Culver's Root | B23: Forb | C23: Veronicastrum virginicum | D23: 0 | E23: 0 | F23: 750000 | G23: 12000000 | H23: 17.21763085 | I23: 275.4820937 | J23: Middle | K23: erect single stem | L23: yes | M23: fair | N23: D | O23: N/A | P23: low | Q23: M, WM, W | R23: 48 | V23: X | W23: X | X23: X | Y23: X | AA23: X | AB23: X | AQ23: X | AR23: N | AT23: 1
A24: Cupplant | B24: Forb | C24: Silphium perfoliatum | D24: 0 | E24: 0 | F24: 1400 | G24: 22400 | H24: 0.03213957759 | I24: 0.5142332415 | J24: Middle-Late | K24: erect, single stem | L24: yes | M24: good | N24: D | O24: N/A | P24: low | Q24: M, WM, W | R24: 6 | V24: X | W24: X | X24: X | Y24: X | AA24: X | AB24: X | AQ24: X | AR24: N | AT24: 1
A25: Downy Gentian | B25: Forb | C25: Gentiana puberulenta | D25: 0 | E25: 0 | F25: 435000 | G25: 6960000 | H25: 9.986 | I25: 159.776 | J25: Late | K25: erect single stem | L25: yes | M25: fair | N25: D | O25: N/A | P25: low | Q25: DM, M | R25: 41 | U25: X | V25: X | Y25: X | AA25: X | AB25: X | AQ25: X | AR25: N
A26: Downy Wood Mint | B26: Forb | C26: Blephilia ciliata | D26: 0 | E26: 0 | F26: 400000 | G26: 6400000 | H26: 9.182736455 | I26: 146.9237833 | J26: Middle-Late | K26: erect single stemyes | L26: Yes | M26: fair | N26: D | O26: N/A | P26: low | Q26: DM,M,WM | R26: 21 | U26: X | V26: X | W26: X | Y26: X | AA26: X | AB26: X | AQ26: X | AR26: N
A27: Evening Primrose | B27: Forb | C27: Oenothera biennis | D27: 0 | E27: 0 | F27: 90000 | G27: 1440000 | H27: 2.0661 | I27: 33.0576 | J27: Late | K27: erect, single stem | L27: Yes | M27: fair | N27: D | O27: N/A | P27: low | Q27: D, DM, M | R27: 38 | T27: X | U27: X | V27: X | Y27: X | AA27: X | AB27: X | AQ27: X | AR27: N
A28: False Boneset | B28: Forb | C28: Brickellia eupatorioides | D28: 0 | E28: 0 | F28: 24000 | G28: 384000 | H28: 0.551 | I28: 8.816 | J28: Middle-Late | K28: erect, single stem | L28: yes | M28: fair | N28: D | O28: N/A | P28: low | Q28: D, DM | R28: 15 | T28: X | U28: X | Y28: X | AA28: X | AB28: X | AQ28: X | AR28: N
A29: False Toadflax | B29: Forb | C29: Comandra umbellata | D29: 0 | E29: 0 | F29: 700 | G29: 11200 | H29: 0.0160697888 | I29: 0.2571166208 | J29: Early-Middle | K29: erect, single stem | L29: Yes | M29: good | N29: D | O29: N/A | P29: low | Q29: D, DM, M, WM | R29: 15 | T29: X | U29: X | V29: X | W29: X | Y29: X | AA29: X | AB29: X | AQ29: X | AR29: N
A30: Fewleaf Sunflower | B30: Forb | C30: Helianthus occidentalis | D30: 0 | E30: 0 | F30: 12960 | G30: 207360 | H30: 0.2975206612 | I30: 4.760330579 | J30: Middle-Late | K30: erect single stem | L30: yes | M30: fair | N30: D | O30: N/A | P30: low | Q30: DM, M | R30: 6 | U30: X | V30: X | Y30: X | AA30: X | AB30: X | AQ30: X | AR30: N
A31: Flowering Spurge | B31: Forb | C31: Euphorbia corollata | D31: 0 | E31: 0 | F31: 8000 | G31: 128000 | H31: 0.184 | I31: 2.944 | J31: Middle-Late | K31: erect stem unbranched | L31: Yes | M31: fair | N31: D | O31: N/A | P31: low | Q31: D, DM, M, WM | R31: 15 | T31: X | U31: X | V31: X | W31: X | Y31: X | AA31: X | AB31: X | AQ31: X | AR31: N
A32: Foxglove Beardtongue | B32: Forb | C32: Penstemon digitalis | D32: 0 | E32: 0 | F32: 115000 | G32: 1840000 | H32: 2.64 | I32: 42.24 | J32: Early-Middle | K32: erect, single stem,rhizomatuous | L32: yes | M32: fair | N32: D | O32: N/A | P32: low | Q32: M, WM | R32: 15 | V32: X | W32: X | Y32: X | AA32: X | AB32: X | AQ32: X | AR32: N
A33: Giant Hyssop | B33: Forb | C33: Agastache foeniculum | D33: 0 | E33: 0 | F33: 65000 | G33: 1040000 | H33: 1.49 | I33: 23.8 | J33: Middle-Late | K33: erect, clustered stem | L33: Yes | M33: Good | N33: D | O33: N/A | P33: low | Q33: DM, M | R33: 21 | U33: X | V33: X | Y33: X | AA33: X | AB33: X | AQ33: X | AR33: N
A34: Giant Sunflower | B34: Forb | C34: Helianthus giganteus | D34: 0 | E34: 0 | F34: 10938 | G34: 175008 | H34: 0.25 | I34: 4 | J34: Middle-Late | K34: erect, rhizomatous | L34: Yes | M34: Good | N34: D | O34: N/A | P34: low | Q34: DM, M | R34: 6 | U34: X | V34: X | Y34: X | AA34: X | AB34: X | AQ34: X | AR34: N | AT34: 1
A35: Goat's Rue | B35: Forb | C35: Tephrosia virginiana | D35: 0 | E35: =+D35*16 -> 0 | F35: 2500 | G35: 40000 | H35: 0.05739210285 | I35: =+H35*16 -> 0.9182736455 | J35: Early-Middle | K35: erect/drooping | L35: yes | M35: fair | N35: D | O35: N/A | P35: low | Q35: D, DM | R35: 38 | T35: X | U35: X | Y35: X | AA35: X | AB35: X | AQ35: X | AR35: N
A36: Golden Alexanders | B36: Forb | C36: Zizia aurea | D36: 0 | E36: 0 | F36: 11000 | G36: 176000 | H36: 0.2525 | I36: 4.04 | J36: Early | K36: erect, branched | L36: yes | M36: fair | N36: D | O36: N/A | P36: low | Q36: M, WM, W | R36: 6 | V36: X | W36: X | X36: X | Y36: X | AA36: X | AB36: X | AQ36: X | AR36: N
A37: Golden Ragwort | B37: Forb | C37: Packera aurea | D37: 0 | E37: 0 | F37: 73000 | G37: 1168000 | H37: 1.675849403 | I37: 26.81359045 | J37: Early-Middle | K37: erect, branched, creeping rhizomes | L37: yes | M37: fair | N37: D | O37: N/A | P37: low | Q37: M,WM,W | R37: 6 | V37: X | W37: X | X37: X | Y37: X | AA37: X | AB37: X | AQ37: X | AR37: N
A38: Great Blue Lobelia | B38: Forb | C38: Lobelia siphilitica | D38: 0 | E38: 0 | F38: 500000 | G38: 8000000 | H38: 11.478 | I38: 183.648 | J38: Middle-Late | K38: erect single stem | L38: yes | M38: fair | N38: D | O38: N/A | P38: high | Q38: W | R38: 41 | X38: X | Y38: X | AA38: X | AB38: X | AQ38: X | AR38: N | AT38: 1
A39: Great St. John's Wort | B39: Forb | C39: Hypericum ascyron | D39: 0 | E39: 0 | F39: 200000 | G39: 3200000 | H39: 4.591 | I39: 73.456 | J39: Middle | K39: erect, stem branched | L39: yes | M39: good | N39: D | O39: N/A | P39: low | Q39: M,WM | R39: 6 | V39: X | W39: X | Y39: X | AA39: X | AB39: X | AQ39: X | AR39: N
A40: Green Milkweed | B40: Forb | C40: Asclepias viridiflora | D40: 0 | E40: 0 | F40: 3600 | G40: 57600 | H40: 0.0826446281 | I40: 1.32231405 | J40: Early-Middle | K40: erct to drooping stem | L40: yes | M40: fair | N40: D | O40: N/A | P40: low | Q40: D, DM | R40: 12 | T40: X | U40: X | Y40: X | AA40: X | AB40: X | AQ40: X | AR40: N
A41: Grooved Yellow Flax | B41: Forb | C41: Linum sulcatum | D41: 0 | E41: 0 | F41: 94000 | G41: 1504000 | H41: 2.157943067 | I41: 34.52708907 | J41: Early-Late | K41: erect, single stem | L41: yes | M41: fair | N41: D | O41: N/A | P41: low | Q41: D, DM | R41: 6 | T41: X | U41: X | Y41: X | AA41: X | AB41: X | AQ41: X | AR41: N
A42: Harebell | B42: Forb | C42: Campanula rotundifolia | D42: 0 | E42: 0 | F42: 900000 | G42: 14400000 | H42: 20.661 | I42: 330.576 | J42: Middle-Late | K42: erect, Stoloniferous | L42: yes | M42: fair | N42: D | O42: N/A | P42: low | Q42: D, DM | R42: 21 | T42: X | U42: X | Y42: X | AA42: X | AB42: X | AQ42: X | AR42: N
A43: Harlequin Blue Flag Iris | B43: Forb | C43: Iris versicolor | D43: 0 | E43: 0 | F43: 1300 | G43: 20800 | H43: 0.02984389348 | I43: 0.4775022957 | J43: Early-Middle | K43: erect stem,partially rhizomateous | L43: yes | M43: fair | N43: D | O43: N/A | P43: low | Q43: W | R43: 21 | X43: X | Y43: X | AA43: X | AB43: X | AQ43: X | AR43: N
A44: Heath Aster | B44: Forb | C44: Symphyotrichum ericoides | D44: 0 | E44: 0 | F44: 140000 | G44: 2240000 | H44: 3.213957759 | I44: 51.42332415 | J44: Late | K44: erect single stem | L44: yes | M44: good | N44: D | O44: N/A | P44: low | Q44: D, DM, M, WM | R44: 15 | T44: X | U44: X | V44: X | W44: X | Y44: X | AA44: X | AB44: X | AQ44: X | AR44: N
A45: Hoary Vervain | B45: Forb | C45: Verbena stricta | D45: 0 | E45: 0 | F45: 32000 | G45: 512000 | H45: 0.7346 | I45: 11.7536 | J45: Middle-Late | K45: erect, single stem | L45: yes | M45: fair | N45: D | O45: N/A | P45: low | Q45: D, DM | R45: 41 | T45: X | U45: X | Y45: X | AA45: X | AB45: X | AQ45: X | AR45: N | AT45: 1
A46: Illinois Tick Trefoil | B46: Legume | C46: Desmodium illinoense | D46: 0 | E46: 0 | F46: 4500 | G46: 72000 | H46: 0.1033057851 | I46: 1.652892562 | J46: Early-Middle | K46: erct single stem | L46: yes | M46: fair | N46: D | O46: N/A | P46: low | Q46: DM, M | R46: 38 | U46: X | V46: X | Y46: X | AA46: X | AB46: X | AQ46: X | AR46: N
A47: Joe-Pye Weed | B47: Forb | C47: Eutrochium maculatum | D47: 0 | E47: 0 | F47: 95000 | G47: 1520000 | H47: 2.180899908 | I47: 34.89439853 | J47: Middle-Late | K47: erect single stem | L47: yes | M47: fair | N47: D | O47: N/A | P47: low | Q47: W | R47: 38 | X47: X | Y47: X | AA47: X | AB47: X | AQ47: X | AR47: N | AT47: 1
A48: Lance-Leaf Coreopsis | B48: Forb | C48: Coreopsis lanceolata | D48: 0 | E48: 0 | F48: 24000 | G48: =F48*16 -> 384000 | H48: =F48/43560 -> 0.5509641873 | I48: 8.815426997 | J48: Early-Middle | K48: upright stem, rhizomous | L48: yes | M48: fair | N48: D | O48: N/A | P48: low | Q48: D, DM | R48: 6 | T48: X | U48: X | Y48: X | AA48: X | AB48: X | AQ48: X | AR48: N | AT48: 1
A49: Large Beardtongue | B49: Forb | C49: Penstemon grandiflorus | D49: 0 | E49: 0 | F49: 14000 | G49: 224000 | H49: 0.321 | I49: 5.136 | J49: Middle | K49: erect, single stem | L49: yes | M49: fair | N49: D | O49: N/A | P49: low | Q49: DM | R49: 15 | U49: X | Y49: X | AA49: X | AB49: X | AQ49: X | AR49: N
A50: Leadplant | B50: Legume | C50: Amorpha canescens | D50: 0 | E50: 0 | F50: 16950 | G50: 271200 | H50: 0.3891184573 | I50: 6.225895317 | J50: Middle | K50: erec, stems branched | L50: yes | M50: good | N50: D | O50: N/A | P50: low | Q50: D, DM, M | R50: 21 | T50: X | U50: X | V50: X | Y50: X | AA50: X | AB50: X | AQ50: X | AR50: N
A51: Marsh Milkweed | B51: Forb | C51: Asclepias incarnata | D51: 0 | E51: 0 | F51: 4800 | G51: 76800 | H51: 0.1101928375 | I51: 1.763085399 | J51: Middle | K51: erect stem, rhizomatous | L51: yes | M51: good | N51: D | O51: N/A | P51: low | Q51: W | R51: 3 | X51: X | Y51: X | AA51: X | AB51: X | AQ51: X | AR51: N | AT51: 1
A52: Meadow Anemone | B52: Forb | C52: Anemone canadensis | D52: 0 | E52: 0 | F52: 8000 | G52: 128000 | H52: 0.1836547291 | I52: 2.938475666 | J52: Early-Middle | K52: erect stem, rhizomatous | L52: yes | M52: fair | N52: D | O52: N/A | P52: low | Q52: M, WM | R52: 15 | V52: X | W52: X | Y52: X | AA52: X | AB52: X | AQ52: X | AR52: N
A53: Mountain Mint | B53: Forb | C53: Pycnanthemum virginianum | D53: 0 | E53: 0 | F53: 220000 | G53: 3520000 | H53: 5.05 | I53: 80.8 | J53: Middle-Late | K53: erect stem | L53: yes | M53: good | N53: D | O53: N/A | P53: low | Q53: DM, M, WM, W | R53: 15 | U53: X | V53: X | W53: X | X53: X | Y53: X | AA53: X | AB53: X | AQ53: X | AR53: N
A54: New England Aster | B54: Forb | C54: Symphyotrichum novae-angliae | D54: 0 | E54: 0 | F54: 69900 | G54: 1118400 | H54: 1.604683196 | I54: 25.67493113 | J54: Late | K54: erect clustered stem | L54: yes | M54: good | N54: D | O54: N/A | P54: low | Q54: M, WM | R54: 38 | V54: X | W54: X | Y54: X | AA54: X | AB54: X | AQ54: X | AR54: N | AT54: 1
A55: New Jersey Tea | B55: Shrub | C55: Ceanothus americanus | D55: 0 | E55: 0 | F55: 7000 | G55: 112000 | H55: 0.160697888 | I55: 2.571166208 | J55: Middle-Late | K55: erect, multi-stemmed | L55: yes | M55: good | N55: D | O55: N/A | P55: low | Q55: DM, M | R55: 15 | U55: X | V55: X | Y55: X | AA55: X | AB55: X | AQ55: X | AR55: N
A56: Nodding Beggartick | B56: Forb | C56: Bidens cernua | D56: 0 | E56: 0 | F56: 21000 | G56: 336000 | H56: 0.4820936639 | I56: 7.713498623 | J56: Late | K56: erect single crown | L56: yes | M56: good | N56: D | O56: N/A | P56: low | Q56: WM, W | R56: 6 | W56: X | X56: X | Y56: X | AA56: X | AB56: X | AQ56: X | AR56: N
A57: Nodding Wild Onion | B57: Forb | C57: Allium cernuum | D57: 0 | E57: 0 | F57: 7680 | G57: 122880 | H57: 0.1763085399 | I57: 2.820936639 | J57: Middle | K57: erect to drooping stem | L57: yes | M57: fair | N57: D | O57: N/A | P57: low | Q57: DM, M | R57: 38 | U57: X | V57: X | Y57: X | AA57: X | AB57: X | AQ57: X | AR57: N
A58: North Plains/Meadow Blazingstar | B58: Forb | C58: Liatris ligulistylis | D58: 0 | E58: 0 | F58: 10000 | G58: =F58*16 -> 160000 | H58: =F58/43560 -> 0.2295684114 | I58: 3.673094582 | J58: Late | L58: yes | P58: low | Q58: DM, M, WM | R58: 38 | U58: X | V58: X | W58: X | Y58: X | AA58: X | AB58: X | AQ58: X | AR58: N | AT58: 1
A59: Ox-eye Sunflower | B59: Forb | C59: Heliopsis helianthoides | D59: 0 | E59: 0 | F59: 6480 | G59: 103680 | H59: 0.1487603306 | I59: 2.380165289 | J59: Middle-Late | K59: erect, single stem | L59: yes | M59: fair | N59: D | O59: N/A | P59: low | Q59: M | R59: 6 | V59: X | Y59: X | AA59: X | AB59: X | AQ59: X | AR59: N
A60: Pale Purple Coneflower | B60: Forb | C60: Echinacea pallida | D60: 0 | E60: 0 | F60: 4580 | G60: 73280 | H60: 0.105 | I60: 1.68 | J60: Middle | K60: erect single stem unbranched | L60: yes | M60: fair | N60: D | O60: N/A | P60: low | Q60: DM, M | R60: 21 | U60: X | V60: X | Y60: X | AA60: X | AB60: X | AQ60: X | AR60: N
A61: Pale Spiked Lobelia | B61: Forb | C61: Lobelia spicata | D61: 0 | E61: 0 | F61: 900000 | G61: 14400000 | H61: 20.66 | I61: 330.56 | J61: Middle | K61: erect unbranchedstem | L61: yes | M61: fair | N61: D | O61: N/A | P61: low | Q61: D, DM, M, WM | R61: 21 | T61: X | U61: X | V61: X | W61: X | Y61: X | AA61: X | AB61: X | AQ61: X | AR61: N
A62: Panicled Aster | B62: Forb | C62: Symphyotrichum lanceolatum | D62: 0 | E62: 0 | F62: 141570 | G62: 2268000 | H62: 3.25 | I62: 52.1 | J62: Late | K62: erect, clustered stem | L62: Yes | M62: Good | N62: D | O62: N/A | P62: low | Q62: M, WM, W | R62: 15 | V62: X | W62: X | X62: X | Y62: X | AA62: X | AB62: X | AQ62: X | AR62: N
A63: Partridge Pea | B63: Legume | C63: Chamaecrista fasciculata | D63: 0 | E63: 0 | F63: 3800 | G63: 60800 | H63: 0.087 | I63: 1.4 | J63: Middle-Late | K63: erect, annual | L63: Yes | M63: Good | N63: D | O63: N/A | P63: low | Q63: D, DM, M | R63: 6 | T63: X | U63: X | V63: X | Y63: X | AA63: X | AB63: X | AQ63: X | AR63: N
A64: Pasque Flower | B64: Forb | C64: Pulsatilla patens | D64: 0 | E64: =+D64*16 -> 0 | F64: 18000 | G64: 288000 | H64: 0.4132231405 | I64: =+H64*16 -> 6.611570248 | J64: Early | K64: erect multi-stemmed | L64: yes | M64: poor | N64: D | O64: N/A | P64: low | Q64: D, DM | R64: 21 | T64: X | U64: X | Y64: X | AA64: X | AB64: X | AQ64: X | AR64: N
A65: Prairie Alum-Root | B65: Forb | C65: Heuchera richardsonii | D65: 0 | E65: 0 | F65: 750000 | G65: 12000000 | H65: 17.2176 | I65: 275.4816 | J65: Early-Middle | K65: erect stem | L65: yes | M65: fair | N65: D | O65: N/A | P65: low | Q65: D,DM, M, WM | R65: 12 | T65: X | U65: X | V65: X | W65: X | Y65: X | AA65: X | AB65: X | AQ65: X | AR65: N
A66: Prairie Blazing Star | B66: Forb | C66: Liatris pycnostachya | D66: 0 | E66: 0 | F66: 11970 | G66: 191520 | H66: 0.2747933884 | I66: 4.396694215 | J66: Middle-Late | K66: erect stem unbranched | L66: yes | M66: fair | N66: D | O66: N/A | P66: low | Q66: D,DM, M, WM | R66: 21 | T66: X | U66: X | V66: X | W66: X | Y66: X | AA66: X | AB66: X | AQ66: X | AR66: N | AT66: 1
A67: Prairie Cinquefoil | B67: Forb | C67: Potentilla arguta | D67: 0 | E67: 0 | F67: 200000 | G67: 3200000 | H67: 4.591368228 | I67: 73.46189164 | J67: Middle-Late | K67: erect stem unbranched | L67: yes | M67: fair | N67: D | O67: N/A | P67: low | Q67: D, DM, M | R67: 15 | T67: X | U67: X | V67: X | Y67: X | AA67: X | AB67: X | AQ67: X | AR67: N
A68: Prairie Dock | B68: Forb | C68: Silphium terebinthinaceum | D68: 0 | E68: 0 | F68: 1110 | G68: 17760 | H68: 0.02548209366 | I68: 0.4077134986 | J68: Middle-Late | K68: erect stem,leafless | L68: yes | M68: fair | N68: D | O68: N/A | P68: low | Q68: DM, M, WM | R68: 6 | U68: X | V68: X | W68: X | Y68: X | AA68: X | AB68: X | AQ68: X | AR68: N
A69: Prairie Loosestrife | B69: Forb | C69: Lysimachia quadriflora | D69: 0 | E69: 0 | F69: 90000 | G69: 1440000 | H69: 2.066115702 | I69: 33.05785124 | J69: Middle | K69: erect single stem unbranched | L69: yes | M69: fair | N69: D | O69: N/A | P69: low | Q69: M,WM,W | R69: 6 | V69: X | W69: X | X69: X | Y69: X | AA69: X | AB69: X | AQ69: X | AR69: N
A70: Prairie Milkweed | B70: Forb | C70: Asclepias sullivantii | D70: 0 | E70: 0 | F70: 4500 | G70: 72000 | H70: 0.1033057851 | I70: 1.652892562 | J70: Early-Middle | K70: erect single stem | L70: yes | M70: fair | N70: D | O70: N/A | P70: low | Q70: D,DM, M,WM | R70: 38 | T70: X | U70: X | V70: X | W70: X | Y70: X | AA70: X | AB70: X | AQ70: X | AR70: N
A71: Prairie Parsley | B71: Forb | C71: Polytaenia nuttallii | D71: 0 | E71: 0 | F71: 4000 | G71: 64000 | H71: 0.09182736455 | I71: 1.469237833 | J71: Early-Middle | K71: erect single stem | L71: yes | M71: poor | N71: D | O71: N/A | P71: low | Q71: D,DM,M, WM | R71: 6 | T71: X | U71: X | V71: X | W71: X | Y71: X | AA71: X | AB71: X | AQ71: X | AR71: N
A72: Prairie Phlox | B72: Forb | C72: Phlox pilosa | D72: 0 | E72: 0 | F72: 19000 | G72: 304000 | H72: 0.4361799816 | I72: 6.978879706 | J72: Early-Middle | K72: erect single stem | L72: yes | M72: fair | N72: D | O72: N/A | P72: low | Q72: DM, M | R72: 38 | U72: X | V72: X | Y72: X | AA72: X | AB72: X | AQ72: X | AR72: N
A73: Prairie Smoke | B73: Forb | C73: Geum triflorum | D73: 0 | E73: 0 | F73: 27000 | G73: 432000 | H73: 0.6198347107 | I73: 9.917355372 | J73: Early | K73: erct single stem, rhizomatous | L73: yes | M73: fair | N73: D | O73: N/A | P73: low | Q73: D, DM | R73: 38 | T73: X | U73: X | Y73: X | AA73: X | AB73: X | AQ73: X | AR73: N
A74: Prairie Sunflower | B74: Forb | C74: Helianthus pauciflorus | D74: 0 | E74: 0 | F74: 4580 | G74: 73280 | H74: 0.1051423324 | I74: 1.682277319 | J74: Middle-Late | K74: erect single stem | L74: yes | M74: good | N74: D | O74: N/A | P74: low | Q74: D, DM, M | R74: 6 | T74: X | U74: X | V74: X | Y74: X | AA74: X | AB74: X | AQ74: X | AR74: N
A75: Prairie Tickseed | B75: Forb | C75: Coreopsis palmata | D75: 0 | E75: 0 | F75: 11970 | G75: 191520 | H75: 0.2747933884 | I75: 4.396694215 | J75: Middle-Late | K75: erect stem,rhizomatous | L75: yes | M75: fair | N75: D | O75: N/A | P75: low | Q75: D, DM | R75: 6 | T75: X | U75: X | Y75: X | AA75: X | AB75: X | AQ75: X | AR75: N | AT75: 1
A76: Prairie Violet | B76: Forb | C76: Viola pedatifida | D76: 0 | E76: 0 | F76: 28000 | G76: 448000 | H76: 0.6427915519 | I76: 10.28466483 | J76: Early-Late | K76: erect stemless | L76: yes | M76: fair | N76: D | O76: N/A | P76: low | Q76: D, DM, M | R76: 21 | T76: X | U76: X | V76: X | Y76: X | AA76: X | AB76: X | AQ76: X | AR76: N
A77: Purple Coneflower | B77: Forb | C77: Echinacea purpurea | D77: 0 | E77: 0 | F77: 6600 | G77: 105600 | H77: 0.152 | I77: 2.432 | J77: Middle | K77: erect single stem unbranched | L77: yes | M77: fair | N77: D | O77: N/A | P77: low | Q77: D, DM, M | R77: 21 | T77: X | U77: X | V77: X | Y77: X | AA77: X | AB77: X | AQ77: X | AR77: N
A78: Purple Meadow-Rue | B78: Forb | C78: Thalictrum dasycarpum | D78: 0 | E78: 0 | F78: 11000 | G78: 176000 | H78: 0.2525 | I78: 4.04 | J78: Middle | K78: erect stem | L78: yes | M78: fair | N78: D | O78: N/A | P78: low | Q78: M, WM, W | R78: 15 | V78: X | W78: X | X78: X | Y78: X | AA78: X | AB78: X | AQ78: X | AR78: N
A79: Purple Prairie Clover | B79: Legume | C79: Dalea purpurea | D79: 0 | E79: 0 | F79: 19950 | G79: 319200 | H79: 0.4579889807 | I79: 7.327823691 | J79: Early-Late | K79: erect | L79: yes | M79: fair | N79: D | O79: N/A | P79: low | Q79: D, DM, M | R79: 21 | T79: X | U79: X | V79: X | Y79: X | AA79: X | AB79: X | AQ79: X | AR79: N
A80: Rattlesnake Master | B80: Forb | C80: Eryngium yuccifolium | D80: 0 | E80: 0 | F80: 7980 | G80: 127680 | H80: 0.1831955923 | I80: 2.931129477 | J80: Middle-Late | K80: bunched | L80: yes | M80: fair | N80: D | O80: N/A | P80: low | Q80: DM, M, WM | R80: 15 | U80: X | V80: X | W80: X | Y80: X | AA80: X | AB80: X | AQ80: X | AR80: N | AT80: 1
A81: Red Clover | B81: Legume | C81: Trifolium pratense | D81: 0 | E81: 0 | F81: 17187.5 | G81: 275000 | H81: 0.3945 | I81: 6.312 | J81: Middle | K81: single crown | L81: yes | M81: good | N81: C | O81: N/A | P81: low | Q81: DM, M, WM | R81: 38 | S81: 1-9 | U81: X | V81: X | W81: X | Y81: X | Z81: X | AB81: X | AC81: X | AD81: X | AE81: X | AF81: X | AG81: X | AH81: X | AI81: X | AJ81: X | AK81: X | AL81: X | AQ81: X | AR81: I | AS81: 10
A82: Rosinweed | B82: Forb | C82: Silphium integrifolium | D82: 0 | E82: 0 | F82: 3990 | G82: 63840 | H82: 0.09159779614 | I82: 1.465564738 | J82: Middle-Late | K82: erect single stem | L82: yes | M82: good | N82: D | O82: N/A | P82: medium | Q82: DM, M, WM | R82: 6 | U82: X | V82: X | W82: X | Y82: X | AA82: X | AB82: X | AQ82: X | AR82: N | AT82: 1
A83: Rough Blazing Star | B83: Forb | C83: Liatris aspera | D83: 0 | E83: 0 | F83: 13470 | G83: 215520 | H83: 0.3092286501 | I83: 4.947658402 | J83: Late | K83: erect multi-stemmed | L83: yes | M83: fair | N83: D | O83: N/A | P83: low | Q83: D, DM, M | R83: 21 | T83: X | U83: X | V83: X | Y83: X | AA83: X | AB83: X | AQ83: X | AR83: N | AT83: 1
A84: Round-Headed Bushclover | B84: Legume | C84: Lespedeza capitata | D84: 0 | E84: 0 | F84: 9960 | G84: 159360 | H84: 0.2286501377 | I84: 3.658402204 | J84: Late | K84: erect multi-stemmed | L84: yes | M84: fair | N84: D | O84: N/A | P84: low | Q84: D, DM | R84: 12 | T84: X | U84: X | Y84: X | AA84: X | AB84: X | AQ84: X | AR84: N
A85: Sawtooth Sunflower | B85: Forb | C85: Helianthus grosseserratus | D85: 0 | E85: 0 | F85: 15000 | G85: 240000 | H85: 0.3443526171 | I85: 5.509641873 | J85: Middle-Late | K85: single erect stem, rhizomatous | L85: yes | M85: good | N85: D | O85: N/A | P85: low | Q85: D, DM, M, WM, W | R85: 6 | T85: X | U85: X | V85: X | W85: X | X85: X | Y85: X | AA85: X | AB85: X | AQ85: X | AR85: N | AT85: 1
A86: Shootingstar | B86: Forb | C86: Dodecatheon | D86: 0 | E86: 0 | F86: 75000 | G86: 1200000 | H86: 1.722 | I86: 27.552 | J86: Early | K86: single stem | L86: yes | M86: poor | N86: D | O86: N/A | P86: low | Q86: D, DM, M, WM | R86: 38 | T86: X | U86: X | V86: X | W86: X | Y86: X | AA86: X | AB86: X | AQ86: X | AR86: N
A87: Showy Goldenrod | B87: Forb | C87: Solidago speciosa | D87: 0 | E87: 0 | F87: 95000 | G87: 1520000 | H87: 2.181 | I87: 34.896 | J87: Late | K87: erect multi-stemmed | L87: yes | M87: good | N87: D | O87: N/A | P87: low | Q87: D, DM, M | R87: 6 | T87: X | U87: X | V87: X | Y87: X | AA87: X | AB87: X | AQ87: X | AR87: N | AT87: 1
A88: Showy Tick Trefoil | B88: Legume | C88: Desmodium canadense | D88: 0 | E88: 0 | F88: 4500 | G88: 72000 | H88: 0.1033057851 | I88: 1.652892562 | J88: Middle-Late | K88: erect single stem | L88: yes | M88: fair | N88: D | O88: N/A | P88: low | Q88: M | R88: 41 | V88: X | Y88: X | AA88: X | AB88: X | AQ88: X | AR88: N
A89: Silky Aster | B89: Forb | C89: Symphyotrichum sericeum | D89: 0 | E89: 0 | F89: 56000 | G89: 896000 | H89: 1.2855 | I89: 20.568 | J89: Late | K89: single erect branched wiry stem | L89: yes | M89: fair | N89: D | O89: N/A | P89: low | Q89: D, DM | R89: 41 | T89: X | U89: X | Y89: X | AA89: X | AB89: X | AQ89: X | AR89: N
A90: Sky-Blue Aster | B90: Forb | C90: Symphyotrichum oolentangiense | D90: 0 | E90: 0 | F90: 82000 | G90: 1312000 | H90: 1.882460973 | I90: 30.11937557 | J90: Late | K90: erect single stem | L90: yes | M90: fair | N90: D | O90: N/A | P90: low | Q90: D, DM, M | R90: 41 | T90: X | U90: X | V90: X | Y90: X | AA90: X | AB90: X | AQ90: X | AR90: N | AT90: 1
A91: Smooth Blue Aster | B91: Forb | C91: Symphyotrichum laeve | D91: 0 | E91: 0 | F91: 47830 | G91: 765280 | H91: 1.098025712 | I91: 17.56841139 | J91: Late | K91: erect stem, short rhizomes | L91: yes | M91: fair | N91: D | O91: N/A | P91: low | Q91: DM, M, WM | R91: 41 | U91: X | V91: X | W91: X | Y91: X | AA91: X | AB91: X | AQ91: X | AR91: N | AT91: 1
A92: Sneezeweed | B92: Forb | C92: Helenium autumnale | D92: 0 | E92: 0 | F92: 130000 | G92: 2080000 | H92: 2.98 | I92: 47.68 | J92: Middle-Late | K92: erect stem | L92: yes | M92: fair | N92: D | O92: N/A | P92: low | Q92: WM, W | R92: 6 | W92: X | X92: X | Y92: X | AA92: X | AB92: X | AQ92: X | AR92: N
A93: Spiderwort | B93: Forb | C93: Tradescantia ohiensis | D93: 0 | E93: 0 | F93: 7980 | G93: 127680 | H93: 0.1831955923 | I93: 2.931129477 | J93: Early-Middle | K93: erect, multi-stemmed | L93: yes | M93: fair | N93: D | O93: N/A | P93: low | Q93: D, DM, M, WM | R93: 41 | T93: X | U93: X | V93: X | W93: X | Y93: X | AA93: X | AB93: X | AQ93: X | AR93: N
A94: Spotted Jewelweed | B94: Forb | C94: Impatiens capensis | D94: 0 | E94: 0 | F94: 1600 | G94: 25600 | H94: 0.037 | I94: 0.592 | J94: Middle-Late | K94: single crown | L94: yes | M94: fair | N94: D | O94: N/A | P94: low | Q94: M,WM,W | R94: 44 | V94: X | W94: X | X94: X | Y94: X | AA94: X | AB94: X | AQ94: X | AR94: N
A95: Spotted Mint | B95: Forb | C95: Monarda punctata | D95: 0 | E95: 0 | F95: 93700 | G95: 1499200 | H95: 2.151056015 | I95: 34.41689624 | J95: Middle-Late | K95: erect, single stem | L95: yes | M95: fair | N95: D | O95: N/A | P95: low | Q95: D, DM | R95: 21 | T95: X | U95: X | Y95: X | AA95: X | AB95: X | AQ95: X | AR95: N | AT95: 1
A96: Stiff Goldenrod | B96: Forb | C96: Oligoneuron rigidum | D96: 0 | E96: 0 | F96: 45850 | G96: 733600 | H96: 1.052571166 | I96: 16.84113866 | J96: Late | K96: erect, single, clumps | L96: yes | M96: fair | N96: D | O96: N/A | P96: low | Q96: D, DM, M | R96: 6 | T96: X | U96: X | V96: X | Y96: X | AA96: X | AB96: X | AQ96: X | AR96: N | AT96: 1
A97: Sweet Black-Eyed Susan | B97: Forb | C97: Rudbeckia subtomentosa | D97: 0 | E97: 0 | F97: 45850 | G97: 733600 | H97: 1.052571166 | I97: 16.84113866 | J97: Middle-Late | K97: erect single stem | L97: yes | M97: fair | N97: D | O97: N/A | P97: low | Q97: DM,M, WM | R97: 6 | U97: X | V97: X | W97: X | Y97: X | AA97: X | AB97: X | AQ97: X | AR97: N
A98: Tall Bellflower | B98: Forb | C98: Campanula americana | D98: 0 | E98: 0 | F98: 170000 | G98: 2720000 | H98: 3.9 | I98: 62.4 | J98: Middle-Late | K98: erect, clustered stem | L98: Yes | M98: Good | N98: D | O98: N/A | P98: low | Q98: M, WM | R98: 41 | V98: X | W98: X | Y98: X | AA98: X | AB98: X | AQ98: X | AR98: N
A99: Thimbleweed | B99: Forb | C99: Anemone cylindrica | D99: 0 | E99: =+D99*16 -> 0 | F99: 20000 | G99: 320000 | H99: 0.4591368228 | I99: =+H99*16 -> 7.346189164 | J99: Early-Middle | K99: erect stem | L99: yes | M99: poor | N99: D | O99: N/A | P99: low | Q99: D, DM | R99: 15 | T99: X | U99: X | Y99: X | AA99: X | AB99: X | AQ99: X | AR99: N
A100: Turk's Cap Lily | B100: Forb | C100: Lilium superbum | D100: 0 | E100: 0 | F100: 5000 | G100: 80000 | H100: 0.115 | I100: 1.84 | J100: Middle | K100: erect single stem | L100: yes | M100: fair | N100: D | O100: N/A | P100: low | Q100: M, WM | R100: 44 | V100: X | W100: X | Y100: X | AA100: X | AB100: X | AQ100: X | AR100: N
A101: Upland Boneset | B101: Forb | C101: Eupatorium sessilifolium | D101: 0 | E101: 0 | F101: 50000 | G101: 800000 | H101: 1.147842057 | I101: 18.36547291 | J101: Late | K101: erect single stem | L101: yes | M101: fair | N101: D | O101: N/A | P101: low | Q101: M | R101: 15 | V101: X | Y101: X | AA101: X | AB101: X | AQ101: X | AR101: N
A102: White Ladino Clover | B102: Legume | C102: Trifolium repens | D102: 0 | E102: 0 | F102: 54478 | G102: 871650 | H102: 1.2506 | I102: 20.0096 | J102: Middle | K102: stoloniferous | L102: yes | M102: fair | N102: D | O102: N/A | P102: low | Q102: DM, M, WM | R102: 15 | S102: 1,4,5,7,8,9 | U102: X | V102: X | W102: X | Y102: X | Z102: X | AB102: X | AC102: X | AD102: X | AG102: X | AH102: X | AJ102: X | AK102: X | AL102: X | AQ102: X | AR102: I | AS102: 3
A103: White Prairie Clover | B103: Legume | C103: Dalea candida | D103: 0 | E103: 0 | F103: 15850 | G103: 253600 | H103: 0.363865932 | I103: 5.821854913 | J103: Middle | K103: erect stem | L103: yes | M103: poor | N103: D | O103: N/A | P103: low | Q103: D, DM, M | R103: 15 | T103: X | U103: X | V103: X | Y103: X | AA103: X | AB103: X | AQ103: X | AR103: N | AT103: 1
A104: White Wild Indigo | B104: Legume | C104: Baptisia alba | D104: 0 | E104: 0 | F104: 1585 | G104: 25360 | H104: 0.0363865932 | I104: 0.5821854913 | J104: Middle | K104: erect stem branched | L104: yes | M104: good | N104: D | O104: N/A | P104: low | Q104: DM, M, WM | R104: 15 | U104: X | V104: X | W104: X | Y104: X | AA104: X | AB104: X | AQ104: X | AR104: N
A105: Whorled Milkweed | B105: Forb | C105: Asclepias verticillata | D105: 0 | E105: 0 | F105: 4000 | G105: 64000 | H105: 0.092 | I105: 1.472 | J105: Middle-Late | K105: erect unbranched stem | L105: yes | M105: fair | N105: D | O105: N/A | P105: low | Q105: D, DM | R105: 15 | T105: X | U105: X | Y105: X | AA105: X | AB105: X | AQ105: X | AR105: N | AT105: 1
A106: Wild Garlic | B106: Forb | C106: Allium canadense | D106: 0 | E106: 0 | F106: 560 | G106: 8960 | H106: 0.01285583104 | I106: 0.2056932966 | J106: Middle | K106: erect stem unbranched | L106: yes | M106: poor | N106: D | O106: N/A | P106: low | Q106: M, WM | R106: 15 | V106: X | W106: X | Y106: X | AA106: X | AB106: X | AQ106: X | AR106: N
A107: Wild Lupine | B107: Legume | C107: Lupinus perennis | D107: 0 | E107: 0 | F107: 990 | G107: 15840 | H107: 0.02272727273 | I107: 0.3636363636 | J107: Early-Middle | K107: erect single stem | L107: yes | M107: fair | N107: D | O107: N/A | P107: low | Q107: D, DM, M | R107: 41 | T107: X | U107: X | V107: X | Y107: X | AA107: X | AB107: X | AQ107: X | AR107: N
A108: Wild Quinine | B108: Forb | C108: Parthenium auriculatum | D108: 0 | E108: 0 | F108: 6790 | G108: 108640 | H108: 0.1558769513 | I108: 2.494031221 | J108: Middle-Late | K108: erect stem | L108: yes | M108: fair | N108: D | O108: N/A | P108: low | Q108: DM,M, WM | R108: 15 | U108: X | V108: X | W108: X | Y108: X | AA108: X | AB108: X | AQ108: X | AR108: N
A109: Winged Loosestrife | B109: Forb | C109: Lythrum alatum | D109: 0 | E109: 0 | F109: 3000000 | G109: 48000000 | H109: 68.87052342 | I109: 1101.928375 | J109: Middle-Late | K109: erect stem branched | L109: yes | M109: fair | N109: D | O109: N/A | P109: low | Q109: WM,W | R109: 21 | V109: X | W109: X | Y109: X | AA109: X | AB109: X | AQ109: X | AR109: N
A110: Wood Betony | B110: Forb | C110: Pedicularis canadensis | D110: 0 | E110: 0 | F110: 33000 | G110: 528000 | H110: 0.7575757576 | I110: 12.12121212 | J110: Early | K110: erect, short rhizomes,clumpy | L110: yes | M110: fair | N110: D | O110: N/A | P110: low | Q110: D,DM, M | R110: 6 | T110: X | U110: X | V110: X | Y110: X | AA110: X | AB110: X | AQ110: X | AR110: N
A111: Yellow Coneflower | B111: Forb | C111: Ratibida pinnata | D111: 0 | E111: 0 | F111: 26940 | G111: 431040 | H111: 0.618 | I111: 9.888 | J111: Middle-Late | K111: erect stem | L111: yes | M111: fair | N111: D | O111: N/A | P111: low | Q111: D, DM, M, WM | R111: 6 | T111: X | U111: X | V111: X | W111: X | Y111: X | AA111: X | AB111: X | AQ111: X | AR111: N
A112: Yellow Star Grass | B112: Forb | C112: Hypoxis hirsuta | D112: 0 | E112: 0 | F112: 80000 | G112: 1280000 | H112: 1.836547291 | I112: 29.38475666 | J112: Early-Late | K112: single crown | L112: yes | M112: poor | N112: D | O112: N/A | P112: low | Q112: DM, M, WM | R112: 6 | U112: X | V112: X | W112: X | Y112: X | AA112: X | AB112: X | AQ112: X | AR112: N
E113: =+D113*16 -> 0 | G113: =+F113*16 -> 0 | I113: =+H113*16 -> 0 | AR113: =IF(Z113="","",IF(Z113="X","I","N")) -> 
A114: FILTERED TABLE | E114: 0
A115: Common Name | B115: Scientific Name | C115: Plant Type | D115: Estimated Cost/oz | E115: Estimated Cost/lb | F115: Seeds/oz | G115: Seeds/lb. | H115: Seeds/sq ft @ 1oz/ac | I115: Seeds/sq ft @ 1 lb./ac | J115: Blooming period | K115: Growth Form | L115: Suitable For Pollinators | M115: Wildlife Value | N115: Retardance Capacity | O115: Forage Productivity | P115: Fertility Requirements | Q115: Moisture Regime | R115: color code | S115: Forage Suitablility Groups (FSG) | T115: D | U115: DM | V115: M | W115: WM | X115: W | Y115: All | Z115: INTRO | AA115: NAT | AB115: BOTH | AC115: Pasture | AD115: 1 | AE115: 2 | AF115: 3 | AG115: 4 | AH115: 5 | AI115: 6 | AJ115: 7 | AK115: 8 | AL115: 9 | AM115: 10 | AN115: LOW | AO115: MED | AP115: HIGH | AQ115: Pollinator
T116: =IF(Calculator!$A$4=3,"X","") ->  | U116: =IF(Calculator!$A$4=5,"X","") ->  | V116: =IF(Calculator!$A$4=4,"X","") ->  | W116: =IF(Calculator!$A$4=6,"X","") ->  | X116: =IF(Calculator!$A$4=2,"X","") ->  | Y116: =IF(Calculator!$A$4=1,"X","") ->  | Z116: =IF(OR(Calculator!$A$6=2,Calculator!$A$10=1),"X","") ->  | AA116: =IF(OR(Calculator!$A$6=3,Calculator!$A$10=2),"X","") ->  | AB116: =IF(OR(Calculator!$A$10=3,Calculator!$A$6=1),"X","") ->  | AC116: =IF(Calculator!$Z$2=3,"X","") ->  | AD116: =IF(Calculator!$Y$2=1,"X","") ->  | AE116: =IF(Calculator!$Y$2=2,"X","") ->  | AF116: =IF(Calculator!$Y$2=3,"X","") ->  | AG116: =IF(Calculator!$Y$2=4,"X","") ->  | AH116: =IF(Calculator!$Y$2=5,"X","") ->  | AI116: =IF(Calculator!$Y$2=6,"X","") ->  | AJ116: =IF(Calculator!$Y$2=7,"X","") ->  | AK116: =IF(Calculator!$Y$2=8,"X","") ->  | AL116: =IF(Calculator!$Y$2=9,"X","") ->  | AQ116: =IF(Calculator!A5=1,"X","") -> 
AT120: =IF(A120="","",VLOOKUP(A120,$A$4:$AT$112,46)) ->  | AU120: =IF(AT120="","",A120) ->  | AV120: =IF(OR(AT120="",AT120=0),"","MONARCH") -> 
AT121: 0 | AU121: =IF(AT121="","",A121) -> 0 | AV121: =IF(OR(AT121="",AT121=0),"","MONARCH") -> 
AV123: =IF(OR(AT123="",AT123=0),"","MONARCH") -> 
AU124: =IF(AT124="","",A124) ->  | AV124: =IF(OR(AT124="",AT124=0),"","MONARCH") -> 
AU125: =IF(AT125="","",A125) ->  | AV125: =IF(OR(AT125="",AT125=0),"","MONARCH") -> 
AT185: =IF(A185="","",VLOOKUP(A185,$A$4:$AT$112,46)) -> 
AU189: =IF(AT189="","",A189) ->  | AV189: =IF(OR(AT189="",AT189=0),"","MONARCH") -> 
AT227: =IF(A227="","",VLOOKUP(A227,$A$4:$AT$112,46)) -> 
AT228: =IF(A228="","",VLOOKUP(A228,$A$4:$AT$112,46)) -> 
AT229: =IF(A229="","",VLOOKUP(A229,$A$4:$AT$112,46)) -> 
AU253: =IF(AT253="","",A253) ->  | AV253: =IF(OR(AT253="",AT253=0),"","MONARCH") -> 
AT293: =IF(A293="","",VLOOKUP(A293,$A$4:$AT$112,46)) -> 
AT357: =IF(A357="","",VLOOKUP(A357,$A$4:$AT$112,46)) -> 

Sheet Instructions
M1: ADMINISTRATORS ONLY
A3: THIS SPREADSHEET ORIGINATED FROM THE IOWA NRCS AND HAS BEEN SIGNIFICANTLY MODIFIED FOR USE IN WI. | M3: Table Names and Descriptions
M4: Table Name | N4: Description
M5: Calculator | N5: custom seed mix design page- SEE INSTRUCTIONS
M6: SeedingPlan_Cust | N6: seeding plan printout for custom designed mixes - SEE INSTRUCTIONS
M8: Grasses | N8: Table of all native and introduced grasses that can be used in the NRCS Standards. Sort by Common Name for lookups to work. The calculator page uses this table to lookup species.
M9: ForbsLegumes | N9: Table of all native and introduced forbs/legumes that can be used in the NRCS Standards. Sort by Common Name for lookups to work. The calculator page uses this table to lookup species.
M12: Counties | N12: list of counties and seeding dates- counties have to be alphabetical for lookup to work. If modifying column "STD-REGION", you must resort table by this column for lookups to work
M13: Comp_temp | N13: List of companion and temporary cover crops that can be used with NRCS mixes. This info is referenced by both seeding plan sheets
M14: mixcheck | N14: Contains a summary of the 327, 342, and 512 standard requirements that are copied to the bottom of the calculator page to assist with mix design verification.
M15: Counties | N15: all counties in the state and the seeding dates. The counties and the seeding date table must be sorted alphabetically to allow lookups from other sheets to work.

Sheet Counties (hidden)
A1: 1 | P1: NRCS Standard | Q1: Region | R1: STD-REGION sort by this column | U1: Spring Seeding | V1: Late Summer | W1: Fall Dormant Seeding | X1: Frost Seeding Allowed?
A2: 2 | B2: ADAMS | C2: CENTRAL | P2: 327 | Q2: Central | R2: =CONCATENATE(P2,"-",Q2) -> 327-Central | S2: i | T2: INTRODUCED GRASSES & LEGUMES and COMPANION CROPS | U2: 4/15 - 6/1 | V2: 8/1 - 8/21 | W2: 11/1-Freeze up | X2: Yes | AA2: Agrostis gigantea | AB2: Redtop
A3: 3 | B3: ASHLAND | C3: NORTH | P3: 327 | Q3: North | R3: 327-North | S3: i | T3: INTRODUCED GRASSES & LEGUMES and COMPANION CROPS | U3: 5/1 - 6/15 | V3: 7/15 - 8/10 | W3: 11/1-Freeze up | X3: Yes | AA3: Allium canadense | AB3: Wild Garlic
A4: 4 | B4: BARRON | C4: CENTRAL | P4: 327 | Q4: South | R4: 327-South | S4: i | T4: INTRODUCED GRASSES & LEGUMES and COMPANION CROPS | U4: 4/1 - 5/15 | V4: 8/7 - 8/29 | W4: 11/1-Freeze up | X4: Yes | AA4: Allium cernuum | AB4: Nodding Wild Onion
A5: 5 | B5: BAYFIELD | C5: NORTH | P5: 342 | Q5: Central | R5: 342-Central | S5: i | T5: INTRODUCED GRASSES & LEGUMES and COMPANION CROPS | U5: 4/15 - 6/1 | V5: 8/1 - 8/21 | W5: 11/1-Freeze up | X5: No | AA5: Amorpha canescens | AB5: Leadplant
A6: 6 | B6: BROWN | C6: CENTRAL | P6: 342 | Q6: North | R6: 342-North | S6: i | T6: INTRODUCED GRASSES & LEGUMES and COMPANION CROPS | U6: 5/1 - 6/15 | V6: 7/15 - 8/10 | W6: 11/1-Freeze up | X6: No | AA6: Andropogon gerardii | AB6: Big Bluestem
A7: 7 | B7: BUFFALO | C7: CENTRAL | P7: 342 | Q7: South | R7: 342-South | S7: i | T7: INTRODUCED GRASSES & LEGUMES and COMPANION CROPS | U7: 4/1 - 5/15 | V7: 8/7 - 8/29 | W7: 11/1-Freeze up | X7: No | AA7: Anemone canadensis | AB7: Meadow Anemone
A8: 8 | B8: BURNETT | C8: NORTH | P8: 512 | Q8: Central | R8: 512-Central | S8: i | T8: INTRODUCED GRASSES & LEGUMES | U8: 4/15 - 6/1 | V8: 8/1 - 8/21 | W8: N/A | X8: Legumes Only | AA8: Anemone cylindrica | AB8: Thimbleweed
A9: 9 | B9: CALUMET | C9: CENTRAL | P9: 512 | Q9: North | R9: 512-North | S9: i | T9: INTRODUCED GRASSES & LEGUMES | U9: 5/1 - 6/15 | V9: 7/15 - 8/10 | W9: N/A | X9: Legumes Only | AA9: Angelica atropurpurea | AB9: Angelica
A10: 10 | B10: CHIPPEWA | C10: CENTRAL | P10: 512 | Q10: South | R10: 512-South | S10: i | T10: INTRODUCED GRASSES & LEGUMES | U10: 4/1 - 5/15 | V10: 8/7 - 8/29 | W10: N/A | X10: Legumes Only | AA10: Asclepias incarnata | AB10: Marsh Milkweed
A11: 11 | B11: CLARK | C11: CENTRAL | P11: 327 | Q11: Central | R11: 327-Central | S11: n | T11: NATIVE MIXTURES & COMPANION CROPS | U11: Thaw – 6/30 | V11: N/A | W11: 10/15 – Freeze up | X11: Yes | AA11: Asclepias sullivantii | AB11: Prairie Milkweed
A12: 12 | B12: COLUMBIA | C12: CENTRAL | P12: 327 | Q12: North | R12: 327-North | S12: n | T12: NATIVE MIXTURES & COMPANION CROPS | U12: Thaw – 7/15 | V12: N/A | W12: 10/8 – Freeze up | X12: Yes | AA12: Asclepias tuberosa | AB12: Butterfly Milkweed
A13: 13 | B13: CRAWFORD | C13: SOUTH | P13: 327 | Q13: South | R13: 327-South | S13: n | T13: NATIVE MIXTURES & COMPANION CROPS | U13: Thaw – 6/30 | V13: N/A | W13: 10/20 – Freeze up | X13: Yes | AA13: Asclepias verticillata | AB13: Whorled Milkweed
A14: 14 | B14: DANE | C14: SOUTH | P14: 342 | Q14: Central | R14: 342-Central | S14: n | T14: NATIVE MIXTURES & COMPANION CROPS | U14: Thaw – 6/30 | V14: N/A | W14: N/A | X14: No | AA14: Asclepias viridiflora | AB14: Green Milkweed
A15: 15 | B15: DODGE | C15: CENTRAL | P15: 342 | Q15: North | R15: 342-North | S15: n | T15: NATIVE MIXTURES & COMPANION CROPS | U15: Thaw – 7/15 | V15: N/A | W15: N/A | X15: No | AA15: Astragalus canadensis | AB15: Canada Milkvetch
A16: 16 | B16: DOOR | C16: CENTRAL | P16: 342 | Q16: South | R16: 342-South | S16: n | T16: NATIVE MIXTURES & COMPANION CROPS | U16: Thaw – 6/30 | V16: N/A | W16: N/A | X16: No | AA16: Baptisia alba | AB16: White Wild Indigo
A17: 17 | B17: DOUGLAS | C17: NORTH | P17: 512 | Q17: Central | R17: 512-Central | S17: n | T17: NATIVE WARM SEASON GRASSES | U17: Thaw – 6/30 | V17: N/A | W17: 10/15 – Freeze up | X17: Yes | AA17: Baptisia bracteata | AB17: Cream Wild Indigo
A18: 18 | B18: DUNN | C18: CENTRAL | P18: 512 | Q18: North | R18: 512-North | S18: n | T18: NATIVE WARM SEASON GRASSES | U18: Thaw – 7/15 | V18: N/A | W18: 10/8 – Freeze up | X18: Yes | AA18: Bidens cernua | AB18: Nodding Beggartick
A19: 19 | B19: EAU CLAIRE | C19: CENTRAL | P19: 512 | Q19: South | R19: 512-South | S19: n | T19: NATIVE WARM SEASON GRASSES | U19: Thaw – 6/30 | V19: N/A | W19: 10/20 – Freeze up | X19: Yes | AA19: Blephilia ciliata | AB19: Downy Wood Mint
A20: 20 | B20: FLORENCE | C20: NORTH | P20: custom | AA20: Bouteloua curtipendula | AB20: Sideoats Grama
A21: 21 | B21: FOND DU LAC | C21: CENTRAL | O21: COUNTY | P21: =+SeedingPlan_CUST!B6 ->  | AA21: Bouteloua hirsuta | AB21: Hairy Grama
A22: 22 | B22: FOREST | C22: NORTH | O22: ZONE | P22: =VLOOKUP(P21,$B$2:$C$74,2) ->  | AA22: Brickellia eupatorioides | AB22: False Boneset
A23: 23 | B23: GRANT | C23: SOUTH | O23: STANDARD | P23: =+SeedingPlan_CUST!F2 ->  | AA23: Bromus inermis | AB23: Smooth Bromegrass
A24: 24 | B24: GREEN | C24: SOUTH | P24: =CONCATENATE(P23,"-",P22) ->  | AA24: Calamagrostis canadensis | AB24: Bluejoint
A25: 25 | B25: GREEN LAKE | C25: CENTRAL | AA25: Campanula rotundifolia | AB25: Harebell
A26: 26 | B26: IOWA | C26: SOUTH | AA26: Carex comosa | AB26: Longhair Sedge
A27: 27 | B27: IRON | C27: NORTH | AA27: Carex hystericina | AB27: Bottlebrush Sedge
A28: 28 | B28: JACKSON | C28: CENTRAL | AA28: Carex vulpinoidea | AB28: Fox Sedge
A29: 29 | B29: JEFFERSON | C29: SOUTH | AA29: Ceanothus americanus | AB29: New Jersey Tea
A30: 30 | B30: JUNEAU | C30: CENTRAL | AA30: Comandra umbellata | AB30: False Toadflax
A31: 31 | B31: KENOSHA | C31: SOUTH | AA31: Coreopsis palmata | AB31: Prairie Tickseed
A32: 32 | B32: KEWAUNEE | C32: CENTRAL | AA32: Dactylis glomerata L. | AB32: Orchardgrass
A33: 33 | B33: LACROSSE | C33: CENTRAL | AA33: Dalea candida | AB33: White Prairie Clover
A34: 34 | B34: LAFAYETTE | C34: SOUTH | AA34: Dalea purpurea | AB34: Purple Prairie Clover
A35: 35 | B35: LANGLADE | C35: NORTH | AA35: Desmodium canadense | AB35: Showy Tick Trefoil
A36: 36 | B36: LINCOLN | C36: NORTH | AA36: Desmodium illinoense | AB36: Illinois Tick Trefoil
A37: 37 | B37: MANITOWOC | C37: CENTRAL | AA37: Dodecatheon | AB37: Shootingstar
A38: 38 | B38: MARATHON | C38: CENTRAL | AA38: Echinacea pallida | AB38: Pale Purple Coneflower
A39: 39 | B39: MARINETTE | C39: NORTH | AA39: Echinacea purpurea | AB39: Purple Coneflower
A40: 40 | B40: MARQUETTE | C40: CENTRAL | AA40: Elymus canadensis | AB40: Canada Wildrye
A41: 41 | B41: MENOMINEE | C41: CENTRAL | AA41: Elymus virginicus | AB41: Virginia Wildrye
A42: 42 | B42: MILWAUKEE | C42: SOUTH | AA42: Eryngium yuccifolium | AB42: Rattlesnake Master
A43: 43 | B43: MONROE | C43: CENTRAL | AA43: Eupatoriadelphus maculatus | AB43: Joe-Pye Weed
A44: 44 | B44: OCONTO | C44: CENTRAL | AA44: Eupatorium perfoliatum | AB44: Boneset
A45: 45 | B45: ONEIDA | C45: NORTH | AA45: Eupatorium perfoliatum | AB45: Boneset
A46: 46 | B46: OUTAGAMIE | C46: CENTRAL | AA46: Eupatorium sessilifolium | AB46: Upland Boneset
A47: 47 | B47: OZAUKEE | C47: CENTRAL | AA47: Euphorbia corollata | AB47: Flowering Spurge
A48: 48 | B48: PEPIN | C48: CENTRAL | AA48: Festuca arundinacea | AB48: Tall Fescue
A49: 49 | B49: PIERCE | C49: CENTRAL | AA49: Festuca rubra | AB49: Creeping Red Fescue
A50: 50 | B50: POLK | C50: CENTRAL | AA50: Festuca rubra L. ssp. fallax | AB50: Chewings Red Fescue
A51: 51 | B51: PORTAGE | C51: CENTRAL | AA51: Festuca x Lolium | AB51: Festulolium
A52: 52 | B52: PRICE | C52: NORTH | AA52: Gaura biennis | AB52: Biennial Beeblossom
A53: 53 | B53: RACINE | C53: SOUTH | AA53: Gentiana andrewsii | AB53: Bottle Gentian
A54: 54 | B54: RICHLAND | C54: CENTRAL | AA54: Gentiana puberulenta | AB54: Downy Gentian
A55: 55 | B55: ROCK | C55: SOUTH | AA55: Geum triflorum | AB55: Prairie Smoke
A56: 56 | B56: RUSK | C56: NORTH | AA56: Glyceria grandis | AB56: American Mannagrass
A57: 57 | B57: SAUK | C57: CENTRAL | AA57: Glyceria striata | AB57: Fowl Mannagrass
A58: 58 | B58: SAWYER | C58: NORTH | AA58: Helenium autumnale | AB58: Sneezeweed
A59: 59 | B59: SHAWANO | C59: CENTRAL | AA59: Helianthus grosseserratus | AB59: Sawtooth Sunflower
A60: 60 | B60: SHEBOYGAN | C60: CENTRAL | AA60: Helianthus occidentalis | AB60: Fewleaf Sunflower
A61: 61 | B61: ST. CROIX | C61: CENTRAL | AA61: Helianthus pauciflorus | AB61: Prairie Sunflower
A62: 62 | B62: TAYLOR | C62: NORTH | AA62: Heliopsis helianthoides | AB62: Ox-eye Sunflower
A63: 63 | B63: TREMPEALEAU | C63: CENTRAL | AA63: Hesperostipa spartea | AB63: Porcupinegrass
A64: 64 | B64: VERNON | C64: CENTRAL | AA64: Heuchera richardsonii | AB64: Prairie Alum-Root
A65: 65 | B65: VILAS | C65: NORTH | AA65: Hypericum ascyron | AB65: Great St. John's Wort
A66: 66 | B66: WALWORTH | C66: SOUTH | AA66: Hypoxis hirsuta | AB66: Yellow Star Grass
A67: 67 | B67: WASHBURN | C67: NORTH | AA67: Impatiens capensis | AB67: Spotted Jewelweed
A68: 68 | B68: WASHINGTON | C68: CENTRAL | AA68: Iris versicolor | AB68: Harlequin Blue Flag Iris
A69: 69 | B69: WAUKESHA | C69: SOUTH | AA69: Juncus effusus | AB69: Common Rush
A70: 70 | B70: WAUPACA | C70: CENTRAL | AA70: Koeleria macrantha | AB70: Prairie Junegrass
A71: 71 | B71: WAUSHARA | C71: CENTRAL | AA71: Lespedeza capitata | AB71: Round-Headed Bushclover
A72: 72 | B72: WINNEBAGO | C72: CENTRAL | AA72: Liatris aspera | AB72: Rough Blazing Star
A73: 73 | B73: WOOD | C73: CENTRAL | AA73: Liatris pycnostachya | AB73: Prairie Blazing Star
AA74: Lilium superbum | AB74: Turk's Cap Lily
AA75: Linum sulcatum | AB75: Grooved Yellow Flax
AA76: Lobelia cardinalis | AB76: Cardinal Flower
AA77: Lobelia siphilitica | AB77: Great Blue Lobelia
AA78: Lobelia spicata | AB78: Pale Spiked Lobelia
AA79: Lolium perenne | AB79: Perennial Ryegrass
AA80: Lolium perenne L. ssp. Multiflorum | AB80: Annual (Italian) Ryegrass
AA81: Lotus corniculatus | AB81: Birdsfoot Trefoil
AA82: Lupinus perennis | AB82: Wild Lupine
AA83: Lysimachia quadriflora | AB83: Prairie Loosestrife
AA84: Lythrum alatum | AB84: Winged Loosestrife
AA85: Medicago sativa | AB85: Alfalfa
AA86: Monarda fistulosa | AB86: Bergamot
AA87: Monarda punctata | AB87: Spotted Mint
AA88: Oenothera biennis | AB88: Evening Primrose
AA89: Oligoneuron rigidum | AB89: Stiff Goldenrod
AA90: Packera aurea | AB90: Golden Ragwort
AA91: Panicum virgatum | AB91: Switchgrass
AA92: Parthenium auriculatum | AB92: Wild Quinine
AA93: Pedicularis canadensis | AB93: Wood Betony
AA94: Penstemon digitalis | AB94: Foxglove Beardtongue
AA95: Penstemon grandiflorus | AB95: Large Beardtongue
AA96: Phleum pratense | AB96: Timothy
AA97: Phlox pilosa | AB97: Prairie Phlox
AA98: Poa pratensis | AB98: Kentucky Bluegrass
AA99: Polytaenia nuttallii | AB99: Prairie Parsley
AA100: Potentilla arguta | AB100: Prairie Cinquefoil
AA101: Pulsatilla patens | AB101: Pasque Flower
AA102: Pycnanthemum virginianum | AB102: Mountain Mint
AA103: Ratibida pinnata | AB103: Yellow Coneflower
AA104: Rudbeckia hirta | AB104: Black-Eyed Susan
AA105: Rudbeckia subtomentosa | AB105: Sweet Black-Eyed Susan
AA106: Schedonorus pratensis | AB106: Meadow Fescue
AA107: Schizachyrium scoparium | AB107: Little Bluestem
AA108: Schoenoplectus fluviatilis | AB108: River Bulrush
AA109: Schoenoplectus tabernaemontani | AB109: Softstem Bulrush
AA110: Scirpus atrovirens | AB110: Green Bulrush
AA111: Scirpus cyperinus | AB111: Woolgrass
AA112: Silphium integrifolium | AB112: Rosinweed
AA113: Silphium laciniatum | AB113: Compassplant
AA114: Silphium perfoliatum | AB114: Cupplant
AA115: Silphium terebinthinaceum | AB115: Prairie Dock
AA116: Sisyrinchium campestre | AB116: Blue-Eyed Grass
AA117: Solidago speciosa | AB117: Showy Goldenrod
AA118: Sorghastrum nutans | AB118: Indiangrass
AA119: Spartina pectinata | AB119: Prairie Cordgrass
AA120: Sporobolus cryptandrus | AB120: Sand Dropseed
AA121: Sporobolus heterolepis | AB121: Prairie Dropseed
AA122: Symphyotrichum ericoides | AB122: Heath Aster
AA123: Symphyotrichum laeve | AB123: Smooth Blue Aster
AA124: Symphyotrichum novae-angliae | AB124: New England Aster
AA125: Symphyotrichum oolentangiense | AB125: Sky-Blue Aster
AA126: Symphyotrichum sericeum | AB126: Silky Aster
AA127: Tephrosia virginiana | AB127: Goat's Rue
AA128: Thalictrum dasycarpum | AB128: Purple Meadow-Rue
AA129: Tradescantia ohiensis | AB129: Spiderwort
AA130: Trifolium hybridum | AB130: Alsike Clover
AA131: Trifolium pratense | AB131: Red Clover
AA132: Trifolium repens | AB132: White Ladino Clover
AA133: Verbena hastata | AB133: Blue Vervain
AA134: Verbena stricta | AB134: Hoary Vervain
AA135: Vernonia fasciculata | AB135: Common Ironweed
AA136: Veronicastrum virginicum | AB136: Culver's Root
AA137: Viola pedata | AB137: Bird's Foot Violet
AA138: Viola pedatifida | AB138: Prairie Violet
AA139: Zizia aurea | AB139: Golden Alexanders

Sheet comp_temp (hidden)
O4: DATA ENTRY TABLE | P4: TEMPORARY CROPS-same for all standards | U4: SPECIES | V4: lbs/Bu
P5: Species | Q5: lbs/A | R5: Bu/A | S5: lbs/Bu | T5: DATA ENTRY TABLE | U5: Annual (Italian) Ryegrass | V5: 22
P6: NONE | U6: Canada Wild Rye | V6: 26
P7: Annual (Italian) Ryegrass | Q7: 20 | R7: =ROUND(Q7/S7,1) -> 0.9 | S7: 22 | U7: Oats | V7: 32
P8: Forage Sorghum | Q8: 20 | R8: =ROUND(Q8/S8,1) -> 0.5 | S8: 40 | U8: Sideoats Grama | V8: 10
P9: Oats | Q9: 64 | R9: 2 | S9: 32 | U9: Spring Wheat | V9: 60
P10: Spring Wheat | Q10: 120 | R10: 2 | S10: 60 | U10: Virginia Wild Rye | V10: 16
P11: Sudangrass | Q11: 40 | R11: 1 | S11: 40 | U11: Winter Wheat | V11: 60
P12: Winter Cereal Rye | Q12: 112 | R12: 2 | S12: 56
P13: Winter Wheat | Q13: 120 | R13: 2 | S13: 60
M17: DATA ENTRY TABLE | O17: COMPANION CROPS
O18: STANDARDS 327, 342, CRP | S18: STANDARDS 327, 342, 512, 420, CRP | W18: STANDARD 512
P19: Species | Q19: lbs/A | R19: Bu/A | T19: Species | U19: lbs/A | V19: Bu/A | X19: Species | Y19: lbs/A | Z19: Bu/A
O20: INT | P20: Annual (Italian) Ryegrass | Q20: 6 | R20: =IF(P20="","",ROUND(Q20/(VLOOKUP(P20,$U$5:$V$11,2)),1)) -> 0.3 | S20: NAT | T20: Oats | U20: 32 | V20: =IF(T20="","",ROUND(U20/(VLOOKUP(T20,$U$5:$V$11,2)),1)) -> 1 | W20: INT | X20: Annual (Italian) Ryegrass | Y20: 6 | Z20: =IF(X20="","",ROUND(Y20/(VLOOKUP(X20,$U$5:$V$11,2)),1)) -> 0.3
O21: INT | P21: Oats | Q21: 32 | R21: =IF(P21="","",ROUND(Q21/(VLOOKUP(P21,$U$5:$V$11,2)),1)) -> 1 | S21: NAT | V21: =IF(T21="","",ROUND(U21/(VLOOKUP(T21,$U$5:$V$11,2)),1)) ->  | W21: INT | X21: Oats | Y21: 64 | Z21: =IF(X21="","",ROUND(Y21/(VLOOKUP(X21,$U$5:$V$11,2)),1)) -> 2
O22: INT | P22: Spring Wheat | Q22: 60 | R22: 1 | S22: NAT | W22: INT | X22: Spring Wheat | Y22: 60 | Z22: 1
O23: INT | P23: Winter Wheat | Q23: 60 | R23: 1 | S23: NAT | W23: INT | X23: Winter Wheat | Y23: 60 | Z23: 1
O24: INT | S24: NAT | W24: INT
O25: INT | S25: NAT | W25: INT
L30: =IF(#REF!,K30,"") ->  | N30: DO NOT CHANGE THE TABLE BELOW - IT IS COPIED FROM ABOVE WHEN MACROS ARE RUN
L31: =IF(#REF!,K31,"") -> 
L32: =IF(#REF!,K32,"") ->  | N32: =IF(Calculator!$Z$2=1,327,IF(Calculator!$Z$2=2,342,512)) -> 512 | O32: =+SeedingPlan_CUST!$K$91 -> 0 | P32: NONE
L33: =IF(#REF!,K33,"") ->  | P33: Annual (Italian) Ryegrass | Q33: 6 | R33: =IF(P33="","",ROUND(Q33/(VLOOKUP(P33,$U$5:$V$11,2)),1)) -> 0.3
L34: =IF(#REF!,K34,"") ->  | P34: Oats | Q34: 32 | R34: 1
L35: =IF(#REF!,K35,"") ->  | P35: Spring Wheat | Q35: 60 | R35: 1
L36: =IF(#REF!,K36,"") ->  | P36: Winter Wheat | Q36: 60 | R36: 1
L37: =IF(#REF!,K37,"") -> 
L40: =IF(#REF!,K40,"") -> 
L41: =IF(#REF!,K41,"") -> 
L42: =IF(#REF!,K42,"") -> 
K90: 0

Sheet mixcheck (hidden)
A1: Conservation Cover (327)
A2: 327 | B2: Introduced Species | L2: =+Calculator!M148+Calculator!M152 -> 0 | M2: intro total
B3: Grasses | D3: Legumesa | F3: Seeding Periods | J3: Notes | L3: =+Calculator!M149+Calculator!M151+Calculator!M153 -> 0 | M3: native total
A4: Mix Type | B4: No. | C4: seeds/ft2 | D4: No. | E4: seeds/ft2 | F4: Spring | G4: Late Summer | H4: Dormantb | I4: Frostb | L4: =IF(Calculator!$Z$2=1,327,IF(Calculator!$Z$2=2,342,512)) -> 512 | M4: std
A5: Wildlife Habitat | B5: ³ 2 | C5: ³ 70 | D5: ³ 1 | E5: ³ 30 | F5: X | G5: X | H5: X | I5: X | J5: Grasses must be at least 50% of mix. | L5: =IF(OR(Calculator!A6=1,Calculator!A10=3),"B",IF(OR(Calculator!A6=2,Calculator!A10=1),"I","N")) -> N | M5: intro/native/both
A6: Pollinator Habitat | B6: 1-2 | C6: ≤ 30 | D6: ³ 2 | E6: ³ 40 | F6: X | G6: X | H6: X | I6: X | J6: Grasses must be bunch-type. | L6: =CONCATENATE(L4,"-",L5) -> 512-N
A7: (a) If more than 20% of legumes are hard seed, increase rate by % of hard seed. | L7: =IF(L6="327-N",1,IF(L6="327-I",2,IF(L6="327-B",3,IF(L6="342-N",4,IF(L6="342-I",5,IF(L6="342-B",6,IF(L6="512-N",7,IF(L6="512-I",8,IF(L6="512-B",9,""))))))))) -> 7
A8: (b) Increase rate 15% for frost and dormant seedings
A9: 327 | B9: Native Species
B10: Grassesa | D10: Forbs/Legumesb | F10: Seeding Periods | J10: Notes
A11: Mix Type | B11: No. | C11: seeds/ft2 | D11: No. | E11: seeds/ft2 | F11: Spring | G11: Late Summer | H11: Dormantc | I11: Frostc
A12: Basic Prairied | B12: ³ 3 | C12: ³ 20 | D12: ³ 3 | E12: ³ 2 | F12: X | G12: NR | H12: X | I12: X | J12: Grasses must be at least 50% of mix.
A13: Prairie Restorationd | B13: ³ 5 | C13: ³ 15 | D13: ³ 10 | E13: ³ 8 | F13: X | G13: NR | H13: X | I13: X | J13: Grasses must be at least 50% of mix. One forb must be a legume.
A14: Pollinator Habitat | B14: 1-2 | C14: ≤ 10 | D14: ³ 9 | E14: ³ 30 | F14: X | G14: NR | H14: X | I14: X | J14: Grasses must be bunch-type. At least 3 early, 3 middle, and 3 late-blooming forbs.
A15: Untested Local Genotype Seed | B15: ³ 5 | C15: ³ 25 | D15: ³ 10 | E15: ³ 10 | F15: X | G15: NR | H15: X | I15: X | J15: Mix must be at least 50 seeds/sq. ft. total. Grasses must be at least 50% of mix. One forb must be a legume. If a single species makes up more than 20% of mix, only count 20% towards the total seeds/ft2.
A16: (a) Limit Canada Wildrye, Virginia Wildrye, and Sideoats Grama to no more than 20% of the total grasses.
A17: (b) If more than 20% of legumes are hard seed, increase rate by % of hard seed.
A18: (c) Increase rate 15% for frost and dormant seedings.
A19: (d) Maximum rates/acre for the following species: Switchgrass (1 lb.), Junegrass (2 oz.), Black-eyed Susan (2 oz.), Bergamot (2 oz.), or Purple Coneflower (3 oz.).
A21: Critical Area Planting (342)
A22: 342 | B22: Introduced Species
B23: Grasses | D23: Legumesa | F23: Seeding Periods | J23: Notes
A24: Mix Type | B24: No. | C24: seeds/ft2 | D24: No. | E24: seeds/ft2 | F24: Spring | G24: Late Summer | H24: Dormantb | I24: Frost
A25: Grasses Only | B25: ³ 1 | C25: ³160 | F25: X | G25: X | H25: X | I25: NR | J25: At least 25% of the total seeds must be sod-forming grasses.
A26: Mixtures | B26: ³ 1 | C26: ³ 80 | D26: ³ 1 | E26: See Notes | F26: X | G26: X | H26: X | I26: NR | J26: Mix must be at least 160 seeds/ft2 total. Grasses must be at least 50% of the mix. At least 25% of the seeds in the mix must be sod-forming grasses.
A27: (a) If more than 20% of legumes are hard seed, increase rate by % of hard seed.
A28: (b) Increase rate 15% for dormant seedings. Seedings in concentrated flow areas must be mulched.
A29: 342 | B29: Native Species
B30: Grassesa | D30: Forbs/Legumesb | F30: Seeding Periods | J30: Notes
A31: Mix Type | B31: No. | C31: seeds/ft2 | D31: No. | E31: seeds/ft2 | F31: Spring | G31: Late Summer | H31: Dormant | I31: Frost
A32: Grasses Only | B32: ³ 1 | C32: ³ 60 | F32: X | G32: NR | H32: NR | I32: NR
A33: Mixtures | B33: ³ 1 | C33: ³40 | D33: ³ 1 | E33: ³20 | F33: X | G33: NR | H33: NR | I33: NR | J33: Mix must be at least 60 seeds/ft2 total. Grasses must be at least 50% of the mix.
A34: (a) Limit Canada Wildrye, Virginia Wildrye, and Sideoats Grama to no more than 20% of the total grasses.
A35: (b) If more than 20% of legumes are hard seed, increase rate by % of hard seed.
A37: Forage & Biomass Planting (512)
A38: 512 | B38: Introduced Species
B39: Grasses | D39: Legumesa | F39: Seeding Periods | J39: Notes
A40: Mix Type | B40: No. | C40: seeds/ft2 | D40: No. | E40: seeds/ft2 | F40: Spring | G40: Late Summer | H40: Dormant | I40: Frost
A41: Pasture | B41: ³ 1 | C41: See Notes | D41: ³ 1 | E41: See Notes | F41: X | G41: X | H41: NR | I41: NR | J41: Mix must be at least 60 seeds/ft2 total. Grasses must be at least 50% of the mix.
A42: Hayland | B42: Single species or mixture with ≥60 seeds/ft2 | F42: X | G42: X | H42: NR | I42: NR
A43: Interseeding | B43: See Notes | D43: See Notes | F43: X | G43: X | H43: NR | I43: Legumes Only | J43: Use 1/2 the pure stand rate for spring or late summer seeding of grasses and/or legumes. Use 2/3 pure stand rate for frost seeding legumes.
A44: (a) If more than 20% of legumes are hard seed, increase rate by % of hard seed.
A45: 512 | B45: Native Species
B46: Grasses | D46: Forbs/Legumes | F46: Seeding Periods | J46: Notes
A47: Mix Type | B47: No. | C47: seeds/ft2 | D47: No. | E47: seeds/ft2 | F47: Spring | G47: Late Summer | H47: Dormanta | I47: Frosta
A48: Pasture/Hayland | B48: 1 | C48: See Notes | D48: NR | E48: NR | F48: X | G48: NR | H48: X | I48: X | J48: Big Bluestem - ≥42 seeds/ft2; Indiangrass - ≥44 seeds/ft2; Switchgrass - ≥63 seeds/ft2
A49: Biomass Seeding | B49: 1 | C49: ³ 60 | D49: NR | E49: NR | F49: X | G49: NR | H49: X | I49: X | J49: Only Switchgrass is approved.
A50: (a) Increase rate 15% for frost and dormant seedings.
A54: CRITICAL MIX CRITERIA TO MEET STANDARD

Sheet modifications
A2: date | B2: by | C2: Mod
A3: 2014-12-14 | B3: janet vosberg | C3: added giant sunflower, partridge pea, panicled aster, common milkweed, gian hyssop, and tall bellflower to forbsLegumes tab. Also changed the scientific name of Joe-Pye Weed to Eutrochium maculatum
A4: 2015-04-08 | B4: janet vosberg | C4: fixed formula on seeding plan sheet to bring acres over from calculator page and set acres decimal to hundredths place for CRP use
A5: 2015-04-30 | B5: janet vosberg | C5: Changed 9 grasses to "yes" for pollinators and made sure there is an "X" in the pollinator table. Fixed Great St. John's Wort so it now shows up as a pollinator.
A6: 2017-03-14 | B6: janet vosberg | C6: Added Lance Leaf Coriospis and Northern Plains/Meadow Blazing Star to ForbsLegumes. Added Forbs (MONARCH) total to bottom of calculator page that only shows if Monarch forbs are selected. Added "MONARCH" to Forbs species that are Monarch friendly and now shows in the calculator dropdown. All changes made per Steve Bertjens direction. Added Monarch butterfly column to seeding plan
A7: 2017-04-06 | B7: Janet vosberg | C7: modified seeding dates so if any introduced species in mix, it will always pick the introduced seeding dates. Unprotected cell D85 and G85 to add companion crop amounts on seeding sheet. Temporarily deleted the Hide/Unhide rows button from calculator page as it was rendering the combo boxes for species selection unusable. Will fix in future. Changed OATS companion crop rate to 1 bushel/acre for natives.
A8: 2020-06-30 | B8: janet vosberg | C8: modified the hide/unhide button on the seedingPlan_Cust sheet so it shows all rows if a user deletes a species in between rows on calculator page (Added formula to column M, revised formulas in columns I and J, changed count of rows to Max of I and J in cells I7 and I8 which are used in macro)
A9: 2021-03-10 | B9: janet vosberg | C9: Changed "% of Mix" Column format in Calculator tab to display to the nearest hundredth. The summary table at the bottom will display to the nearest tenth, Per BH.
A10: 2023-03-02 | B10: michelle komiskey | C10: updated rounding to hundredths pounds, changed seeding rate of oats for companion crop to 1bu/ac rather than 2bu/ac, removed outdated seed costs.
A11: =IF(B11="","",A10) ->  | B11: =IF(C11="","",B10) -> 
A70: =IF(B70="","",A69) ->  | B70: =IF(C70="","",B69) -> 

Sheet border (hidden)
D6: Seeding Plan
D8: Custom Mix
L10: Ver. 2/2013
